﻿Directorate,Department,Expenditure Type,Ref.Doc.1,Vendor Name,Expenditure Amount (exc VAT),Payment Date
COMMERCIAL,HOUSING NEEDS RESOURCES,Grant Payments,80026552,REDACTED - PERSONAL DATA,"9,000.00",04/07/2019
COMMERCIAL,HOUSING NEEDS RESOURCES,Grant Payments,80027367,REDACTED - PERSONAL DATA,"7,020.00",11/07/2019
COMMERCIAL,HOUSING REVENUE ACCOUNT,Consultants Fees,60125410,RE (REGIONAL ENTERPRISE) LIMITED,"155,297.00",22/07/2019
COMMERCIAL,HOUSING REVENUE ACCOUNT,Consultants Fees,60135573,John Graham Construction Ltd,"61,866.98",31/07/2019
COMMERCIAL,HOUSING REVENUE ACCOUNT,Other Services,80027487,REDACTED - PERSONAL DATA,"1,000.00",12/07/2019
COMMERCIAL,HOUSING REVENUE ACCOUNT,Other Agencies - Third Party P,60133373,THE BARNETGROUP LIMITED,"432,997.05",04/07/2019
COMMERCIAL,HOUSING REVENUE ACCOUNT,Other Agencies - Third Party P,60134913,THE BARNETGROUP LIMITED,"311,450.00",24/07/2019
Commercial,HRA,Consultants Fees,60133905,P P C R ASSOCIATES LTD,499.02,08/07/2019
Commercial,HRA,Consultants Fees,60133068,PRIORITY ESTATES PROJECT LTD,"2,514.60",18/07/2019
Commercial,HRA,Advertising,60133639,TMP (UK) LTD,"1,254.50",04/07/2019
Commercial,HRA,Building Repairs & Maintenance,60133940,UK POWER NETWORKS,"11,601.17",18/07/2019
Commercial,HRA,Other Services,60131465,AFFINITY WATER LIMITED,"795,562.87",01/07/2019
Commercial,HRA,Gas,60135473,SCOTTISH POWER GROUP,67.75,31/07/2019
Commercial,HRA,Gas,60135486,SCOTTISH POWER GROUP,23,31/07/2019
Commercial,HRA,Gas,60135496,SCOTTISH POWER GROUP,192.5,31/07/2019
Commercial,HRA,Gas,60135510,SCOTTISH POWER GROUP,23,31/07/2019
Commercial,HRA,Gas,60135515,SCOTTISH POWER GROUP,68,31/07/2019
Commercial,HRA,Consultants Fees,60135016,SAVILLS (UK) LTD,"6,000.00",23/07/2019
Commercial,HRA,Other Services,60135021,THE BARNETGROUP LIMITED,"2,020,145.93",24/07/2019
Commercial,HRA,Agency/Interim Non Hays,60135203,CHILD'S HILL BAPTIST CHURCH,248,26/07/2019
Commercial,Regional Enterprise,Legal and Court Fees,80027349,Yamaha Dingwall Ltd,"2,000.00",05/07/2019
Commercial,Regional Enterprise,Legal and Court Fees,80027244,REDACTED - PERSONAL DATA,"4,519.50",05/07/2019
Commercial,Regional Enterprise,Legal and Court Fees,80027249,REDACTED - PERSONAL DATA,"1,858.92",05/07/2019
Commercial,Regional Enterprise,Other Services,60133990,Castle Water Ltd,11.92,12/07/2019
Commercial,Regional Enterprise,Other Services,60134522,Castle Water Ltd,27.15,22/07/2019
Commercial,Regional Enterprise,Equipment and Materials Purcha,60134367,GeoPlace LLP,450,15/07/2019
Commercial,Regional Enterprise,Advertising,60129613,TMP (UK) LTD,188,31/07/2019
Commercial,Regional Enterprise,Advertising,60130257,TMP (UK) LTD,108,31/07/2019
Commercial,Regional Enterprise,Advertising,60131994,TMP (UK) LTD,179,11/07/2019
Commercial,Regional Enterprise,Advertising,60131996,TMP (UK) LTD,278,11/07/2019
Commercial,Regional Enterprise,Advertising,60131997,TMP (UK) LTD,260,11/07/2019
Commercial,Regional Enterprise,Advertising,60131998,TMP (UK) LTD,278,11/07/2019
Commercial,Regional Enterprise,Advertising,60132006,TMP (UK) LTD,170,11/07/2019
Commercial,Regional Enterprise,Advertising,60132009,TMP (UK) LTD,260,11/07/2019
Commercial,Regional Enterprise,Advertising,60132021,TMP (UK) LTD,296,11/07/2019
Commercial,Regional Enterprise,Advertising,60132023,TMP (UK) LTD,278,11/07/2019
Commercial,Regional Enterprise,Advertising,60132027,TMP (UK) LTD,296,11/07/2019
Commercial,Regional Enterprise,Advertising,60132038,TMP (UK) LTD,188,11/07/2019
Commercial,Regional Enterprise,Advertising,60132060,TMP (UK) LTD,278,11/07/2019
Commercial,Regional Enterprise,Advertising,60132062,TMP (UK) LTD,188,11/07/2019
Commercial,Regional Enterprise,Advertising,60132064,TMP (UK) LTD,260,09/07/2019
Commercial,Regional Enterprise,Advertising,60132195,TMP (UK) LTD,108,09/07/2019
Commercial,Regional Enterprise,Advertising,60132197,TMP (UK) LTD,197,09/07/2019
Commercial,Regional Enterprise,Advertising,60132202,TMP (UK) LTD,99,09/07/2019
Commercial,Regional Enterprise,Advertising,60132207,TMP (UK) LTD,108,09/07/2019
Commercial,Regional Enterprise,Advertising,60132210,TMP (UK) LTD,170,09/07/2019
Commercial,Regional Enterprise,Advertising,60132226,TMP (UK) LTD,90,09/07/2019
Commercial,Regional Enterprise,Advertising,60132229,TMP (UK) LTD,170,09/07/2019
Commercial,Regional Enterprise,Advertising,60132233,TMP (UK) LTD,188,09/07/2019
Commercial,Regional Enterprise,Advertising,60132427,TMP (UK) LTD,179,09/07/2019
Commercial,Regional Enterprise,Advertising,60132524,TMP (UK) LTD,188,11/07/2019
Commercial,Regional Enterprise,Advertising,60132525,TMP (UK) LTD,90,11/07/2019
Commercial,Regional Enterprise,Advertising,60132540,TMP (UK) LTD,108,11/07/2019
Commercial,Regional Enterprise,Advertising,60132544,TMP (UK) LTD,188,11/07/2019
Commercial,Regional Enterprise,Advertising,60132555,TMP (UK) LTD,224,11/07/2019
Commercial,Regional Enterprise,Advertising,60132574,TMP (UK) LTD,170,11/07/2019
Commercial,Regional Enterprise,Advertising,60132620,TMP (UK) LTD,99,11/07/2019
Commercial,Regional Enterprise,Advertising,60132628,TMP (UK) LTD,197,11/07/2019
Commercial,Regional Enterprise,Advertising,60132648,TMP (UK) LTD,90,11/07/2019
Commercial,Regional Enterprise,Professional Services,60135152,LONDON BOROUGH OF ENFIELD,100,25/07/2019
Commercial,Regional Enterprise,Professional Services,60134324,WATES LIVING SPACE,86.81,15/07/2019
Commercial,Regional Enterprise,Professional Services,60134490,WATES LIVING SPACE,141.02,17/07/2019
Commercial,Regional Enterprise,Professional Services,60134953,WATES LIVING SPACE,296.14,25/07/2019
Commercial,Regional Enterprise,Professional Services,60135031,WATES LIVING SPACE,51.12,25/07/2019
Commercial,Regional Enterprise,Professional Services,60135081,WATES LIVING SPACE,96.11,25/07/2019
Commercial,Regional Enterprise,Professional Services,60135093,WATES LIVING SPACE,28.2,25/07/2019
Commercial,Regional Enterprise,Professional Services,60135124,WATES LIVING SPACE,141.02,25/07/2019
Commercial,Regional Enterprise,Professional Services,60135127,WATES LIVING SPACE,96.11,25/07/2019
Commercial,Regional Enterprise,Advertising,60132472,TMP (UK) LTD,242,11/07/2019
Commercial,Regional Enterprise,Equipment and Materials Purcha,60134699,RM COUNTRYSIDE SERVICES LTD,"1,925.00",18/07/2019
Commercial,Regional Enterprise,Equipment and Materials Purcha,10015273,LOBEG,"1,404.00",24/07/2019
Commercial,Regional Enterprise,Other Services,60134674,RM COUNTRYSIDE SERVICES LTD,240,22/07/2019
Commercial,Regional Enterprise,Other Services,60134697,Conway Aecom Ltd,"10,000.00",24/07/2019
Commercial,Regional Enterprise,Professional Services,60134714,CITY OF LONDON,"6,875.00",18/07/2019
Commercial,Regional Enterprise,Professional Services,60133591,PUBLIC ANALYST SCIENTIFIC SERVS. LT,"1,514.00",30/07/2019
Commercial,Regional Enterprise,Other Services,60133093,Conway Aecom Ltd,168.14,04/07/2019
Commercial,Regional Enterprise,Other Services,60133098,Conway Aecom Ltd,64.55,04/07/2019
Commercial,Regional Enterprise,Other Services,60133102,Conway Aecom Ltd,162.75,04/07/2019
Commercial,Regional Enterprise,Other Services,60133103,Conway Aecom Ltd,58.41,04/07/2019
Commercial,Regional Enterprise,Other Services,60133104,Conway Aecom Ltd,175.24,04/07/2019
Commercial,Regional Enterprise,Other Services,60133122,Conway Aecom Ltd,249.27,04/07/2019
Commercial,Regional Enterprise,Other Services,60133129,Conway Aecom Ltd,84.65,04/07/2019
Commercial,Regional Enterprise,Other Services,60133137,Conway Aecom Ltd,94.64,04/07/2019
Commercial,Regional Enterprise,Other Services,60133139,Conway Aecom Ltd,252.9,04/07/2019
Commercial,Regional Enterprise,Other Services,60133141,Conway Aecom Ltd,187.83,04/07/2019
Commercial,Regional Enterprise,Other Services,60133143,Conway Aecom Ltd,94.64,04/07/2019
Commercial,Regional Enterprise,Other Services,60133146,Conway Aecom Ltd,104.58,04/07/2019
Commercial,Regional Enterprise,Other Services,60133151,Conway Aecom Ltd,94.64,04/07/2019
Commercial,Regional Enterprise,Other Services,60133154,Conway Aecom Ltd,292.07,04/07/2019
Commercial,Regional Enterprise,Other Services,60133157,Conway Aecom Ltd,94.64,04/07/2019
Commercial,Regional Enterprise,Other Services,60133170,Conway Aecom Ltd,272.68,04/07/2019
Commercial,Regional Enterprise,Other Services,60133171,Conway Aecom Ltd,244.18,04/07/2019
Commercial,Regional Enterprise,Other Services,60133202,Conway Aecom Ltd,129.1,04/07/2019
Commercial,Regional Enterprise,Other Services,60133210,Conway Aecom Ltd,62.61,01/07/2019
Commercial,Regional Enterprise,Other Services,60133270,Conway Aecom Ltd,58.41,04/07/2019
Commercial,Regional Enterprise,Other Services,60133272,Conway Aecom Ltd,116.83,02/07/2019
Commercial,Regional Enterprise,Other Services,60133279,Conway Aecom Ltd,62.61,04/07/2019
Commercial,Regional Enterprise,Other Services,60133298,Conway Aecom Ltd,64.55,02/07/2019
Commercial,Regional Enterprise,Other Services,60133303,Conway Aecom Ltd,62.61,04/07/2019
Commercial,Regional Enterprise,Other Services,60133309,Conway Aecom Ltd,104.58,04/07/2019
Commercial,Regional Enterprise,Other Services,60133328,Conway Aecom Ltd,62.61,04/07/2019
Commercial,Regional Enterprise,Other Services,60133336,Conway Aecom Ltd,110.18,02/07/2019
Commercial,Regional Enterprise,Other Services,60133338,Conway Aecom Ltd,121.03,02/07/2019
Commercial,Regional Enterprise,Other Services,60133340,Conway Aecom Ltd,69.18,02/07/2019
Commercial,Regional Enterprise,Other Services,60133341,Conway Aecom Ltd,81.39,04/07/2019
Commercial,Regional Enterprise,Other Services,60133354,Conway Aecom Ltd,69.18,04/07/2019
Commercial,Regional Enterprise,Other Services,60133356,Conway Aecom Ltd,62.61,04/07/2019
Commercial,Regional Enterprise,Other Services,60133358,Conway Aecom Ltd,70.11,02/07/2019
Commercial,Regional Enterprise,Other Services,60133368,Conway Aecom Ltd,446.28,02/07/2019
Commercial,Regional Enterprise,Other Services,60133375,Conway Aecom Ltd,94.64,04/07/2019
Commercial,Regional Enterprise,Other Services,60133376,Conway Aecom Ltd,87.97,04/07/2019
Commercial,Regional Enterprise,Other Services,60133379,Conway Aecom Ltd,106.85,02/07/2019
Commercial,Regional Enterprise,Other Services,60133393,Conway Aecom Ltd,58.41,04/07/2019
Commercial,Regional Enterprise,Other Services,60133405,Conway Aecom Ltd,81.39,04/07/2019
Commercial,Regional Enterprise,Other Services,60133412,Conway Aecom Ltd,47.32,04/07/2019
Commercial,Regional Enterprise,Other Services,60133441,Conway Aecom Ltd,62.61,04/07/2019
Commercial,Regional Enterprise,Other Services,60133443,Conway Aecom Ltd,104.58,04/07/2019
Commercial,Regional Enterprise,Other Services,60133450,Conway Aecom Ltd,94.64,04/07/2019
Commercial,Regional Enterprise,Other Services,60133474,Conway Aecom Ltd,62.61,04/07/2019
Commercial,Regional Enterprise,Other Services,60133479,Conway Aecom Ltd,58.41,05/07/2019
Commercial,Regional Enterprise,Other Services,60133484,Conway Aecom Ltd,138.37,04/07/2019
Commercial,Regional Enterprise,Other Services,60133489,Conway Aecom Ltd,270.62,04/07/2019
Commercial,Regional Enterprise,Other Services,60133495,Conway Aecom Ltd,233.27,05/07/2019
Commercial,Regional Enterprise,Other Services,60133499,Conway Aecom Ltd,54.17,05/07/2019
Commercial,Regional Enterprise,Other Services,60133506,Conway Aecom Ltd,138.37,04/07/2019
Commercial,Regional Enterprise,Other Services,60133512,Conway Aecom Ltd,141.58,04/07/2019
Commercial,Regional Enterprise,Other Services,60133521,Conway Aecom Ltd,138.37,04/07/2019
Commercial,Regional Enterprise,Other Services,60133542,Conway Aecom Ltd,267.96,04/07/2019
Commercial,Regional Enterprise,Other Services,60133554,Conway Aecom Ltd,58.41,04/07/2019
Commercial,Regional Enterprise,Other Services,60133556,Conway Aecom Ltd,47.32,04/07/2019
Commercial,Regional Enterprise,Other Services,60133563,Conway Aecom Ltd,82.07,04/07/2019
Commercial,Regional Enterprise,Other Services,60133564,Conway Aecom Ltd,137.05,04/07/2019
Commercial,Regional Enterprise,Other Services,60133565,Conway Aecom Ltd,138.37,04/07/2019
Commercial,Regional Enterprise,Other Services,60133570,Conway Aecom Ltd,58.41,04/07/2019
Commercial,Regional Enterprise,Other Services,60133574,Conway Aecom Ltd,138.37,04/07/2019
Commercial,Regional Enterprise,Other Services,60133702,Conway Aecom Ltd,125.22,11/07/2019
Commercial,Regional Enterprise,Other Services,60133714,Conway Aecom Ltd,125.22,11/07/2019
Commercial,Regional Enterprise,Other Services,60133721,Conway Aecom Ltd,125.22,11/07/2019
Commercial,Regional Enterprise,Other Services,60133724,Conway Aecom Ltd,58.41,11/07/2019
Commercial,Regional Enterprise,Other Services,60133735,Conway Aecom Ltd,125.22,11/07/2019
Commercial,Regional Enterprise,Other Services,60133749,Conway Aecom Ltd,58.41,11/07/2019
Commercial,Regional Enterprise,Other Services,60133750,Conway Aecom Ltd,125.22,11/07/2019
Commercial,Regional Enterprise,Other Services,60133751,Conway Aecom Ltd,87.97,05/07/2019
Commercial,Regional Enterprise,Other Services,60133755,Conway Aecom Ltd,91.74,05/07/2019
Commercial,Regional Enterprise,Other Services,60133765,Conway Aecom Ltd,125.22,11/07/2019
Commercial,Regional Enterprise,Other Services,60133768,Conway Aecom Ltd,84,05/07/2019
Commercial,Regional Enterprise,Other Services,60133775,Conway Aecom Ltd,81.39,05/07/2019
Commercial,Regional Enterprise,Other Services,60133787,Conway Aecom Ltd,125.22,11/07/2019
Commercial,Regional Enterprise,Other Services,60133794,Conway Aecom Ltd,125.22,11/07/2019
Commercial,Regional Enterprise,Other Services,60133796,Conway Aecom Ltd,125.22,11/07/2019
Commercial,Regional Enterprise,Other Services,60133800,Conway Aecom Ltd,138.37,11/07/2019
Commercial,Regional Enterprise,Other Services,60133812,Conway Aecom Ltd,45.67,08/07/2019
Commercial,Regional Enterprise,Other Services,60133819,Conway Aecom Ltd,97.22,11/07/2019
Commercial,Regional Enterprise,Other Services,60133822,Conway Aecom Ltd,75.94,11/07/2019
Commercial,Regional Enterprise,Other Services,60133841,Conway Aecom Ltd,66.49,11/07/2019
Commercial,Regional Enterprise,Other Services,60133852,Conway Aecom Ltd,182.61,08/07/2019
Commercial,Regional Enterprise,Other Services,60133863,Conway Aecom Ltd,75.94,11/07/2019
Commercial,Regional Enterprise,Other Services,60133870,Conway Aecom Ltd,34.82,08/07/2019
Commercial,Regional Enterprise,Other Services,60133871,Conway Aecom Ltd,365.41,08/07/2019
Commercial,Regional Enterprise,Other Services,60133873,Conway Aecom Ltd,182.61,08/07/2019
Commercial,Regional Enterprise,Other Services,60133886,Conway Aecom Ltd,183.64,08/07/2019
Commercial,Regional Enterprise,Other Services,60133894,Conway Aecom Ltd,58.41,11/07/2019
Commercial,Regional Enterprise,Other Services,60133898,Conway Aecom Ltd,36.03,08/07/2019
Commercial,Regional Enterprise,Other Services,60133902,Conway Aecom Ltd,147.67,11/07/2019
Commercial,Regional Enterprise,Other Services,60133903,Conway Aecom Ltd,28.35,08/07/2019
Commercial,Regional Enterprise,Other Services,60134540,Conway Aecom Ltd,62.14,25/07/2019
Commercial,Regional Enterprise,Other Services,60134554,Conway Aecom Ltd,575.89,18/07/2019
Commercial,Regional Enterprise,Other Services,60134563,Conway Aecom Ltd,372.82,22/07/2019
Commercial,Regional Enterprise,Other Services,60134574,Conway Aecom Ltd,239.83,25/07/2019
Commercial,Regional Enterprise,Other Services,60134577,Conway Aecom Ltd,310.68,25/07/2019
Commercial,Regional Enterprise,Other Services,60134585,Conway Aecom Ltd,313.77,18/07/2019
Commercial,Regional Enterprise,Other Services,60134622,Conway Aecom Ltd,119.91,25/07/2019
Commercial,Regional Enterprise,Other Services,60134652,Conway Aecom Ltd,430.59,25/07/2019
Commercial,Regional Enterprise,Other Services,60134537,Conway Aecom Ltd,"1,071.00",18/07/2019
Commercial,Regional Enterprise,Other Services,60134637,Conway Aecom Ltd,997.5,18/07/2019
Commercial,Regional Enterprise,Other Services,60134665,Conway Aecom Ltd,598.5,25/07/2019
Commercial,Regional Enterprise,Other Services,60134692,Conway Aecom Ltd,600,18/07/2019
Commercial,Regional Enterprise,Other Services,60134694,Conway Aecom Ltd,325,18/07/2019
Commercial,Regional Enterprise,Grant Payments,80026754,Clouds End Services,"1,440.00",11/07/2019
Commercial,Regional Enterprise,Grant Payments,80027121,Clouds End Services,480,24/07/2019
Commercial,Regional Enterprise,Grant Payments,80027266,Clouds End Services,"2,460.00",30/07/2019
Commercial,Regional Enterprise,Grant Payments,80027597,Dawsetway Heating,"4,316.71",25/07/2019
Commercial,Regional Enterprise,Consultants Fees,60134844,Gowling WLG,"3,016.30",22/07/2019
Commercial,Regional Enterprise,Consultants Fees,60134868,Gowling WLG,"113,352.90",22/07/2019
Commercial,Regional Enterprise,Consultants Fees,60134878,Gowling WLG,"9,930.10",22/07/2019
Commercial,Regional Enterprise,Consultants Fees,60129000,Gowling WLG,"12,236.85",22/07/2019
Commercial,Regional Enterprise,Consultants Fees,60134814,Gowling WLG,"7,700.83",22/07/2019
Commercial,Regional Enterprise,Consultants Fees,60134817,Gowling WLG,"10,020.70",23/07/2019
Commercial,Regional Enterprise,Consultants Fees,60134839,Gowling WLG,"1,643.00",22/07/2019
Commercial,Regional Enterprise,Consultants Fees,60134871,Gowling WLG,"5,698.00",23/07/2019
Commercial,Regional Enterprise,Consultants Fees,60134872,Gowling WLG,"4,172.26",22/07/2019
Commercial,Regional Enterprise,Consultants Fees,60134877,Gowling WLG,"17,448.84",22/07/2019
Commercial,Regional Enterprise,General Sales,60132225,Chipping Barnet Town Team,"5,095.00",04/07/2019
Commercial,Regional Enterprise,Professional Services,60125443,RE (REGIONAL ENTERPRISE) LIMITED,"1,372.75",11/07/2019
Commercial,Regional Enterprise,Professional Services,60133195,RE (REGIONAL ENTERPRISE) LIMITED,"135,750.00",08/07/2019
Commercial,Regional Enterprise,Consultants Fees,60135459,RE (REGIONAL ENTERPRISE) LIMITED,"24,863.00",30/07/2019
Commercial,Regional Enterprise,Professional Services,60133182,RE (REGIONAL ENTERPRISE) LIMITED,"1,368.00",09/07/2019
Commercial,Regional Enterprise,RE Services Contract Payment,60132941,RE (REGIONAL ENTERPRISE) LIMITED,"83,083.00",08/07/2019
Commercial,Regional Enterprise,RE Services Contract Payment,60134389,RE (REGIONAL ENTERPRISE) LIMITED,"358,322.00",29/07/2019
COMMERCIAL,REGIONAL ENTERPRISE,Grant Payments,80027526,Closomat Limited,"8,330.00",16/07/2019
COMMERCIAL,REGIONAL ENTERPRISE,Grant Payments,80027425,DOLPHIN MOBILITY LTD.,"25,921.48",29/07/2019
COMMERCIAL,REGIONAL ENTERPRISE,Grant Payments,80027476,SOUTH HERTFORDSHIRE,"6,235.50",24/07/2019
COMMERCIAL,REGIONAL ENTERPRISE,Grant Payments,80027605,SOUTH HERTFORDSHIRE,"6,874.00",26/07/2019
COMMERCIAL,REGIONAL ENTERPRISE,Grant Payments,80027352,EMS STAIRLIFTS,"5,900.00",17/07/2019
COMMERCIAL,REGIONAL ENTERPRISE,Grant Payments,80027462,BELLHOUSE PROPERTY SERVICES LTD,"20,000.00",23/07/2019
COMMERCIAL,REGIONAL ENTERPRISE,Grant Payments,80027481,ACCESS & AUTOMATION LTD,"2,720.00",17/07/2019
COMMERCIAL,REGIONAL ENTERPRISE,Grant Payments,80027578,ACCESS & AUTOMATION LTD,"6,680.00",18/07/2019
COMMERCIAL,REGIONAL ENTERPRISE,Grant Payments,80027042,Amwell Construction Ltd,"6,529.00",18/07/2019
COMMERCIAL,REGIONAL ENTERPRISE,Grant Payments,80027511,Amwell Construction Ltd,"4,875.61",17/07/2019
COMMERCIAL,REGIONAL ENTERPRISE,Grant Payments,80027580,Amwell Construction Ltd,"5,538.00",18/07/2019
COMMERCIAL,REGIONAL ENTERPRISE,Grant Payments,80027470,B G Building Solutions Ltd,"18,000.00",15/07/2019
COMMERCIAL,REGIONAL ENTERPRISE,Grant Payments,80027749,REDACTED - PERSONAL DATA,"7,535.50",24/07/2019
COMMERCIAL,REGIONAL ENTERPRISE,Grant Payments,80027757,DPBUILDERS DISABLEDADAPTATIONS,"5,166.00",24/07/2019
COMMERCIAL,REGIONAL ENTERPRISE,Other Services,60135052,Conway Aecom Ltd,"5,769.55",25/07/2019
COMMERCIAL,REGIONAL ENTERPRISE,Other Services,60135057,Conway Aecom Ltd,"36,515.00",25/07/2019
COMMERCIAL,REGIONAL ENTERPRISE,Other Services,60135073,Conway Aecom Ltd,"2,229.35",25/07/2019
COMMERCIAL,REGIONAL ENTERPRISE,Other Services,60135075,Conway Aecom Ltd,"19,564.92",25/07/2019
COMMERCIAL,REGIONAL ENTERPRISE,Other Services,60135079,Conway Aecom Ltd,"25,854.06",25/07/2019
COMMERCIAL,REGIONAL ENTERPRISE,Other Services,60135080,Conway Aecom Ltd,"33,612.87",25/07/2019
COMMERCIAL,REGIONAL ENTERPRISE,Other Services,60135082,Conway Aecom Ltd,"59,792.10",25/07/2019
COMMERCIAL,REGIONAL ENTERPRISE,Other Services,60135084,Conway Aecom Ltd,"23,051.70",26/07/2019
COMMERCIAL,REGIONAL ENTERPRISE,Other Services,60135092,Conway Aecom Ltd,"48,912.30",25/07/2019
COMMERCIAL,REGIONAL ENTERPRISE,Other Services,60135096,Conway Aecom Ltd,"14,984.27",25/07/2019
COMMERCIAL,REGIONAL ENTERPRISE,Other Services,60135101,Conway Aecom Ltd,"39,442.25",26/07/2019
COMMERCIAL,REGIONAL ENTERPRISE,Other Services,60135108,Conway Aecom Ltd,"67,571.00",25/07/2019
COMMERCIAL,REGIONAL ENTERPRISE,Other Services,60135120,Conway Aecom Ltd,"46,103.40",26/07/2019
COMMERCIAL,REGIONAL ENTERPRISE,Other Services,60135122,Conway Aecom Ltd,"15,302.38",25/07/2019
COMMERCIAL,REGIONAL ENTERPRISE,Other Services,60135128,Conway Aecom Ltd,"39,442.25",26/07/2019
COMMERCIAL,REGIONAL ENTERPRISE,Other Services,60134571,Conway Aecom Ltd,"50,000.00",24/07/2019
COMMERCIAL,REGIONAL ENTERPRISE,Other Services,60134702,MACLEOD SIMMONDS LTD,"3,600.00",25/07/2019
COMMERCIAL,REGIONAL ENTERPRISE,Other Services,60116527,Conway Aecom Ltd,741.86,25/07/2019
COMMERCIAL,REGIONAL ENTERPRISE,Other Services,60134686,LONDON BOROUGH OF HAMMERSMITH & FUL,984.08,19/07/2019
COMMERCIAL,REGIONAL ENTERPRISE,Other Services,60109491,Conway Aecom Ltd,50.69,09/07/2019
COMMERCIAL,REGIONAL ENTERPRISE,Other Services,60135015,Cycle Confident Ltd,"29,271.76",30/07/2019
COMMERCIAL,REGIONAL ENTERPRISE,Advertising,60123154,TMP (UK) LTD,570,31/07/2019
COMMERCIAL,REGIONAL ENTERPRISE,Advertising,60123162,TMP (UK) LTD,551.5,31/07/2019
COMMERCIAL,REGIONAL ENTERPRISE,Equipment and Materials Purcha,60134521,Conway Aecom Ltd,"6,000.00",18/07/2019
COMMERCIAL,REGIONAL ENTERPRISE,Other Services,60131619,Bouygues E&S Infrastructure UK Ltd,"26,620.43",25/07/2019
COMMERCIAL,REGIONAL ENTERPRISE,Other Services,60134644,Bouygues E&S Infrastructure UK Ltd,"4,466.98",29/07/2019
COMMERCIAL,REGIONAL ENTERPRISE,Other Services,60134612,Conway Aecom Ltd,969.28,25/07/2019
COMMERCIAL,REGIONAL ENTERPRISE,Equipment and Materials Purcha,60135058,Conway Aecom Ltd,"7,644.92",25/07/2019
COMMERCIAL,REGIONAL ENTERPRISE,Advertising,60132433,TMP (UK) LTD,332,11/07/2019
COMMERCIAL,REGIONAL ENTERPRISE,Advertising,60132437,TMP (UK) LTD,242,09/07/2019
COMMERCIAL,REGIONAL ENTERPRISE,Advertising,60132438,TMP (UK) LTD,314,11/07/2019
COMMERCIAL,REGIONAL ENTERPRISE,Advertising,60132443,TMP (UK) LTD,341,11/07/2019
COMMERCIAL,REGIONAL ENTERPRISE,Advertising,60132490,TMP (UK) LTD,314,11/07/2019
COMMERCIAL,REGIONAL ENTERPRISE,Advertising,60132507,TMP (UK) LTD,471,11/07/2019
COMMERCIAL,REGIONAL ENTERPRISE,Other Services,60134519,Conway Aecom Ltd,141.35,25/07/2019
COMMERCIAL,REGIONAL ENTERPRISE,Other Services,60131627,Bouygues E&S Infrastructure UK Ltd,"2,433.83",25/07/2019
COMMERCIAL,REGIONAL ENTERPRISE,Other Services,60134523,Bouygues E&S Infrastructure UK Ltd,"3,347.91",25/07/2019
COMMERCIAL,REGIONAL ENTERPRISE,Other Services,60134719,Bouygues E&S Infrastructure UK Ltd,"1,121.75",25/07/2019
COMMERCIAL,REGIONAL ENTERPRISE,Other Services,60134515,Conway Aecom Ltd,"3,222.90",25/07/2019
COMMERCIAL,REGIONAL ENTERPRISE,Other Services,60133467,Conway Aecom Ltd,"39,326.55",18/07/2019
COMMERCIAL,REGIONAL ENTERPRISE,Other Services,60134626,Conway Aecom Ltd,"10,029.44",25/07/2019
COMMERCIAL,REGIONAL ENTERPRISE,Other Services,60134823,Conway Aecom Ltd,"36,146.56",24/07/2019
COMMERCIAL,REGIONAL ENTERPRISE,Other Services,60134851,Conway Aecom Ltd,"8,119.23",22/07/2019
COMMERCIAL,REGIONAL ENTERPRISE,Other Services,60134873,Conway Aecom Ltd,"19,484.65",22/07/2019
COMMERCIAL,REGIONAL ENTERPRISE,Other Services,60134888,Conway Aecom Ltd,"9,538.60",22/07/2019
COMMERCIAL,REGIONAL ENTERPRISE,Other Services,60135038,Conway Aecom Ltd,"56,970.56",25/07/2019
COMMERCIAL,REGIONAL ENTERPRISE,Equipment and Materials Purcha,60133396,Bendcrete Leisure Ltd,"38,500.00",23/07/2019
COMMERCIAL,REGIONAL ENTERPRISE,Professional Services,60134116,BLAKEDOWN LANDSCAPE (SE) LTD,"220,811.45",12/07/2019
COMMERCIAL,REGIONAL ENTERPRISE,Professional Services,60133062,APPLEYARD & TREW LLP,"4,292.06",02/07/2019
COMMERCIAL,REGIONAL ENTERPRISE,Professional Services,60133551,APPLEYARD & TREW LLP,"4,292.06",04/07/2019
COMMERCIAL,REGIONAL ENTERPRISE,Professional Services,60133560,APPLEYARD & TREW LLP,"4,292.06",04/07/2019
COMMERCIAL,REGIONAL ENTERPRISE,Professional Services,60135269,APPLEYARD & TREW LLP,"4,292.15",25/07/2019
COMMERCIAL,REGIONAL ENTERPRISE,Equipment and Materials Purcha,60135151,TRANSPORT FOR LONDON,"2,679.76",26/07/2019
COMMERCIAL,REGIONAL ENTERPRISE,Equipment and Materials Purcha,60133330,John Graham Construction Ltd,"241,814.66",05/07/2019
COMMERCIAL,REGIONAL ENTERPRISE,Consultants Fees,60130636,NETWORK RAIL INFRASTRUCTURELTD,"2,590,732.93",19/07/2019
COMMERCIAL,REGIONAL ENTERPRISE,Consultants Fees,60135234,NETWORK RAIL INFRASTRUCTURELTD,"5,930,492.21",31/07/2019
COMMERCIAL,REGIONAL ENTERPRISE,Consultants Fees,60134807,Gowling WLG,854.7,22/07/2019
COMMERCIAL,REGIONAL ENTERPRISE,Consultants Fees,60134830,Gowling WLG,"9,600.50",23/07/2019
COMMERCIAL,REGIONAL ENTERPRISE,Consultants Fees,60134836,Gowling WLG,"1,021.58",22/07/2019
COMMERCIAL,REGIONAL ENTERPRISE,Consultants Fees,60134842,Gowling WLG,"3,074.98",22/07/2019
COMMERCIAL,REGIONAL ENTERPRISE,Consultants Fees,60134859,Gowling WLG,"14,947.30",22/07/2019
COMMERCIAL,REGIONAL ENTERPRISE,Consultants Fees,60134864,Gowling WLG,"1,583.14",22/07/2019
COMMERCIAL,REGIONAL ENTERPRISE,Consultants Fees,60134874,Gowling WLG,"35,365.80",22/07/2019
COMMERCIAL,REGIONAL ENTERPRISE,Consultants Fees,60134880,Gowling WLG,428.3,22/07/2019
COMMERCIAL,REGIONAL ENTERPRISE,Consultants Fees,60134881,Gowling WLG,"9,732.10",22/07/2019
COMMERCIAL,REGIONAL ENTERPRISE,Consultants Fees,60134884,Gowling WLG,"3,289.30",22/07/2019
COMMERCIAL,REGIONAL ENTERPRISE,Consultants Fees,60134886,Gowling WLG,"2,883.31",22/07/2019
COMMERCIAL,REGIONAL ENTERPRISE,Consultants Fees,60134895,Gowling WLG,"10,164.19",22/07/2019
COMMERCIAL,REGIONAL ENTERPRISE,Consultants Fees,60134897,Gowling WLG,"1,720.30",22/07/2019
COMMERCIAL,REGIONAL ENTERPRISE,Professional Services,60134511,LondonEnergy Ltd,"11,601.84",25/07/2019
COMMERCIAL,REGIONAL ENTERPRISE,Professional Services,60135210,APPLEYARD & TREW LLP,"4,147.33",25/07/2019
COMMERCIAL,REGIONAL ENTERPRISE,Other Services,60134569,Conway Aecom Ltd,"13,000.00",25/07/2019
COMMERCIAL,REGIONAL ENTERPRISE,Other Services,60134647,Conway Aecom Ltd,"1,613.68",25/07/2019
COMMERCIAL,REGIONAL ENTERPRISE,Other Services,60134562,Conway Aecom Ltd,"13,671.00",25/07/2019
Corporate Accounting,Corporate Accounting,Other Local Authorities - Thir,1000024340,GREATER LONDON AUTHORITY,"227,824.00",29/07/2019
Corporate Accounting,Corporate Accounting,Miscellaneous Expenses,80027294,REDACTED - PERSONAL DATA,75.25,04/07/2019
Corporate Accounting,Corporate Accounting,Other Agencies - Third Party P,60135024,THE BARNETGROUP LIMITED,"91,666.67",24/07/2019
Corporate Accounting,Corporate Accounting,Other Transfer Payments to Soc,70094726,Wirecard (FS instant 2040880892973),"5,000.00",29/07/2019
Corporate Accounting,Corporate Accounting,Other Transfer Payments to Soc,80027807,Wirecard (FS instant 2040880892973),"34,906.34",30/07/2019
Corporate Accounting,Corporate Accounting,Other Transfer Payments to Soc,70094727,Wirecard (FS ongoing 2040881670310,"5,000.00",29/07/2019
Corporate Accounting,Corporate Accounting,Fees and Charges,80026632,MP Brothers Building Contractors,"1,310.40",04/07/2019
Corporate Accounting,Corporate Accounting,Fees and Charges,80026631,Adroit Utility Design Installation & Con,500,04/07/2019
Corporate Accounting,Corporate Accounting,Fees and Charges,80026902,Modbest Buliders Ltd,"1,399.20",16/07/2019
Corporate Accounting,Corporate Accounting,Fees and Charges,80026905,Morland Utilities Limited,500,16/07/2019
Corporate Accounting,Corporate Accounting,Other Local Authorities - Thir,1000024240,GREATER LONDON AUTHORITY,"1,709,933.00",24/07/2019
Corporate Accounting,Corporate Accounting,Other Local Authorities - Thir,1000024066,GREATER LONDON AUTHORITY,"4,665,343.56",11/07/2019
Central Expenses,Central Expenses,Other Establishments - Third P,CHP4000901,TRANSPORT TRADING LIMITED,"3,752,690.00",10/06/2019
DELIVERY UNITS,ADULTS AND COMMUNITIES,Consultants Fees,60134733,Better Group Limited,"133,494.00",26/07/2019
DELIVERY UNITS,ADULTS AND COMMUNITIES,Consultants Fees,60134739,Better Group Limited,"133,494.00",26/07/2019
DELIVERY UNITS,ADULTS AND COMMUNITIES,Consultants Fees,60134746,Better Group Limited,"9,475.00",26/07/2019
DELIVERY UNITS,ADULTS AND COMMUNITIES,Consultants Fees,60134800,Better Group Limited,"133,494.00",26/07/2019
DELIVERY UNITS,ADULTS AND COMMUNITIES,Ttl IT & Comms,60133397,Trojan Consultants Ltd,"2,283.00",18/07/2019
Delivery Units,Adults and Health,Other Services,50001955,WILLOW HOUSING & CARE LTD.,711.38,18/07/2019
Delivery Units,Adults and Health,Voluntary Associations - Third,50001953,SANCTUARY HOUSING ASSOCIATION,"6,546.25",18/07/2019
Delivery Units,Adults and Health,Voluntary Associations - Third,50001944,ELEANOR PALMER TRUST NO 2 A/C.,486.5,18/07/2019
Delivery Units,Adults and Health,Voluntary Associations - Third,50001941,BARNET MENCAP,"11,142.65",18/07/2019
Delivery Units,Adults and Health,Voluntary Associations - Third,50001943,CHRISTIAN ACTION (ENFIELD),365.8,18/07/2019
Delivery Units,Adults and Health,Voluntary Associations - Third,50001952,LINEN & WOOLLEN DRAPERS COTTAGE,730.11,18/07/2019
Delivery Units,Adults and Health,Voluntary Associations - Third,50001946,HABINTEG HOUSING ASSOCIATION,446.37,18/07/2019
Delivery Units,Adults and Health,Voluntary Associations - Third,50001950,ORCHARD HOUSING ASSOCIATION,196.62,19/07/2019
Delivery Units,Adults and Health,Voluntary Associations - Third,50001951,ST PANCRAS & HUMANIST H.A.,661.55,18/07/2019
Delivery Units,Adults and Health,Voluntary Associations - Third,50001947,JEWISH COMMUNITY HOUSING ASSOCIATIO,568.17,18/07/2019
Delivery Units,Adults and Health,Voluntary Associations - Third,50001949,METROPOLITAN SUPPORT TRUST,"6,472.80",18/07/2019
Delivery Units,Adults and Health,Voluntary Associations - Third,50001954,SCOTSCARE,361.52,18/07/2019
Delivery Units,Adults and Health,Equipment and Materials Purcha,10015286,Millbrook Healthcare Ltd,"241,141.98",30/07/2019
Delivery Units,Adults and Health,Equipment and Materials Purcha,10015287,Millbrook Healthcare Ltd,"37,507.78",30/07/2019
Delivery Units,Adults and Health,Other Contributions,80026745,O'Dwyer Independent Funeral Directors,"2,953.00",04/07/2019
Delivery Units,Adults and Health,Other Services,60133771,POhWER,"5,212.87",08/07/2019
Delivery Units,Adults and Health,Other Services,60134377,POhWER,"4,620.00",17/07/2019
Delivery Units,Adults and Health,Voluntary Associations - Third,50001948,MIDDLESEX ASSOCIATION  FOR THE BLIN,"2,394.00",18/07/2019
Delivery Units,Adults and Health,Voluntary Associations - Third,50001942,BARNET MENCAP,"28,583.00",18/07/2019
Delivery Units,Adults and Health,Voluntary Associations - Third,50001940,AGE CONCERN,"58,333.00",18/07/2019
Delivery Units,Adults and Health,Voluntary Associations - Third,50001945,GENESIS HOUSING ASSOCIATION LIMITED,"33,577.00",18/07/2019
Delivery Units,Adults and Health,Other Establishments - Third P,60133586,HERTFORDSHIRE PARTNERSHIP,"115,186.08",04/07/2019
Delivery Units,Adults and Health,Travelling Expenses,60134325,M1 EXPRESS CAR SERVICES,99,15/07/2019
Delivery Units,Adults and Health,Travelling Expenses,60134363,M1 EXPRESS CAR SERVICES,227,30/07/2019
Delivery Units,Adults and Health,Other Services,60132307,D.A. Languages Ltd,33,04/07/2019
Delivery Units,Adults and Health,Other Services,60132882,D.A. Languages Ltd,33,04/07/2019
Delivery Units,Adults and Health,Other Services,60134189,D.A. Languages Ltd,7.8,29/07/2019
Delivery Units,Adults and Health,Other Services,60134450,D.A. Languages Ltd,67.5,19/07/2019
Delivery Units,Adults and Health,Electricity,10015244,E-ON ENERGY,441.81,08/07/2019
Delivery Units,Adults and Health,Other Transfer Payments to Soc,60133835,REDACTED - PERSONAL DATA,498.88,08/07/2019
Delivery Units,Adults and Health,Gas,60133029,KENT COUNTY COUNCIL (KCS),168.9,02/07/2019
Delivery Units,Adults and Health,Grounds maintenance,60114404,REDACTED - PERSONAL DATA,200,16/07/2019
Delivery Units,Adults and Health,Grounds maintenance,60114428,REDACTED - PERSONAL DATA,120,16/07/2019
Delivery Units,Adults and Health,Grounds maintenance,60116354,REDACTED - PERSONAL DATA,100,16/07/2019
Delivery Units,Adults and Health,Grounds maintenance,60120383,REDACTED - PERSONAL DATA,100,16/07/2019
Delivery Units,Adults and Health,Food Costs,60132970,Muller Milk & Ingredients,0.88,05/07/2019
Delivery Units,Adults and Health,Food Costs,60133352,Muller Milk & Ingredients,0.88,12/07/2019
Delivery Units,Adults and Health,Food Costs,60134429,Muller Milk & Ingredients,0.88,26/07/2019
Delivery Units,Adults and Health,Food Costs,60134454,Muller Milk & Ingredients,0.88,19/07/2019
Delivery Units,Adults and Health,Translation Exp / Interpret,60132005,D.A. Languages Ltd,40.5,04/07/2019
Delivery Units,Adults and Health,Translation Exp / Interpret,60132040,D.A. Languages Ltd,27,04/07/2019
Delivery Units,Adults and Health,Translation Exp / Interpret,60132065,D.A. Languages Ltd,22,04/07/2019
Delivery Units,Adults and Health,Training,60131584,HUNTERSJOY LTD,"1,099.80",11/07/2019
Delivery Units,Adults and Health,Training,60135132,FRONTLINE TRAINING,850,26/07/2019
Delivery Units,Adults and Health,Training,60135237,FRONTLINE TRAINING,850,26/07/2019
Delivery Units,Adults and Health,Training,60135271,FRONTLINE TRAINING,850,26/07/2019
Delivery Units,Adults and Health,Training,10015257,Steve Chamberlain Social Care Ltd,750,17/07/2019
Delivery Units,Adults and Health,Training,60126286,Steve Chamberlain Social Care Ltd,400,02/07/2019
Delivery Units,Adults and Health,Other Transfer Payments to Soc,60134043,CARE MONITORING 2000 LTD,"5,396.09",22/07/2019
Delivery Units,Adults and Health,Other Services,80027282,REDACTED - PERSONAL DATA,5.98,04/07/2019
Delivery Units,Adults and Health,Other Services,80027281,REDACTED - PERSONAL DATA,5.62,04/07/2019
Delivery Units,Adults and Health,Other Services,80027283,REDACTED - PERSONAL DATA,5.34,04/07/2019
Delivery Units,Adults and Health,Other Services,60132299,D.A. Languages Ltd,168.28,04/07/2019
Delivery Units,Adults and Health,Other Services,60134666,D.A. Languages Ltd,98,19/07/2019
Delivery Units,Adults and Health,Other Transfer Payments to Soc,60133813,SOLACE ENTERPRISES LTD,250,08/07/2019
Delivery Units,Adults and Health,Other Transfer Payments to Soc,60135533,MIDDLESEX UNIVERSITY,200,30/07/2019
Delivery Units,Adults and Health,Other Transfer Payments to Soc,60135513,Pluto Productions,500,30/07/2019
Delivery Units,Adults and Health,Advertising for staff,60133595,TMP (UK) LTD,841,25/07/2019
Delivery Units,Adults and Health,Advertising for staff,60133601,TMP (UK) LTD,841,25/07/2019
Delivery Units,Adults and Health,Advertising for staff,60133626,TMP (UK) LTD,841,25/07/2019
Delivery Units,Adults and Health,Translation Exp / Interpret,60132000,D.A. Languages Ltd,98,04/07/2019
Delivery Units,Adults and Health,Translation Exp / Interpret,60132004,D.A. Languages Ltd,24.96,04/07/2019
Delivery Units,Adults and Health,Translation Exp / Interpret,60132043,D.A. Languages Ltd,128,04/07/2019
Delivery Units,Adults and Health,Translation Exp / Interpret,60132361,D.A. Languages Ltd,67.5,04/07/2019
Delivery Units,Adults and Health,Translation Exp / Interpret,60134093,D.A. Languages Ltd,12.48,29/07/2019
Delivery Units,Adults and Health,Translation Exp / Interpret,60135285,D.A. Languages Ltd,44.68,31/07/2019
Delivery Units,Adults and Health,Other Services,60132705,HUNTERSJOY LTD,"6,300.00",15/07/2019
Delivery Units,Adults and Health,Translation Exp / Interpret,60132032,D.A. Languages Ltd,33,04/07/2019
Delivery Units,Adults and Health,Translation Exp / Interpret,60132053,D.A. Languages Ltd,60.75,04/07/2019
Delivery Units,Adults and Health,Translation Exp / Interpret,60132140,D.A. Languages Ltd,33,04/07/2019
Delivery Units,Adults and Health,Translation Exp / Interpret,60132376,D.A. Languages Ltd,67.5,04/07/2019
Delivery Units,Adults and Health,Translation Exp / Interpret,60132392,D.A. Languages Ltd,33,12/07/2019
Delivery Units,Adults and Health,Translation Exp / Interpret,60134178,D.A. Languages Ltd,23.4,29/07/2019
Delivery Units,Adults and Health,Translation Exp / Interpret,60134470,D.A. Languages Ltd,55,19/07/2019
Delivery Units,Adults and Health,Other Transfer Payments to Soc,60128721,Mott MacDonald Ltd/Cambridge Education,155,15/07/2019
Delivery Units,Adults and Health,Translation Exp / Interpret,60132002,D.A. Languages Ltd,27,04/07/2019
Delivery Units,Adults and Health,Translation Exp / Interpret,60132016,D.A. Languages Ltd,120,04/07/2019
Delivery Units,Adults and Health,Translation Exp / Interpret,60132020,D.A. Languages Ltd,22,04/07/2019
Delivery Units,Adults and Health,Translation Exp / Interpret,60132026,D.A. Languages Ltd,22,04/07/2019
Delivery Units,Adults and Health,Translation Exp / Interpret,60132049,D.A. Languages Ltd,40.5,04/07/2019
Delivery Units,Adults and Health,Other Services,60134206,KMCA Consultancy Services Ltd,"1,997.56",31/07/2019
Delivery Units,Adults and Health,Other Services,60134235,KMCA Consultancy Services Ltd,"3,845.80",29/07/2019
Delivery Units,Adults and Health,Other Services,60134264,KMCA Consultancy Services Ltd,"1,517.40",16/07/2019
Delivery Units,Adults and Health,Other Services,60134802,South East Memory Assessment Serv. Ltd,470,22/07/2019
Delivery Units,Adults and Health,Other Transfer Payments to Soc,60133573,VOICEABILITY,355.95,04/07/2019
Delivery Units,Adults and Health,Other Transfer Payments to Soc,60132818,Aisa Medical Ltd,175.6,12/07/2019
Delivery Units,Adults and Health,Other Transfer Payments to Soc,60132819,Aisa Medical Ltd,176.55,12/07/2019
Delivery Units,Adults and Health,Other Transfer Payments to Soc,60132848,Aisa Medical Ltd,173.37,12/07/2019
Delivery Units,Adults and Health,Other Transfer Payments to Soc,60132854,Aisa Medical Ltd,174.27,12/07/2019
Delivery Units,Adults and Health,Other Transfer Payments to Soc,60132859,Aisa Medical Ltd,185.87,12/07/2019
Delivery Units,Adults and Health,Other Transfer Payments to Soc,60132903,Aisa Medical Ltd,173.58,12/07/2019
Delivery Units,Adults and Health,Other Transfer Payments to Soc,60133716,Aisa Medical Ltd,177.98,08/07/2019
Delivery Units,Adults and Health,Other Transfer Payments to Soc,60133717,Aisa Medical Ltd,174.48,08/07/2019
Delivery Units,Adults and Health,Other Transfer Payments to Soc,60133728,Aisa Medical Ltd,173.37,08/07/2019
Delivery Units,Adults and Health,Other Transfer Payments to Soc,60133729,Aisa Medical Ltd,180.57,08/07/2019
Delivery Units,Adults and Health,Other Transfer Payments to Soc,60133739,Aisa Medical Ltd,174.32,08/07/2019
Delivery Units,Adults and Health,Other Transfer Payments to Soc,60133741,Aisa Medical Ltd,173.37,08/07/2019
Delivery Units,Adults and Health,Other Transfer Payments to Soc,60133744,Aisa Medical Ltd,182.13,08/07/2019
Delivery Units,Adults and Health,Other Transfer Payments to Soc,60133747,Aisa Medical Ltd,173.37,08/07/2019
Delivery Units,Adults and Health,Other Transfer Payments to Soc,60133748,Aisa Medical Ltd,174.48,08/07/2019
Delivery Units,Adults and Health,Other Transfer Payments to Soc,60133763,Aisa Medical Ltd,177.98,08/07/2019
Delivery Units,Adults and Health,Other Transfer Payments to Soc,60133777,Aisa Medical Ltd,173.37,08/07/2019
Delivery Units,Adults and Health,Other Transfer Payments to Soc,60133790,Aisa Medical Ltd,184.71,08/07/2019
Delivery Units,Adults and Health,Other Transfer Payments to Soc,60133791,Aisa Medical Ltd,173.79,08/07/2019
Delivery Units,Adults and Health,Other Transfer Payments to Soc,60133793,Aisa Medical Ltd,173.37,08/07/2019
Delivery Units,Adults and Health,Other Transfer Payments to Soc,60134854,Kevin Scheuring Ltd,"1,520.00",22/07/2019
Delivery Units,Adults and Health,Other Transfer Payments to Soc,60134891,Kevin Scheuring Ltd,"2,430.00",22/07/2019
Delivery Units,Adults and Health,Other Transfer Payments to Soc,60134905,Kevin Scheuring Ltd,920,22/07/2019
Delivery Units,Adults and Health,Other Transfer Payments to Soc,60132832,Bartek Zaniewski Ltd,"1,075.40",11/07/2019
Delivery Units,Adults and Health,Other Transfer Payments to Soc,10015270,Eduhez Ltd,"3,605.00",23/07/2019
Delivery Units,Adults and Health,Other Transfer Payments to Soc,60133966,Eduhez Ltd,"3,080.00",23/07/2019
Delivery Units,Adults and Health,Other Transfer Payments to Soc,60133969,Eduhez Ltd,"4,270.00",29/07/2019
Delivery Units,Adults and Health,Other Transfer Payments to Soc,60133972,Eduhez Ltd,"1,720.00",23/07/2019
Delivery Units,Adults and Health,Other Transfer Payments to Soc,60133433,Favore Didio Ltd,"3,570.00",02/07/2019
Delivery Units,Adults and Health,Other Transfer Payments to Soc,60135264,Favore Didio Ltd,"2,040.00",26/07/2019
Delivery Units,Adults and Health,Other Transfer Payments to Soc,60130377,Peaceable Habitation Ltd,328.03,31/07/2019
Delivery Units,Adults and Health,Other Transfer Payments to Soc,60132314,Peaceable Habitation Ltd,300,11/07/2019
Delivery Units,Adults and Health,Other Transfer Payments to Soc,60134896,Peaceable Habitation Ltd,616.2,23/07/2019
Delivery Units,Adults and Health,Other Transfer Payments to Soc,60135240,Peaceable Habitation Ltd,647.38,29/07/2019
Delivery Units,Adults and Health,Other Transfer Payments to Soc,60135360,REDACTED - PERSONAL DATA,183.91,31/07/2019
Delivery Units,Adults and Health,Other Transfer Payments to Soc,60135394,REDACTED - PERSONAL DATA,399.09,31/07/2019
Delivery Units,Adults and Health,Other Agencies - Third Party P,90179955,NIGHTINGALE HOUSE,"2,857.11",11/07/2019
Delivery Units,Adults and Health,Other Agencies - Third Party P,90181272,JEWISH CARE,"13,401.36",18/07/2019
Delivery Units,Adults and Health,Other Agencies - Third Party P,90181277,JEWISH CARE,"2,649.36",18/07/2019
Delivery Units,Adults and Health,Other Agencies - Third Party P,90181287,JEWISH CARE,"2,649.36",18/07/2019
Delivery Units,Adults and Health,Other Agencies - Third Party P,90181288,JEWISH CARE,"2,649.36",18/07/2019
Delivery Units,Adults and Health,Other Agencies - Third Party P,90181289,JEWISH CARE,"2,410.28",18/07/2019
Delivery Units,Adults and Health,Other Agencies - Third Party P,90181291,JEWISH CARE,"2,649.36",18/07/2019
Delivery Units,Adults and Health,Other Agencies - Third Party P,90181304,JEWISH CARE,"2,649.36",18/07/2019
Delivery Units,Adults and Health,Other Agencies - Third Party P,90181305,JEWISH CARE,"2,649.36",18/07/2019
Delivery Units,Adults and Health,Other Agencies - Third Party P,90181308,JEWISH CARE,"2,649.36",18/07/2019
Delivery Units,Adults and Health,Other Agencies - Third Party P,90181325,JEWISH CARE,"2,410.28",18/07/2019
Delivery Units,Adults and Health,Other Agencies - Third Party P,90181326,JEWISH CARE,"2,410.28",18/07/2019
Delivery Units,Adults and Health,Other Agencies - Third Party P,90181331,JEWISH CARE,"2,410.28",18/07/2019
Delivery Units,Adults and Health,Other Agencies - Third Party P,90181341,JEWISH CARE,"2,410.28",18/07/2019
Delivery Units,Adults and Health,Other Agencies - Third Party P,90181344,JEWISH CARE,"2,410.28",18/07/2019
Delivery Units,Adults and Health,Other Agencies - Third Party P,90181350,JEWISH CARE,"2,410.28",18/07/2019
Delivery Units,Adults and Health,Other Agencies - Third Party P,90181366,JEWISH CARE,"2,380.92",18/07/2019
Delivery Units,Adults and Health,Other Agencies - Third Party P,90181375,JEWISH CARE,"3,489.64",18/07/2019
Delivery Units,Adults and Health,Other Agencies - Third Party P,90181377,JEWISH CARE,"2,410.28",18/07/2019
Delivery Units,Adults and Health,Other Agencies - Third Party P,90181383,JEWISH CARE,"2,410.28",18/07/2019
Delivery Units,Adults and Health,Other Agencies - Third Party P,90181384,JEWISH CARE,"2,649.36",18/07/2019
Delivery Units,Adults and Health,Other Agencies - Third Party P,90181388,JEWISH CARE,"11,745.48",18/07/2019
Delivery Units,Adults and Health,Other Agencies - Third Party P,90184976,JEWISH CARE,"2,410.28",29/07/2019
Delivery Units,Adults and Health,Other Agencies - Third Party P,90182780,FERNBANK NURSING HOME.,"2,507.90",22/07/2019
Delivery Units,Adults and Health,Other Agencies - Third Party P,90182781,FERNBANK NURSING HOME.,"2,507.90",22/07/2019
Delivery Units,Adults and Health,Other Agencies - Third Party P,90182782,FERNBANK NURSING HOME.,"2,759.93",22/07/2019
Delivery Units,Adults and Health,Other Agencies - Third Party P,90182784,FERNBANK NURSING HOME.,"2,759.93",22/07/2019
Delivery Units,Adults and Health,Other Agencies - Third Party P,90182785,FERNBANK NURSING HOME.,"4,362.01",22/07/2019
Delivery Units,Adults and Health,Other Agencies - Third Party P,90179191,CEDARS NURSING HOME,"2,508.08",08/07/2019
Delivery Units,Adults and Health,Other Agencies - Third Party P,90179193,CEDARS NURSING HOME,"4,285.71",08/07/2019
Delivery Units,Adults and Health,Other Agencies - Third Party P,90179194,CEDARS NURSING HOME,"2,571.43",08/07/2019
Delivery Units,Adults and Health,Other Agencies - Third Party P,90179196,CEDARS NURSING HOME,"4,071.43",08/07/2019
Delivery Units,Adults and Health,Other Agencies - Third Party P,90179197,CEDARS NURSING HOME,"2,427.17",08/07/2019
Delivery Units,Adults and Health,Other Agencies - Third Party P,90179198,CEDARS NURSING HOME,"2,869.29",08/07/2019
Delivery Units,Adults and Health,Other Agencies - Third Party P,90179199,CEDARS NURSING HOME,"4,071.43",08/07/2019
Delivery Units,Adults and Health,Other Agencies - Third Party P,90179202,CEDARS NURSING HOME,"4,207.14",11/07/2019
Delivery Units,Adults and Health,Other Agencies - Third Party P,90179203,CEDARS NURSING HOME,"2,964.93",11/07/2019
Delivery Units,Adults and Health,Other Agencies - Third Party P,90179204,CEDARS NURSING HOME,"2,508.08",11/07/2019
Delivery Units,Adults and Health,Other Agencies - Third Party P,90179205,CEDARS NURSING HOME,"4,207.14",11/07/2019
Delivery Units,Adults and Health,Other Agencies - Third Party P,90179207,CEDARS NURSING HOME,"2,657.14",11/07/2019
Delivery Units,Adults and Health,Other Agencies - Third Party P,90179208,CEDARS NURSING HOME,"4,428.57",11/07/2019
Delivery Units,Adults and Health,Other Agencies - Third Party P,90179209,CEDARS NURSING HOME,-599.64,11/07/2019
Delivery Units,Adults and Health,Other Agencies - Third Party P,90184820,BUPA NURSING HOMES LTD - ARKLEY,"2,243.20",25/07/2019
Delivery Units,Adults and Health,Other Agencies - Third Party P,90184822,BUPA NURSING HOMES LTD - ARKLEY,"2,318.76",25/07/2019
Delivery Units,Adults and Health,Other Agencies - Third Party P,90184824,BUPA NURSING HOMES LTD - ARKLEY,"2,318.76",25/07/2019
Delivery Units,Adults and Health,Other Agencies - Third Party P,90184825,BUPA NURSING HOMES LTD - ARKLEY,"2,318.76",25/07/2019
Delivery Units,Adults and Health,Other Agencies - Third Party P,90184826,BUPA NURSING HOMES LTD - ARKLEY,"2,318.76",25/07/2019
Delivery Units,Adults and Health,Other Agencies - Third Party P,90178697,AGUDAS ISRAEL HOUSING ASSCTN LTD,"2,648.57",12/07/2019
Delivery Units,Adults and Health,Other Agencies - Third Party P,90179010,WESTMINSTER HEALTH CARE LTD,"2,427.18",11/07/2019
Delivery Units,Adults and Health,Other Agencies - Third Party P,90179012,WESTMINSTER HEALTH CARE LTD,"3,000.00",11/07/2019
Delivery Units,Adults and Health,Other Agencies - Third Party P,90179013,WESTMINSTER HEALTH CARE LTD,"-1,400.00",11/07/2019
Delivery Units,Adults and Health,Other Agencies - Third Party P,90179014,WESTMINSTER HEALTH CARE LTD,"2,508.08",11/07/2019
Delivery Units,Adults and Health,Other Agencies - Third Party P,90185310,METHODIST HOMES FOR THE AGED,"5,228.57",30/07/2019
Delivery Units,Adults and Health,Other Agencies - Third Party P,90185311,METHODIST HOMES FOR THE AGED,"2,400.00",30/07/2019
Delivery Units,Adults and Health,Other Agencies - Third Party P,90185312,METHODIST HOMES FOR THE AGED,"2,400.00",30/07/2019
Delivery Units,Adults and Health,Other Agencies - Third Party P,90179534,THE LEONARD CHESHIRE FOUNDATION,"6,420.00",25/07/2019
Delivery Units,Adults and Health,Other Agencies - Third Party P,90177895,LIFESTYLE CARE PLC,"2,764.07",01/07/2019
Delivery Units,Adults and Health,Other Agencies - Third Party P,90179146,LIFESTYLE CARE PLC,"2,569.89",11/07/2019
Delivery Units,Adults and Health,Other Agencies - Third Party P,90179148,LIFESTYLE CARE PLC,"2,320.37",11/07/2019
Delivery Units,Adults and Health,Other Agencies - Third Party P,90179149,LIFESTYLE CARE PLC,"2,750.74",11/07/2019
Delivery Units,Adults and Health,Other Agencies - Third Party P,90179151,LIFESTYLE CARE PLC,"2,320.37",11/07/2019
Delivery Units,Adults and Health,Other Agencies - Third Party P,90179152,LIFESTYLE CARE PLC,"2,569.89",11/07/2019
Delivery Units,Adults and Health,Other Agencies - Third Party P,90179153,LIFESTYLE CARE PLC,"2,320.37",11/07/2019
Delivery Units,Adults and Health,Other Agencies - Third Party P,90179154,LIFESTYLE CARE PLC,"2,320.37",11/07/2019
Delivery Units,Adults and Health,Other Agencies - Third Party P,90179155,LIFESTYLE CARE PLC,"2,320.37",11/07/2019
Delivery Units,Adults and Health,Other Agencies - Third Party P,90179156,LIFESTYLE CARE PLC,"2,569.89",11/07/2019
Delivery Units,Adults and Health,Other Agencies - Third Party P,90179157,LIFESTYLE CARE PLC,"2,320.37",11/07/2019
Delivery Units,Adults and Health,Other Agencies - Third Party P,90180374,LIFESTYLE CARE PLC,"6,782.54",15/07/2019
Delivery Units,Adults and Health,Other Agencies - Third Party P,90182762,LIFESTYLE CARE PLC,"2,856.21",22/07/2019
Delivery Units,Adults and Health,Other Agencies - Third Party P,90179521,SONESTA NURSING HOME LTD.,"2,785.71",09/07/2019
Delivery Units,Adults and Health,Other Agencies - Third Party P,90179522,SONESTA NURSING HOME LTD.,"2,322.17",09/07/2019
Delivery Units,Adults and Health,Other Agencies - Third Party P,90179525,SONESTA NURSING HOME LTD.,"2,320.37",09/07/2019
Delivery Units,Adults and Health,Other Agencies - Third Party P,90179527,SONESTA NURSING HOME LTD.,"2,397.72",09/07/2019
Delivery Units,Adults and Health,Other Agencies - Third Party P,90179530,SONESTA NURSING HOME LTD.,"2,399.58",09/07/2019
Delivery Units,Adults and Health,Other Agencies - Third Party P,90179531,SONESTA NURSING HOME LTD.,"5,664.29",09/07/2019
Delivery Units,Adults and Health,Other Agencies - Third Party P,90179110,MEERA NURSING HOME LIMITED,"3,506.72",11/07/2019
Delivery Units,Adults and Health,Other Agencies - Third Party P,90179111,MEERA NURSING HOME LIMITED,"3,100.00",11/07/2019
Delivery Units,Adults and Health,Other Agencies - Third Party P,90171749,NEWCENTURY CARE LTD,"-1,617.86",04/07/2019
Delivery Units,Adults and Health,Other Agencies - Third Party P,90178681,NEWCENTURY CARE LTD,"4,200.00",04/07/2019
Delivery Units,Adults and Health,Other Agencies - Third Party P,90178682,NEWCENTURY CARE LTD,"3,857.14",04/07/2019
Delivery Units,Adults and Health,Other Agencies - Third Party P,90178683,NEWCENTURY CARE LTD,"3,428.57",04/07/2019
Delivery Units,Adults and Health,Other Agencies - Third Party P,90178685,NEWCENTURY CARE LTD,"3,428.57",04/07/2019
Delivery Units,Adults and Health,Other Agencies - Third Party P,90183163,NEWCENTURY CARE LTD,"3,764.29",23/07/2019
Delivery Units,Adults and Health,Other Agencies - Third Party P,90183164,NEWCENTURY CARE LTD,"4,340.00",23/07/2019
Delivery Units,Adults and Health,Other Agencies - Third Party P,90183165,NEWCENTURY CARE LTD,"3,985.71",23/07/2019
Delivery Units,Adults and Health,Other Agencies - Third Party P,90183166,NEWCENTURY CARE LTD,"3,542.86",23/07/2019
Delivery Units,Adults and Health,Other Agencies - Third Party P,90183168,NEWCENTURY CARE LTD,"3,542.86",23/07/2019
Delivery Units,Adults and Health,Other Agencies - Third Party P,90183191,NEWCENTURY CARE LTD,"3,642.86",23/07/2019
Delivery Units,Adults and Health,Other Agencies - Third Party P,90178724,BUPA CARE HOMES,"2,493.08",04/07/2019
Delivery Units,Adults and Health,Other Agencies - Third Party P,90178725,BUPA CARE HOMES,"2,493.08",04/07/2019
Delivery Units,Adults and Health,Other Agencies - Third Party P,90178726,BUPA CARE HOMES,"2,493.08",04/07/2019
Delivery Units,Adults and Health,Other Agencies - Third Party P,90178727,BUPA CARE HOMES,"2,493.08",04/07/2019
Delivery Units,Adults and Health,Other Agencies - Third Party P,90178728,BUPA CARE HOMES,979.42,04/07/2019
Delivery Units,Adults and Health,Other Agencies - Third Party P,90178987,BUPA CARE HOMES,"2,480.70",11/07/2019
Delivery Units,Adults and Health,Other Agencies - Third Party P,90180242,BUPA CARE HOMES,"3,865.12",17/07/2019
Delivery Units,Adults and Health,Other Agencies - Third Party P,90180243,BUPA CARE HOMES,"2,493.08",17/07/2019
Delivery Units,Adults and Health,Other Agencies - Third Party P,90178978,BUPA CARE HOMES,"2,322.17",11/07/2019
Delivery Units,Adults and Health,Other Agencies - Third Party P,90178979,BUPA CARE HOMES,"2,335.71",11/07/2019
Delivery Units,Adults and Health,Other Agencies - Third Party P,90178980,BUPA CARE HOMES,"3,107.14",11/07/2019
Delivery Units,Adults and Health,Other Agencies - Third Party P,90178981,BUPA CARE HOMES,"2,691.00",11/07/2019
Delivery Units,Adults and Health,Other Agencies - Third Party P,90178983,BUPA CARE HOMES,"2,322.17",11/07/2019
Delivery Units,Adults and Health,Other Agencies - Third Party P,90178988,BUPA CARE HOMES,"2,322.17",11/07/2019
Delivery Units,Adults and Health,Other Agencies - Third Party P,90179107,ASPEN VILLAGES LTD,"2,657.14",08/07/2019
Delivery Units,Adults and Health,Other Agencies - Third Party P,90179169,ASPEN VILLAGES LTD,"2,657.14",08/07/2019
Delivery Units,Adults and Health,Other Agencies - Third Party P,90179173,ASPEN VILLAGES LTD,"2,571.43",08/07/2019
Delivery Units,Adults and Health,Other Agencies - Third Party P,90179540,FOUR SEASONS HEALTH CARE,"2,291.35",09/07/2019
Delivery Units,Adults and Health,Other Agencies - Third Party P,90179542,FOUR SEASONS HEALTH CARE,"2,291.36",09/07/2019
Delivery Units,Adults and Health,Other Agencies - Third Party P,90179543,FOUR SEASONS HEALTH CARE,"2,551.52",09/07/2019
Delivery Units,Adults and Health,Other Agencies - Third Party P,90179544,FOUR SEASONS HEALTH CARE,"2,291.36",09/07/2019
Delivery Units,Adults and Health,Other Agencies - Third Party P,90179546,FOUR SEASONS HEALTH CARE,"2,550.72",09/07/2019
Delivery Units,Adults and Health,Other Agencies - Third Party P,90179547,FOUR SEASONS HEALTH CARE,"2,550.72",09/07/2019
Delivery Units,Adults and Health,Other Agencies - Third Party P,90179549,FOUR SEASONS HEALTH CARE,"2,291.36",09/07/2019
Delivery Units,Adults and Health,Other Agencies - Third Party P,90179551,FOUR SEASONS HEALTH CARE,"2,551.52",09/07/2019
Delivery Units,Adults and Health,Other Agencies - Third Party P,90179552,FOUR SEASONS HEALTH CARE,"2,291.36",09/07/2019
Delivery Units,Adults and Health,Other Agencies - Third Party P,90179553,FOUR SEASONS HEALTH CARE,"1,184.27",09/07/2019
Delivery Units,Adults and Health,Other Agencies - Third Party P,90182763,FOUR SEASONS HEALTH CARE,819.87,22/07/2019
Delivery Units,Adults and Health,Other Agencies - Third Party P,90182794,SANCTUARY CARE LTD,"2,541.07",22/07/2019
Delivery Units,Adults and Health,Other Agencies - Third Party P,90179963,BUPA CARE HOMES,"3,441.51",12/07/2019
Delivery Units,Adults and Health,Other Agencies - Third Party P,90179964,BUPA CARE HOMES,"2,484.39",12/07/2019
Delivery Units,Adults and Health,Other Agencies - Third Party P,90179965,BUPA CARE HOMES,"3,499.20",12/07/2019
Delivery Units,Adults and Health,Other Agencies - Third Party P,90179967,BUPA CARE HOMES,"3,302.36",12/07/2019
Delivery Units,Adults and Health,Other Agencies - Third Party P,90179554,SAGE NURSING HOME,"4,071.43",09/07/2019
Delivery Units,Adults and Health,Other Agencies - Third Party P,90179556,SAGE NURSING HOME,"5,142.86",09/07/2019
Delivery Units,Adults and Health,Other Agencies - Third Party P,90179557,SAGE NURSING HOME,"2,403.43",09/07/2019
Delivery Units,Adults and Health,Other Agencies - Third Party P,90179559,SAGE NURSING HOME,"2,698.37",09/07/2019
Delivery Units,Adults and Health,Other Agencies - Third Party P,90179560,SAGE NURSING HOME,"2,436.39",09/07/2019
Delivery Units,Adults and Health,Other Agencies - Third Party P,90179562,SAGE NURSING HOME,"2,978.57",09/07/2019
Delivery Units,Adults and Health,Other Agencies - Third Party P,90184829,SAGE NURSING HOME,"4,207.14",31/07/2019
Delivery Units,Adults and Health,Other Agencies - Third Party P,90184831,SAGE NURSING HOME,"4,114.29",31/07/2019
Delivery Units,Adults and Health,Other Agencies - Third Party P,90184832,SAGE NURSING HOME,"2,483.54",31/07/2019
Delivery Units,Adults and Health,Other Agencies - Third Party P,90184834,SAGE NURSING HOME,"2,788.32",31/07/2019
Delivery Units,Adults and Health,Other Agencies - Third Party P,90184835,SAGE NURSING HOME,"2,517.60",31/07/2019
Delivery Units,Adults and Health,Other Agencies - Third Party P,90184837,SAGE NURSING HOME,"3,077.86",31/07/2019
Delivery Units,Adults and Health,Other Agencies - Third Party P,90182197,M D HOMES,"3,072.32",22/07/2019
Delivery Units,Adults and Health,Other Agencies - Third Party P,90182820,APPLE TREE COURT CARE HOME,"2,508.08",22/07/2019
Delivery Units,Adults and Health,Other Agencies - Third Party P,90182821,APPLE TREE COURT CARE HOME,"2,760.20",22/07/2019
Delivery Units,Adults and Health,Other Agencies - Third Party P,90182823,APPLE TREE COURT CARE HOME,"4,871.43",22/07/2019
Delivery Units,Adults and Health,Other Agencies - Third Party P,90182745,AUTUMN GARDENS,"4,800.00",22/07/2019
Delivery Units,Adults and Health,Other Agencies - Third Party P,90182746,AUTUMN GARDENS,"3,440.00",22/07/2019
Delivery Units,Adults and Health,Other Agencies - Third Party P,90182747,AUTUMN GARDENS,"4,800.00",22/07/2019
Delivery Units,Adults and Health,Other Agencies - Third Party P,90181258,SUNRISE SENIOR LIVING,"6,176.40",18/07/2019
Delivery Units,Adults and Health,Other Agencies - Third Party P,90179141,ABBEY RAVENSCROFT PARK NURSING HOME,342.86,08/07/2019
Delivery Units,Adults and Health,Other Agencies - Third Party P,90179142,ABBEY RAVENSCROFT PARK NURSING HOME,"3,542.86",08/07/2019
Delivery Units,Adults and Health,Other Agencies - Third Party P,90179143,ABBEY RAVENSCROFT PARK NURSING HOME,"3,428.57",08/07/2019
Delivery Units,Adults and Health,Other Agencies - Third Party P,90179144,ABBEY RAVENSCROFT PARK NURSING HOME,"3,542.86",08/07/2019
Delivery Units,Adults and Health,Other Agencies - Third Party P,90179145,ABBEY RAVENSCROFT PARK NURSING HOME,"-1,485.71",08/07/2019
Delivery Units,Adults and Health,Other Agencies - Third Party P,90182170,ABBEY RAVENSCROFT PARK NURSING HOME,"2,788.32",22/07/2019
Delivery Units,Adults and Health,Other Agencies - Third Party P,90182171,ABBEY RAVENSCROFT PARK NURSING HOME,"2,788.32",22/07/2019
Delivery Units,Adults and Health,Other Agencies - Third Party P,90182174,ABBEY RAVENSCROFT PARK NURSING HOME,"3,321.43",22/07/2019
Delivery Units,Adults and Health,Other Agencies - Third Party P,90182175,ABBEY RAVENSCROFT PARK NURSING HOME,"3,321.43",22/07/2019
Delivery Units,Adults and Health,Other Agencies - Third Party P,90182176,ABBEY RAVENSCROFT PARK NURSING HOME,"2,788.32",22/07/2019
Delivery Units,Adults and Health,Other Agencies - Third Party P,90182178,ABBEY RAVENSCROFT PARK NURSING HOME,"3,100.00",22/07/2019
Delivery Units,Adults and Health,Other Agencies - Third Party P,90182179,ABBEY RAVENSCROFT PARK NURSING HOME,"3,321.43",22/07/2019
Delivery Units,Adults and Health,Other Agencies - Third Party P,90182180,ABBEY RAVENSCROFT PARK NURSING HOME,"2,788.32",22/07/2019
Delivery Units,Adults and Health,Other Agencies - Third Party P,90182182,ABBEY RAVENSCROFT PARK NURSING HOME,"3,542.86",22/07/2019
Delivery Units,Adults and Health,Other Agencies - Third Party P,90182185,ABBEY RAVENSCROFT PARK NURSING HOME,"2,788.32",22/07/2019
Delivery Units,Adults and Health,Other Agencies - Third Party P,90182186,ABBEY RAVENSCROFT PARK NURSING HOME,"4,995.43",22/07/2019
Delivery Units,Adults and Health,Other Agencies - Third Party P,90182187,ABBEY RAVENSCROFT PARK NURSING HOME,"3,321.43",22/07/2019
Delivery Units,Adults and Health,Other Agencies - Third Party P,90182188,ABBEY RAVENSCROFT PARK NURSING HOME,"3,321.43",22/07/2019
Delivery Units,Adults and Health,Other Agencies - Third Party P,90183332,CARLTON COURT (TLC GROUP),"2,448.78",23/07/2019
Delivery Units,Adults and Health,Other Agencies - Third Party P,90183341,CARLTON COURT (TLC GROUP),"4,428.57",23/07/2019
Delivery Units,Adults and Health,Other Agencies - Third Party P,90183343,CARLTON COURT (TLC GROUP),"3,736.61",23/07/2019
Delivery Units,Adults and Health,Other Agencies - Third Party P,90183363,HUSKARDS NEW CARE LTD,"2,397.72",23/07/2019
Delivery Units,Adults and Health,Other Agencies - Third Party P,90182816,ASHTON LODGE CARE CENTRE,"7,031.71",22/07/2019
Delivery Units,Adults and Health,Other Agencies - Third Party P,90185287,ASHTON LODGE CARE CENTRE,"3,709.95",30/07/2019
Delivery Units,Adults and Health,Other Agencies - Third Party P,90185288,ASHTON LODGE CARE CENTRE,"3,748.14",30/07/2019
Delivery Units,Adults and Health,Other Agencies - Third Party P,90185289,ASHTON LODGE CARE CENTRE,"3,250.37",30/07/2019
Delivery Units,Adults and Health,Other Agencies - Third Party P,90185293,ASHTON LODGE CARE CENTRE,"3,644.75",30/07/2019
Delivery Units,Adults and Health,Other Agencies - Third Party P,90185294,ASHTON LODGE CARE CENTRE,"3,644.75",30/07/2019
Delivery Units,Adults and Health,Other Agencies - Third Party P,90185295,ASHTON LODGE CARE CENTRE,"3,106.35",30/07/2019
Delivery Units,Adults and Health,Other Agencies - Third Party P,90185296,ASHTON LODGE CARE CENTRE,"3,982.89",30/07/2019
Delivery Units,Adults and Health,Other Agencies - Third Party P,90185297,ASHTON LODGE CARE CENTRE,"3,008.98",30/07/2019
Delivery Units,Adults and Health,Other Agencies - Third Party P,90185298,ASHTON LODGE CARE CENTRE,"3,010.71",30/07/2019
Delivery Units,Adults and Health,Other Agencies - Third Party P,90185299,ASHTON LODGE CARE CENTRE,"3,315.34",30/07/2019
Delivery Units,Adults and Health,Other Agencies - Third Party P,90185300,ASHTON LODGE CARE CENTRE,"3,490.21",30/07/2019
Delivery Units,Adults and Health,Other Agencies - Third Party P,90185301,ASHTON LODGE CARE CENTRE,"2,716.75",30/07/2019
Delivery Units,Adults and Health,Other Agencies - Third Party P,90185302,ASHTON LODGE CARE CENTRE,"4,335.18",30/07/2019
Delivery Units,Adults and Health,Other Agencies - Third Party P,90185304,ASHTON LODGE CARE CENTRE,"3,008.98",30/07/2019
Delivery Units,Adults and Health,Other Agencies - Third Party P,90185305,ASHTON LODGE CARE CENTRE,"3,958.77",30/07/2019
Delivery Units,Adults and Health,Other Agencies - Third Party P,90185306,ASHTON LODGE CARE CENTRE,"3,779.34",30/07/2019
Delivery Units,Adults and Health,Other Agencies - Third Party P,90185307,ASHTON LODGE CARE CENTRE,"3,251.48",30/07/2019
Delivery Units,Adults and Health,Other Agencies - Third Party P,90185308,ASHTON LODGE CARE CENTRE,"3,255.95",30/07/2019
Delivery Units,Adults and Health,Other Agencies - Third Party P,90185309,ASHTON LODGE CARE CENTRE,"3,255.95",30/07/2019
Delivery Units,Adults and Health,Other Agencies - Third Party P,90185314,ASHTON LODGE CARE CENTRE,"3,724.51",30/07/2019
Delivery Units,Adults and Health,Other Agencies - Third Party P,90185510,ASHTON LODGE CARE CENTRE,"3,484.63",31/07/2019
Delivery Units,Adults and Health,Other Agencies - Third Party P,90185511,ASHTON LODGE CARE CENTRE,"5,215.33",31/07/2019
Delivery Units,Adults and Health,Other Agencies - Third Party P,90182795,WESTGATE HOUSE CARE CENTRE,"3,725.76",19/07/2019
Delivery Units,Adults and Health,Other Agencies - Third Party P,90182205,WILSMERE HOUSE CARE CENTRE,"4,979.35",22/07/2019
Delivery Units,Adults and Health,Other Agencies - Third Party P,90182720,Karuna Manor,"4,207.14",22/07/2019
Delivery Units,Adults and Health,Other Agencies - Third Party P,90182721,Karuna Manor,"4,392.43",22/07/2019
Delivery Units,Adults and Health,Other Agencies - Third Party P,90182788,Pinelodge Care Home,"2,655.55",30/07/2019
Delivery Units,Adults and Health,Other Agencies - Third Party P,90183280,Chiswick House,"3,321.34",30/07/2019
Delivery Units,Adults and Health,Other Agencies - Third Party P,90179537,Adara Healthcare Ltd,"3,400.00",09/07/2019
Delivery Units,Adults and Health,Other Agencies - Third Party P,90179984,Adara Healthcare Ltd,"3,400.00",11/07/2019
Delivery Units,Adults and Health,Other Agencies - Third Party P,90182755,Aarandale Manor Care Home,"2,129.79",22/07/2019
Delivery Units,Adults and Health,Other Agencies - Third Party P,90182756,Aarandale Manor Care Home,"4,428.57",22/07/2019
Delivery Units,Adults and Health,Other Agencies - Third Party P,90182757,Aarandale Manor Care Home,"3,741.92",22/07/2019
Delivery Units,Adults and Health,Other Agencies - Third Party P,90182758,Aarandale Manor Care Home,"2,570.56",22/07/2019
Delivery Units,Adults and Health,Other Agencies - Third Party P,90183324,Bondcare London (The Fountains),"2,138.00",23/07/2019
Delivery Units,Adults and Health,Other Agencies - Third Party P,90183325,Bondcare London (The Fountains),"1,221.71",23/07/2019
Delivery Units,Adults and Health,Other Agencies - Third Party P,90183326,Bondcare London (The Fountains),916.29,23/07/2019
Delivery Units,Adults and Health,Other Agencies - Third Party P,90183327,Bondcare London (The Fountains),"2,138.00",23/07/2019
Delivery Units,Adults and Health,Other Agencies - Third Party P,90183328,Bondcare London (The Fountains),"2,138.00",23/07/2019
Delivery Units,Adults and Health,Other Agencies - Third Party P,90183329,Bondcare London (The Fountains),"2,138.00",23/07/2019
Delivery Units,Adults and Health,Other Agencies - Third Party P,90182717,Contemplation Homes,"3,409.78",30/07/2019
Delivery Units,Adults and Health,Other Agencies - Third Party P,90179959,Lansglade Homes Limited,"2,635.50",29/07/2019
Delivery Units,Adults and Health,Other Agencies - Third Party P,90182789,Lansglade Homes Limited,"2,723.35",30/07/2019
Delivery Units,Adults and Health,Other Agencies - Third Party P,90182796,HC-One Oval LTD,"2,368.62",25/07/2019
Delivery Units,Adults and Health,Other Agencies - Third Party P,90180384,Alliance Care (Dales Homes) Limited,"3,642.86",17/07/2019
Delivery Units,Adults and Health,Other Agencies - Third Party P,90180385,Alliance Care (Dales Homes) Limited,"3,764.29",17/07/2019
Delivery Units,Adults and Health,Other Agencies - Third Party P,90180386,Alliance Care (Dales Homes) Limited,"3,642.86",17/07/2019
Delivery Units,Adults and Health,Other Agencies - Third Party P,90182741,Larchwood Care Homes(South)Lt,"3,400.00",22/07/2019
Delivery Units,Adults and Health,INV13913,90180245,East Anglia Care Homes Ltd (Halvergate H,"2,580.00",31/07/2019
Delivery Units,Adults and Health,INV13974,90180246,East Anglia Care Homes Ltd (Halvergate H,"2,580.00",31/07/2019
Delivery Units,Adults and Health,INV14027,90180247,East Anglia Care Homes Ltd (Halvergate H,"2,580.00",31/07/2019
Delivery Units,Adults and Health,INV14075,90180248,East Anglia Care Homes Ltd (Halvergate H,"2,580.00",31/07/2019
Delivery Units,Adults and Health,INV13861,90180249,East Anglia Care Homes Ltd (Halvergate H,"2,580.00",31/07/2019
Delivery Units,Adults and Health,Other Agencies - Third Party P,90183364,ROSEACRES CARE HOME LIMITED,"3,321.43",24/07/2019
Delivery Units,Adults and Health,Other Agencies - Third Party P,90183365,ROSEACRES CARE HOME LIMITED,"3,321.43",24/07/2019
Delivery Units,Adults and Health,Other Agencies - Third Party P,90183366,ROSEACRES CARE HOME LIMITED,"2,550.86",24/07/2019
Delivery Units,Adults and Health,Other Agencies - Third Party P,90183367,ROSEACRES CARE HOME LIMITED,"2,550.86",24/07/2019
Delivery Units,Adults and Health,Other Agencies - Third Party P,90183369,ROSEACRES CARE HOME LIMITED,"3,764.29",24/07/2019
Delivery Units,Adults and Health,Other Agencies - Third Party P,90183370,ROSEACRES CARE HOME LIMITED,"2,373.71",24/07/2019
Delivery Units,Adults and Health,Other Agencies - Third Party P,90183371,ROSEACRES CARE HOME LIMITED,"2,550.86",24/07/2019
Delivery Units,Adults and Health,Other Agencies - Third Party P,90183372,ROSEACRES CARE HOME LIMITED,"2,550.86",24/07/2019
Delivery Units,Adults and Health,Other Agencies - Third Party P,90183373,ROSEACRES CARE HOME LIMITED,"2,892.13",24/07/2019
Delivery Units,Adults and Health,Other Agencies - Third Party P,90183375,ROSEACRES CARE HOME LIMITED,"3,321.43",24/07/2019
Delivery Units,Adults and Health,Other Agencies - Third Party P,90183376,ROSEACRES CARE HOME LIMITED,"2,550.86",24/07/2019
Delivery Units,Adults and Health,Other Agencies - Third Party P,90183377,ROSEACRES CARE HOME LIMITED,"3,321.43",24/07/2019
Delivery Units,Adults and Health,Other Agencies - Third Party P,90183379,ROSEACRES CARE HOME LIMITED,"3,321.43",24/07/2019
Delivery Units,Adults and Health,Other Agencies - Third Party P,90185395,ROSEACRES CARE HOME LIMITED,"1,510.77",30/07/2019
Delivery Units,Adults and Health,Other Agencies - Third Party P,90179956,NIGHTINGALE HOUSE,"2,359.07",11/07/2019
Delivery Units,Adults and Health,Other Agencies - Third Party P,90179957,NIGHTINGALE HOUSE,"2,359.07",11/07/2019
Delivery Units,Adults and Health,Other Agencies - Third Party P,90179958,NIGHTINGALE HOUSE,"2,972.91",11/07/2019
Delivery Units,Adults and Health,Other Agencies - Third Party P,90181775,NIGHTINGALE HOUSE,"2,359.07",22/07/2019
Delivery Units,Adults and Health,Other Agencies - Third Party P,90181776,NIGHTINGALE HOUSE,693.68,22/07/2019
Delivery Units,Adults and Health,Other Agencies - Third Party P,90181777,NIGHTINGALE HOUSE,"3,072.01",22/07/2019
Delivery Units,Adults and Health,Other Agencies - Third Party P,90177896,ELEANOR PALMER TRUST NO 2 A/C.,"3,214.29",01/07/2019
Delivery Units,Adults and Health,Other Agencies - Third Party P,90177897,ELEANOR PALMER TRUST NO 2 A/C.,214.29,01/07/2019
Delivery Units,Adults and Health,Other Agencies - Third Party P,90183285,ELEANOR PALMER TRUST NO 2 A/C.,"3,321.43",23/07/2019
Delivery Units,Adults and Health,Other Agencies - Third Party P,90183286,ELEANOR PALMER TRUST NO 2 A/C.,"3,396.49",23/07/2019
Delivery Units,Adults and Health,Other Agencies - Third Party P,90183287,ELEANOR PALMER TRUST NO 2 A/C.,"3,321.43",23/07/2019
Delivery Units,Adults and Health,Other Agencies - Third Party P,90183288,ELEANOR PALMER TRUST NO 2 A/C.,"3,321.43",23/07/2019
Delivery Units,Adults and Health,Other Agencies - Third Party P,90183289,ELEANOR PALMER TRUST NO 2 A/C.,"3,396.49",23/07/2019
Delivery Units,Adults and Health,Other Agencies - Third Party P,90183290,ELEANOR PALMER TRUST NO 2 A/C.,"2,604.31",23/07/2019
Delivery Units,Adults and Health,Other Agencies - Third Party P,90183291,ELEANOR PALMER TRUST NO 2 A/C.,"3,396.49",23/07/2019
Delivery Units,Adults and Health,Other Agencies - Third Party P,90183292,ELEANOR PALMER TRUST NO 2 A/C.,"2,550.86",23/07/2019
Delivery Units,Adults and Health,Other Agencies - Third Party P,90183293,ELEANOR PALMER TRUST NO 2 A/C.,"2,392.31",23/07/2019
Delivery Units,Adults and Health,Other Agencies - Third Party P,90183294,ELEANOR PALMER TRUST NO 2 A/C.,"3,396.49",23/07/2019
Delivery Units,Adults and Health,Other Agencies - Third Party P,90183295,ELEANOR PALMER TRUST NO 2 A/C.,"3,396.49",23/07/2019
Delivery Units,Adults and Health,Other Agencies - Third Party P,90183296,ELEANOR PALMER TRUST NO 2 A/C.,"3,396.49",23/07/2019
Delivery Units,Adults and Health,Other Agencies - Third Party P,90183297,ELEANOR PALMER TRUST NO 2 A/C.,"2,392.31",23/07/2019
Delivery Units,Adults and Health,Other Agencies - Third Party P,90183298,ELEANOR PALMER TRUST NO 2 A/C.,"2,604.31",23/07/2019
Delivery Units,Adults and Health,Other Agencies - Third Party P,90183299,ELEANOR PALMER TRUST NO 2 A/C.,"3,321.43",23/07/2019
Delivery Units,Adults and Health,Other Agencies - Third Party P,90183300,ELEANOR PALMER TRUST NO 2 A/C.,"3,321.43",23/07/2019
Delivery Units,Adults and Health,Other Agencies - Third Party P,90183301,ELEANOR PALMER TRUST NO 2 A/C.,"3,396.49",23/07/2019
Delivery Units,Adults and Health,Other Agencies - Third Party P,90183330,ELEANOR PALMER TRUST NO 2 A/C.,"3,321.43",23/07/2019
Delivery Units,Adults and Health,Other Agencies - Third Party P,90177894,ELM PARK LODGE,"3,137.91",04/07/2019
Delivery Units,Adults and Health,Other Agencies - Third Party P,90175088,SPANISH AND PORTUGUESE JEWISH,690.29,02/07/2019
Delivery Units,Adults and Health,Other Agencies - Third Party P,90184433,TORRINGTON HOMES,"2,369.79",24/07/2019
Delivery Units,Adults and Health,Other Agencies - Third Party P,90184435,TORRINGTON HOMES,"2,249.45",24/07/2019
Delivery Units,Adults and Health,Other Agencies - Third Party P,90184436,TORRINGTON HOMES,"2,448.78",24/07/2019
Delivery Units,Adults and Health,Other Agencies - Third Party P,90182709,THE GRANGE,"2,600.00",22/07/2019
Delivery Units,Adults and Health,Other Agencies - Third Party P,90182711,THE GRANGE,"2,350.08",22/07/2019
Delivery Units,Adults and Health,Other Agencies - Third Party P,90185341,ELMHURST RESIDENTIAL HOME,"16,150.00",30/07/2019
Delivery Units,Adults and Health,Other Agencies - Third Party P,90185344,ELMHURST RESIDENTIAL HOME,"10,239.63",30/07/2019
Delivery Units,Adults and Health,Other Agencies - Third Party P,90185345,ELMHURST RESIDENTIAL HOME,"14,814.28",30/07/2019
Delivery Units,Adults and Health,Other Agencies - Third Party P,90185347,ELMHURST RESIDENTIAL HOME,"11,171.43",30/07/2019
Delivery Units,Adults and Health,Other Agencies - Third Party P,90185351,ELMHURST RESIDENTIAL HOME,"10,239.63",30/07/2019
Delivery Units,Adults and Health,Other Agencies - Third Party P,90185352,ELMHURST RESIDENTIAL HOME,"11,328.57",30/07/2019
Delivery Units,Adults and Health,Other Agencies - Third Party P,90185353,ELMHURST RESIDENTIAL HOME,"10,457.14",30/07/2019
Delivery Units,Adults and Health,Other Agencies - Third Party P,90185354,ELMHURST RESIDENTIAL HOME,"14,814.28",30/07/2019
Delivery Units,Adults and Health,Other Agencies - Third Party P,90185357,ELMHURST RESIDENTIAL HOME,"11,328.57",30/07/2019
Delivery Units,Adults and Health,Other Agencies - Third Party P,90181267,JEWISH CARE,"2,480.92",18/07/2019
Delivery Units,Adults and Health,Other Agencies - Third Party P,90181270,JEWISH CARE,"2,480.92",18/07/2019
Delivery Units,Adults and Health,Other Agencies - Third Party P,90181273,JEWISH CARE,"2,484.56",18/07/2019
Delivery Units,Adults and Health,Other Agencies - Third Party P,90181275,JEWISH CARE,"2,296.24",18/07/2019
Delivery Units,Adults and Health,Other Agencies - Third Party P,90181278,JEWISH CARE,"2,296.24",18/07/2019
Delivery Units,Adults and Health,Other Agencies - Third Party P,90181279,JEWISH CARE,"2,296.24",18/07/2019
Delivery Units,Adults and Health,Other Agencies - Third Party P,90181280,JEWISH CARE,"2,479.68",18/07/2019
Delivery Units,Adults and Health,Other Agencies - Third Party P,90181282,JEWISH CARE,"2,482.36",18/07/2019
Delivery Units,Adults and Health,Other Agencies - Third Party P,90181283,JEWISH CARE,"2,482.36",18/07/2019
Delivery Units,Adults and Health,Other Agencies - Third Party P,90181284,JEWISH CARE,"2,482.36",18/07/2019
Delivery Units,Adults and Health,Other Agencies - Third Party P,90181285,JEWISH CARE,"2,479.68",18/07/2019
Delivery Units,Adults and Health,Other Agencies - Third Party P,90181286,JEWISH CARE,"2,296.24",18/07/2019
Delivery Units,Adults and Health,Other Agencies - Third Party P,90181290,JEWISH CARE,"2,482.36",18/07/2019
Delivery Units,Adults and Health,Other Agencies - Third Party P,90181292,JEWISH CARE,"1,773.11",18/07/2019
Delivery Units,Adults and Health,Other Agencies - Third Party P,90181293,JEWISH CARE,"2,482.36",18/07/2019
Delivery Units,Adults and Health,Other Agencies - Third Party P,90181298,JEWISH CARE,"2,440.16",18/07/2019
Delivery Units,Adults and Health,Other Agencies - Third Party P,90181299,JEWISH CARE,"2,484.56",18/07/2019
Delivery Units,Adults and Health,Other Agencies - Third Party P,90181300,JEWISH CARE,"2,484.56",18/07/2019
Delivery Units,Adults and Health,Other Agencies - Third Party P,90181301,JEWISH CARE,"2,296.24",18/07/2019
Delivery Units,Adults and Health,Other Agencies - Third Party P,90181302,JEWISH CARE,"2,480.92",18/07/2019
Delivery Units,Adults and Health,Other Agencies - Third Party P,90181303,JEWISH CARE,"2,484.56",18/07/2019
Delivery Units,Adults and Health,Other Agencies - Third Party P,90181306,JEWISH CARE,"2,484.56",18/07/2019
Delivery Units,Adults and Health,Other Agencies - Third Party P,90181307,JEWISH CARE,"2,296.24",18/07/2019
Delivery Units,Adults and Health,Other Agencies - Third Party P,90181309,JEWISH CARE,"4,352.96",18/07/2019
Delivery Units,Adults and Health,Other Agencies - Third Party P,90181310,JEWISH CARE,"2,479.68",18/07/2019
Delivery Units,Adults and Health,Other Agencies - Third Party P,90181311,JEWISH CARE,"2,480.92",18/07/2019
Delivery Units,Adults and Health,Other Agencies - Third Party P,90181312,JEWISH CARE,"2,480.92",18/07/2019
Delivery Units,Adults and Health,Other Agencies - Third Party P,90181313,JEWISH CARE,"2,479.68",18/07/2019
Delivery Units,Adults and Health,Other Agencies - Third Party P,90181314,JEWISH CARE,"4,265.48",18/07/2019
Delivery Units,Adults and Health,Other Agencies - Third Party P,90181316,JEWISH CARE,"2,280.32",18/07/2019
Delivery Units,Adults and Health,Other Agencies - Third Party P,90181317,JEWISH CARE,"2,296.24",18/07/2019
Delivery Units,Adults and Health,Other Agencies - Third Party P,90181318,JEWISH CARE,"2,156.80",18/07/2019
Delivery Units,Adults and Health,Other Agencies - Third Party P,90181321,JEWISH CARE,"2,480.92",18/07/2019
Delivery Units,Adults and Health,Other Agencies - Third Party P,90181322,JEWISH CARE,"2,482.36",18/07/2019
Delivery Units,Adults and Health,Other Agencies - Third Party P,90181323,JEWISH CARE,"2,482.36",18/07/2019
Delivery Units,Adults and Health,Other Agencies - Third Party P,90181324,JEWISH CARE,"2,296.24",18/07/2019
Delivery Units,Adults and Health,Other Agencies - Third Party P,90181327,JEWISH CARE,"2,482.36",18/07/2019
Delivery Units,Adults and Health,Other Agencies - Third Party P,90181330,JEWISH CARE,"2,296.24",18/07/2019
Delivery Units,Adults and Health,Other Agencies - Third Party P,90181338,JEWISH CARE,"2,296.24",18/07/2019
Delivery Units,Adults and Health,Other Agencies - Third Party P,90181339,JEWISH CARE,"2,296.24",18/07/2019
Delivery Units,Adults and Health,Other Agencies - Third Party P,90181340,JEWISH CARE,"2,480.92",18/07/2019
Delivery Units,Adults and Health,Other Agencies - Third Party P,90181343,JEWISH CARE,-974.65,18/07/2019
Delivery Units,Adults and Health,Other Agencies - Third Party P,90181345,JEWISH CARE,"2,484.56",18/07/2019
Delivery Units,Adults and Health,Other Agencies - Third Party P,90181347,JEWISH CARE,"2,479.68",18/07/2019
Delivery Units,Adults and Health,Other Agencies - Third Party P,90181349,JEWISH CARE,"2,482.36",18/07/2019
Delivery Units,Adults and Health,Other Agencies - Third Party P,90181352,JEWISH CARE,"2,296.24",18/07/2019
Delivery Units,Adults and Health,Other Agencies - Third Party P,90181353,JEWISH CARE,"2,296.24",18/07/2019
Delivery Units,Adults and Health,Other Agencies - Third Party P,90181354,JEWISH CARE,"2,479.68",18/07/2019
Delivery Units,Adults and Health,Other Agencies - Third Party P,90181355,JEWISH CARE,"2,480.92",18/07/2019
Delivery Units,Adults and Health,Other Agencies - Third Party P,90181357,JEWISH CARE,"2,649.36",18/07/2019
Delivery Units,Adults and Health,Other Agencies - Third Party P,90181358,JEWISH CARE,"2,480.92",18/07/2019
Delivery Units,Adults and Health,Other Agencies - Third Party P,90181360,JEWISH CARE,"2,479.68",18/07/2019
Delivery Units,Adults and Health,Other Agencies - Third Party P,90181361,JEWISH CARE,"2,479.68",18/07/2019
Delivery Units,Adults and Health,Other Agencies - Third Party P,90181362,JEWISH CARE,"2,482.36",18/07/2019
Delivery Units,Adults and Health,Other Agencies - Third Party P,90181363,JEWISH CARE,"2,484.56",18/07/2019
Delivery Units,Adults and Health,Other Agencies - Third Party P,90181365,JEWISH CARE,"2,484.56",18/07/2019
Delivery Units,Adults and Health,Other Agencies - Third Party P,90181367,JEWISH CARE,"2,296.24",18/07/2019
Delivery Units,Adults and Health,Other Agencies - Third Party P,90181368,JEWISH CARE,708.83,18/07/2019
Delivery Units,Adults and Health,Other Agencies - Third Party P,90181369,JEWISH CARE,"4,922.72",18/07/2019
Delivery Units,Adults and Health,Other Agencies - Third Party P,90181373,JEWISH CARE,"2,296.24",18/07/2019
Delivery Units,Adults and Health,Other Agencies - Third Party P,90181376,JEWISH CARE,"2,480.92",18/07/2019
Delivery Units,Adults and Health,Other Agencies - Third Party P,90181379,JEWISH CARE,"2,479.68",18/07/2019
Delivery Units,Adults and Health,Other Agencies - Third Party P,90181380,JEWISH CARE,"2,479.68",18/07/2019
Delivery Units,Adults and Health,Other Agencies - Third Party P,90181381,JEWISH CARE,"2,484.56",18/07/2019
Delivery Units,Adults and Health,Other Agencies - Third Party P,90181382,JEWISH CARE,"2,482.36",18/07/2019
Delivery Units,Adults and Health,Other Agencies - Third Party P,90181385,JEWISH CARE,"2,484.56",18/07/2019
Delivery Units,Adults and Health,Other Agencies - Third Party P,90181386,JEWISH CARE,"4,825.16",18/07/2019
Delivery Units,Adults and Health,Other Agencies - Third Party P,90181387,JEWISH CARE,"2,480.92",18/07/2019
Delivery Units,Adults and Health,Other Agencies - Third Party P,90184975,JEWISH CARE,"9,878.25",29/07/2019
Delivery Units,Adults and Health,Other Agencies - Third Party P,90184977,JEWISH CARE,977.28,29/07/2019
Delivery Units,Adults and Health,Other Agencies - Third Party P,90178723,CLOVELLY HOUSE RESID. HOME LTD,"2,571.43",04/07/2019
Delivery Units,Adults and Health,Other Agencies - Third Party P,90180372,CLOVELLY HOUSE RESID. HOME LTD,"2,035.71",15/07/2019
Delivery Units,Adults and Health,Other Agencies - Third Party P,90183169,CLOVELLY HOUSE RESID. HOME LTD,"3,000.00",23/07/2019
Delivery Units,Adults and Health,Other Agencies - Third Party P,90183173,CLOVELLY HOUSE RESID. HOME LTD,"2,600.00",23/07/2019
Delivery Units,Adults and Health,Other Agencies - Third Party P,90183175,CLOVELLY HOUSE RESID. HOME LTD,"2,350.08",23/07/2019
Delivery Units,Adults and Health,Other Agencies - Third Party P,90183176,CLOVELLY HOUSE RESID. HOME LTD,"2,350.08",23/07/2019
Delivery Units,Adults and Health,Other Agencies - Third Party P,90183177,CLOVELLY HOUSE RESID. HOME LTD,"2,780.00",23/07/2019
Delivery Units,Adults and Health,Other Agencies - Third Party P,90183181,CLOVELLY HOUSE RESID. HOME LTD,"2,600.00",23/07/2019
Delivery Units,Adults and Health,Other Agencies - Third Party P,90183182,CLOVELLY HOUSE RESID. HOME LTD,"2,780.00",23/07/2019
Delivery Units,Adults and Health,Other Agencies - Third Party P,90183317,FINBOND LIMITED,"3,321.43",23/07/2019
Delivery Units,Adults and Health,Other Agencies - Third Party P,90183318,FINBOND LIMITED,"3,214.29",23/07/2019
Delivery Units,Adults and Health,Other Agencies - Third Party P,90183319,FINBOND LIMITED,"3,321.43",23/07/2019
Delivery Units,Adults and Health,Other Agencies - Third Party P,90183320,FINBOND LIMITED,"3,214.29",23/07/2019
Delivery Units,Adults and Health,Other Agencies - Third Party P,90183321,FINBOND LIMITED,"3,321.43",23/07/2019
Delivery Units,Adults and Health,Other Agencies - Third Party P,90179535,QUANTUM CARE LIMITED,"3,992.00",09/07/2019
Delivery Units,Adults and Health,Other Agencies - Third Party P,90179536,QUANTUM CARE LIMITED,"11,976.00",09/07/2019
Delivery Units,Adults and Health,Other Agencies - Third Party P,90180237,QUANTUM CARE LIMITED,"4,071.43",15/07/2019
Delivery Units,Adults and Health,Other Agencies - Third Party P,90180373,QUANTUM CARE LIMITED,"3,214.29",15/07/2019
Delivery Units,Adults and Health,Other Agencies - Third Party P,90184809,QUANTUM CARE LIMITED,"3,321.43",25/07/2019
Delivery Units,Adults and Health,Other Agencies - Third Party P,90179187,CEDARS NURSING HOME,"4,285.71",08/07/2019
Delivery Units,Adults and Health,Other Agencies - Third Party P,90182776,CEDARS NURSING HOME,"4,428.57",22/07/2019
Delivery Units,Adults and Health,Other Agencies - Third Party P,90179132,CATHERINE LODGE,"3,476.43",11/07/2019
Delivery Units,Adults and Health,Other Agencies - Third Party P,90179135,CATHERINE LODGE,"2,601.87",11/07/2019
Delivery Units,Adults and Health,Other Agencies - Third Party P,90179138,CATHERINE LODGE,"2,601.87",11/07/2019
Delivery Units,Adults and Health,Other Agencies - Third Party P,90179140,CATHERINE LODGE,"2,601.87",11/07/2019
Delivery Units,Adults and Health,Other Agencies - Third Party P,90179158,CATHERINE LODGE,"4,492.86",11/07/2019
Delivery Units,Adults and Health,Other Agencies - Third Party P,90184821,BUPA NURSING HOMES LTD - ARKLEY,"2,167.68",25/07/2019
Delivery Units,Adults and Health,Other Agencies - Third Party P,90184823,BUPA NURSING HOMES LTD - ARKLEY,"2,218.04",25/07/2019
Delivery Units,Adults and Health,Other Agencies - Third Party P,90183302,SUNRIDGE HOUSING ASSOCIATION LTD,"2,898.19",23/07/2019
Delivery Units,Adults and Health,Other Agencies - Third Party P,90183303,SUNRIDGE HOUSING ASSOCIATION LTD,"2,989.58",23/07/2019
Delivery Units,Adults and Health,Other Agencies - Third Party P,90179954,NAZARETH HOUSE,"1,426.83",11/07/2019
Delivery Units,Adults and Health,Other Agencies - Third Party P,90181259,NAZARETH HOUSE,"2,304.00",18/07/2019
Delivery Units,Adults and Health,Other Agencies - Third Party P,90181260,NAZARETH HOUSE,"2,350.08",18/07/2019
Delivery Units,Adults and Health,Other Agencies - Third Party P,90182726,NAZARETH HOUSE,"2,186.88",22/07/2019
Delivery Units,Adults and Health,Other Agencies - Third Party P,90182727,NAZARETH HOUSE,"2,186.88",22/07/2019
Delivery Units,Adults and Health,Other Agencies - Third Party P,90182728,NAZARETH HOUSE,"2,350.08",22/07/2019
Delivery Units,Adults and Health,Other Agencies - Third Party P,90182729,NAZARETH HOUSE,"2,186.88",22/07/2019
Delivery Units,Adults and Health,Other Agencies - Third Party P,90182730,NAZARETH HOUSE,"2,186.88",22/07/2019
Delivery Units,Adults and Health,Other Agencies - Third Party P,90182731,NAZARETH HOUSE,"2,186.88",22/07/2019
Delivery Units,Adults and Health,Other Agencies - Third Party P,90182732,NAZARETH HOUSE,"2,186.88",22/07/2019
Delivery Units,Adults and Health,Other Agencies - Third Party P,90182734,NAZARETH HOUSE,"2,650.40",22/07/2019
Delivery Units,Adults and Health,Other Agencies - Third Party P,90182735,NAZARETH HOUSE,"2,186.88",22/07/2019
Delivery Units,Adults and Health,Other Agencies - Third Party P,90182736,NAZARETH HOUSE,"2,186.88",22/07/2019
Delivery Units,Adults and Health,Other Agencies - Third Party P,90182737,NAZARETH HOUSE,"2,186.88",22/07/2019
Delivery Units,Adults and Health,Other Agencies - Third Party P,90182738,NAZARETH HOUSE,"2,186.88",22/07/2019
Delivery Units,Adults and Health,Other Agencies - Third Party P,90182739,NAZARETH HOUSE,"2,186.88",22/07/2019
Delivery Units,Adults and Health,Other Agencies - Third Party P,90182740,NAZARETH HOUSE,"2,186.88",22/07/2019
Delivery Units,Adults and Health,Other Agencies - Third Party P,90185396,NAZARETH HOUSE,"2,186.88",30/07/2019
Delivery Units,Adults and Health,Other Agencies - Third Party P,90179109,Kestrel Grove Nursing Home,"3,060.14",08/07/2019
Delivery Units,Adults and Health,Other Agencies - Third Party P,90177804,FRIARY LODGE,"3,214.28",04/07/2019
Delivery Units,Adults and Health,Other Agencies - Third Party P,90177805,FRIARY LODGE,"3,214.28",04/07/2019
Delivery Units,Adults and Health,Other Agencies - Third Party P,90183186,THE WOODSIDE HOME,"2,186.88",25/07/2019
Delivery Units,Adults and Health,Other Agencies - Third Party P,90183188,THE WOODSIDE HOME,"2,186.88",25/07/2019
Delivery Units,Adults and Health,Other Agencies - Third Party P,90183189,THE WOODSIDE HOME,"2,186.88",25/07/2019
Delivery Units,Adults and Health,Other Agencies - Third Party P,90179011,WESTMINSTER HEALTH CARE LTD,"3,621.21",11/07/2019
Delivery Units,Adults and Health,Other Agencies - Third Party P,90183284,METHODIST HOMES FOR THE AGED,"2,631.76",23/07/2019
Delivery Units,Adults and Health,Other Agencies - Third Party P,90184840,METHODIST HOMES FOR THE AGED,"4,000.00",25/07/2019
Delivery Units,Adults and Health,Other Agencies - Third Party P,90180232,THE LIMES RESIDENTIAL HOME,"2,601.87",18/07/2019
Delivery Units,Adults and Health,Other Agencies - Third Party P,90180368,THE LIMES RESIDENTIAL HOME,"2,098.29",15/07/2019
Delivery Units,Adults and Health,Other Agencies - Third Party P,90182802,THE LIMES RESIDENTIAL HOME,"2,601.87",22/07/2019
Delivery Units,Adults and Health,Other Agencies - Third Party P,90182803,THE LIMES RESIDENTIAL HOME,"2,601.87",22/07/2019
Delivery Units,Adults and Health,Other Agencies - Third Party P,90182804,THE LIMES RESIDENTIAL HOME,"2,421.19",22/07/2019
Delivery Units,Adults and Health,Other Agencies - Third Party P,90182805,THE LIMES RESIDENTIAL HOME,"2,601.87",22/07/2019
Delivery Units,Adults and Health,Other Agencies - Third Party P,90182806,THE LIMES RESIDENTIAL HOME,"2,421.19",22/07/2019
Delivery Units,Adults and Health,Other Agencies - Third Party P,90182807,THE LIMES RESIDENTIAL HOME,"2,878.57",22/07/2019
Delivery Units,Adults and Health,Other Agencies - Third Party P,90182809,THE LIMES RESIDENTIAL HOME,"2,601.87",22/07/2019
Delivery Units,Adults and Health,Other Agencies - Third Party P,90182810,THE LIMES RESIDENTIAL HOME,"2,601.87",22/07/2019
Delivery Units,Adults and Health,Other Agencies - Third Party P,90182811,THE LIMES RESIDENTIAL HOME,"2,550.86",22/07/2019
Delivery Units,Adults and Health,Other Agencies - Third Party P,90182812,THE LIMES RESIDENTIAL HOME,"2,601.87",22/07/2019
Delivery Units,Adults and Health,Other Agencies - Third Party P,90182813,THE LIMES RESIDENTIAL HOME,"2,550.86",22/07/2019
Delivery Units,Adults and Health,Other Agencies - Third Party P,90182814,THE LIMES RESIDENTIAL HOME,"2,601.87",22/07/2019
Delivery Units,Adults and Health,Other Agencies - Third Party P,90182815,THE LIMES RESIDENTIAL HOME,"2,601.87",22/07/2019
Delivery Units,Adults and Health,Other Agencies - Third Party P,90185277,THE LIMES RESIDENTIAL HOME,"2,601.87",30/07/2019
Delivery Units,Adults and Health,Other Agencies - Third Party P,90182167,SCIMITAR CARE HOTELS PLC,"3,764.29",30/07/2019
Delivery Units,Adults and Health,Other Agencies - Third Party P,90182168,SCIMITAR CARE HOTELS PLC,"4,207.14",30/07/2019
Delivery Units,Adults and Health,Other Agencies - Third Party P,90182752,SCIMITAR CARE HOTELS PLC,"3,985.71",30/07/2019
Delivery Units,Adults and Health,Other Agencies - Third Party P,90182753,SCIMITAR CARE HOTELS PLC,"3,421.07",30/07/2019
Delivery Units,Adults and Health,Other Agencies - Third Party P,90178143,MEERA NURSING HOME LIMITED,"2,514.29",01/07/2019
Delivery Units,Adults and Health,Other Agencies - Third Party P,90179539,GREEN TREES,"3,410.00",09/07/2019
Delivery Units,Adults and Health,Other Agencies - Third Party P,90179564,GREEN TREES,"3,300.00",09/07/2019
Delivery Units,Adults and Health,Other Agencies - Third Party P,90179565,GREEN TREES,"3,300.00",09/07/2019
Delivery Units,Adults and Health,Other Agencies - Third Party P,90184464,FREMANTLE TRUST,"1,130.00",24/07/2019
Delivery Units,Adults and Health,Other Agencies - Third Party P,90184465,FREMANTLE TRUST,587.52,24/07/2019
Delivery Units,Adults and Health,Other Agencies - Third Party P,90184466,FREMANTLE TRUST,194.99,24/07/2019
Delivery Units,Adults and Health,Other Agencies - Third Party P,90184467,FREMANTLE TRUST,"1,500.03",24/07/2019
Delivery Units,Adults and Health,Other Agencies - Third Party P,90184474,FREMANTLE TRUST,"1,142.00",25/07/2019
Delivery Units,Adults and Health,Other Agencies - Third Party P,90184475,FREMANTLE TRUST,"1,048.00",25/07/2019
Delivery Units,Adults and Health,Other Agencies - Third Party P,90184477,FREMANTLE TRUST,"1,048.00",25/07/2019
Delivery Units,Adults and Health,Other Agencies - Third Party P,90184478,FREMANTLE TRUST,"1,048.00",25/07/2019
Delivery Units,Adults and Health,Other Agencies - Third Party P,90184479,FREMANTLE TRUST,"1,142.00",25/07/2019
Delivery Units,Adults and Health,Other Agencies - Third Party P,90184481,FREMANTLE TRUST,"1,048.00",25/07/2019
Delivery Units,Adults and Health,Other Agencies - Third Party P,90184482,FREMANTLE TRUST,"1,048.00",25/07/2019
Delivery Units,Adults and Health,Other Agencies - Third Party P,90184483,FREMANTLE TRUST,"1,142.00",25/07/2019
Delivery Units,Adults and Health,Other Agencies - Third Party P,90184484,FREMANTLE TRUST,"1,048.00",25/07/2019
Delivery Units,Adults and Health,Other Agencies - Third Party P,90184485,FREMANTLE TRUST,"1,142.00",25/07/2019
Delivery Units,Adults and Health,Other Agencies - Third Party P,90184486,FREMANTLE TRUST,"1,048.00",25/07/2019
Delivery Units,Adults and Health,Other Agencies - Third Party P,90184487,FREMANTLE TRUST,"1,142.00",25/07/2019
Delivery Units,Adults and Health,Other Agencies - Third Party P,90184489,FREMANTLE TRUST,"1,142.00",25/07/2019
Delivery Units,Adults and Health,Other Agencies - Third Party P,90184490,FREMANTLE TRUST,"1,142.00",25/07/2019
Delivery Units,Adults and Health,Other Agencies - Third Party P,90184491,FREMANTLE TRUST,"1,048.00",25/07/2019
Delivery Units,Adults and Health,Other Agencies - Third Party P,90184492,FREMANTLE TRUST,"1,048.00",25/07/2019
Delivery Units,Adults and Health,Other Agencies - Third Party P,90184493,FREMANTLE TRUST,"1,142.00",25/07/2019
Delivery Units,Adults and Health,Other Agencies - Third Party P,90184494,FREMANTLE TRUST,"1,142.00",25/07/2019
Delivery Units,Adults and Health,Other Agencies - Third Party P,90184495,FREMANTLE TRUST,"1,048.00",25/07/2019
Delivery Units,Adults and Health,Other Agencies - Third Party P,90184496,FREMANTLE TRUST,"1,048.00",25/07/2019
Delivery Units,Adults and Health,Other Agencies - Third Party P,90184498,FREMANTLE TRUST,"1,142.00",25/07/2019
Delivery Units,Adults and Health,Other Agencies - Third Party P,90184499,FREMANTLE TRUST,"1,048.00",25/07/2019
Delivery Units,Adults and Health,Other Agencies - Third Party P,90184501,FREMANTLE TRUST,"1,142.00",25/07/2019
Delivery Units,Adults and Health,Other Agencies - Third Party P,90184502,FREMANTLE TRUST,"1,048.00",25/07/2019
Delivery Units,Adults and Health,Other Agencies - Third Party P,90184503,FREMANTLE TRUST,"1,048.00",25/07/2019
Delivery Units,Adults and Health,Other Agencies - Third Party P,90184504,FREMANTLE TRUST,"1,048.00",25/07/2019
Delivery Units,Adults and Health,Other Agencies - Third Party P,90184505,FREMANTLE TRUST,"1,142.00",25/07/2019
Delivery Units,Adults and Health,Other Agencies - Third Party P,90184507,FREMANTLE TRUST,"1,048.00",25/07/2019
Delivery Units,Adults and Health,Other Agencies - Third Party P,90184508,FREMANTLE TRUST,"1,142.00",25/07/2019
Delivery Units,Adults and Health,Other Agencies - Third Party P,90184509,FREMANTLE TRUST,"1,142.00",25/07/2019
Delivery Units,Adults and Health,Other Agencies - Third Party P,90184510,FREMANTLE TRUST,"1,142.00",25/07/2019
Delivery Units,Adults and Health,Other Agencies - Third Party P,90184513,FREMANTLE TRUST,"1,048.00",25/07/2019
Delivery Units,Adults and Health,Other Agencies - Third Party P,90184514,FREMANTLE TRUST,"1,142.00",25/07/2019
Delivery Units,Adults and Health,Other Agencies - Third Party P,90184515,FREMANTLE TRUST,"1,048.00",25/07/2019
Delivery Units,Adults and Health,Other Agencies - Third Party P,90184517,FREMANTLE TRUST,"1,142.00",25/07/2019
Delivery Units,Adults and Health,Other Agencies - Third Party P,90184518,FREMANTLE TRUST,"1,142.00",25/07/2019
Delivery Units,Adults and Health,Other Agencies - Third Party P,90184520,FREMANTLE TRUST,"1,048.00",25/07/2019
Delivery Units,Adults and Health,Other Agencies - Third Party P,90184521,FREMANTLE TRUST,"1,142.00",25/07/2019
Delivery Units,Adults and Health,Other Agencies - Third Party P,90184522,FREMANTLE TRUST,"1,142.00",25/07/2019
Delivery Units,Adults and Health,Other Agencies - Third Party P,90184525,FREMANTLE TRUST,"1,048.00",25/07/2019
Delivery Units,Adults and Health,Other Agencies - Third Party P,90184527,FREMANTLE TRUST,"1,048.00",25/07/2019
Delivery Units,Adults and Health,Other Agencies - Third Party P,90184528,FREMANTLE TRUST,"1,048.00",25/07/2019
Delivery Units,Adults and Health,Other Agencies - Third Party P,90184529,FREMANTLE TRUST,"1,142.00",25/07/2019
Delivery Units,Adults and Health,Other Agencies - Third Party P,90184530,FREMANTLE TRUST,"1,048.00",25/07/2019
Delivery Units,Adults and Health,Other Agencies - Third Party P,90184531,FREMANTLE TRUST,"1,142.00",25/07/2019
Delivery Units,Adults and Health,Other Agencies - Third Party P,90184532,FREMANTLE TRUST,"1,048.00",25/07/2019
Delivery Units,Adults and Health,Other Agencies - Third Party P,90184533,FREMANTLE TRUST,"1,142.00",25/07/2019
Delivery Units,Adults and Health,Other Agencies - Third Party P,90184534,FREMANTLE TRUST,"1,142.00",25/07/2019
Delivery Units,Adults and Health,Other Agencies - Third Party P,90184535,FREMANTLE TRUST,"1,142.00",25/07/2019
Delivery Units,Adults and Health,Other Agencies - Third Party P,90184536,FREMANTLE TRUST,"1,142.00",25/07/2019
Delivery Units,Adults and Health,Other Agencies - Third Party P,90184537,FREMANTLE TRUST,"1,142.00",25/07/2019
Delivery Units,Adults and Health,Other Agencies - Third Party P,90184538,FREMANTLE TRUST,"1,142.00",25/07/2019
Delivery Units,Adults and Health,Other Agencies - Third Party P,90184539,FREMANTLE TRUST,"1,142.00",25/07/2019
Delivery Units,Adults and Health,Other Agencies - Third Party P,90184540,FREMANTLE TRUST,"1,142.00",25/07/2019
Delivery Units,Adults and Health,Other Agencies - Third Party P,90184541,FREMANTLE TRUST,"1,048.00",25/07/2019
Delivery Units,Adults and Health,Other Agencies - Third Party P,90184542,FREMANTLE TRUST,"1,142.00",25/07/2019
Delivery Units,Adults and Health,Other Agencies - Third Party P,90184544,FREMANTLE TRUST,"1,048.00",25/07/2019
Delivery Units,Adults and Health,Other Agencies - Third Party P,90184546,FREMANTLE TRUST,"1,048.00",25/07/2019
Delivery Units,Adults and Health,Other Agencies - Third Party P,90184547,FREMANTLE TRUST,"2,096.00",25/07/2019
Delivery Units,Adults and Health,Other Agencies - Third Party P,90184548,FREMANTLE TRUST,"1,048.00",25/07/2019
Delivery Units,Adults and Health,Other Agencies - Third Party P,90184549,FREMANTLE TRUST,"1,048.00",25/07/2019
Delivery Units,Adults and Health,Other Agencies - Third Party P,90184550,FREMANTLE TRUST,"1,048.00",25/07/2019
Delivery Units,Adults and Health,Other Agencies - Third Party P,90184551,FREMANTLE TRUST,"1,048.00",25/07/2019
Delivery Units,Adults and Health,Other Agencies - Third Party P,90184553,FREMANTLE TRUST,"1,048.00",25/07/2019
Delivery Units,Adults and Health,Other Agencies - Third Party P,90184554,FREMANTLE TRUST,"1,048.00",25/07/2019
Delivery Units,Adults and Health,Other Agencies - Third Party P,90184555,FREMANTLE TRUST,"1,048.00",25/07/2019
Delivery Units,Adults and Health,Other Agencies - Third Party P,90184556,FREMANTLE TRUST,"1,048.00",25/07/2019
Delivery Units,Adults and Health,Other Agencies - Third Party P,90184557,FREMANTLE TRUST,"1,048.00",25/07/2019
Delivery Units,Adults and Health,Other Agencies - Third Party P,90184558,FREMANTLE TRUST,"1,048.00",25/07/2019
Delivery Units,Adults and Health,Other Agencies - Third Party P,90184560,FREMANTLE TRUST,"1,048.00",25/07/2019
Delivery Units,Adults and Health,Other Agencies - Third Party P,90184561,FREMANTLE TRUST,"1,048.00",25/07/2019
Delivery Units,Adults and Health,Other Agencies - Third Party P,90184562,FREMANTLE TRUST,"1,048.00",25/07/2019
Delivery Units,Adults and Health,Other Agencies - Third Party P,90184563,FREMANTLE TRUST,"1,048.00",25/07/2019
Delivery Units,Adults and Health,Other Agencies - Third Party P,90184564,FREMANTLE TRUST,"1,048.00",25/07/2019
Delivery Units,Adults and Health,Other Agencies - Third Party P,90184565,FREMANTLE TRUST,"1,048.00",25/07/2019
Delivery Units,Adults and Health,Other Agencies - Third Party P,90178985,BUPA CARE HOMES,"2,367.81",11/07/2019
Delivery Units,Adults and Health,Other Agencies - Third Party P,90178986,BUPA CARE HOMES,"2,505.51",11/07/2019
Delivery Units,Adults and Health,Other Agencies - Third Party P,90183306,BUPA CARE HOMES,"2,546.74",23/07/2019
Delivery Units,Adults and Health,Other Agencies - Third Party P,90182743,ANASTASIA LODGE,"3,600.00",22/07/2019
Delivery Units,Adults and Health,Other Agencies - Third Party P,90182749,ANASTASIA LODGE,"2,800.00",22/07/2019
Delivery Units,Adults and Health,Other Agencies - Third Party P,90179185,HILTON LODGE LTD.,"2,880.00",11/07/2019
Delivery Units,Adults and Health,Other Agencies - Third Party P,90179545,FOUR SEASONS HEALTH CARE,"2,400.00",09/07/2019
Delivery Units,Adults and Health,Other Agencies - Third Party P,90181784,VENTRY RESIDENTIAL CARE LTD,"2,517.94",22/07/2019
Delivery Units,Adults and Health,Other Agencies - Third Party P,90181785,VENTRY RESIDENTIAL CARE LTD,"3,000.00",22/07/2019
Delivery Units,Adults and Health,Other Agencies - Third Party P,90182712,B & M CARE,"2,249.45",22/07/2019
Delivery Units,Adults and Health,Other Agencies - Third Party P,90182761,B & M CARE,"-1,195.84",22/07/2019
Delivery Units,Adults and Health,Other Agencies - Third Party P,90182764,B & M CARE,"-1,195.84",22/07/2019
Delivery Units,Adults and Health,Other Agencies - Third Party P,90179558,SAGE NURSING HOME,"2,571.43",09/07/2019
Delivery Units,Adults and Health,Other Agencies - Third Party P,90179561,SAGE NURSING HOME,"2,592.86",09/07/2019
Delivery Units,Adults and Health,Other Agencies - Third Party P,90179563,SAGE NURSING HOME,"2,343.09",09/07/2019
Delivery Units,Adults and Health,Other Agencies - Third Party P,90184833,SAGE NURSING HOME,"2,657.14",31/07/2019
Delivery Units,Adults and Health,Other Agencies - Third Party P,90184836,SAGE NURSING HOME,"2,679.29",31/07/2019
Delivery Units,Adults and Health,Other Agencies - Third Party P,90184838,SAGE NURSING HOME,"2,421.19",31/07/2019
Delivery Units,Adults and Health,Other Agencies - Third Party P,90182825,APPLE TREE COURT CARE HOME,"3,764.29",22/07/2019
Delivery Units,Adults and Health,Other Agencies - Third Party P,90182826,APPLE TREE COURT CARE HOME,"3,764.29",22/07/2019
Delivery Units,Adults and Health,Other Agencies - Third Party P,90183277,R.M.B.I,"2,249.45",23/07/2019
Delivery Units,Adults and Health,Other Agencies - Third Party P,90182792,TENTERDEN HOUSE,"3,957.50",22/07/2019
Delivery Units,Adults and Health,Other Agencies - Third Party P,90177878,Ashfields Residential Care Home,"2,601.87",01/07/2019
Delivery Units,Adults and Health,Other Agencies - Third Party P,90177879,Ashfields Residential Care Home,"2,421.19",01/07/2019
Delivery Units,Adults and Health,Other Agencies - Third Party P,90178941,Ashfields Residential Care Home,"2,601.87",08/07/2019
Delivery Units,Adults and Health,Other Agencies - Third Party P,90179020,Ashfields Residential Care Home,"2,517.94",08/07/2019
Delivery Units,Adults and Health,Other Agencies - Third Party P,90181778,Ashfields Residential Care Home,"2,142.85",22/07/2019
Delivery Units,Adults and Health,Other Agencies - Third Party P,90181780,Ashfields Residential Care Home,"1,175.04",22/07/2019
Delivery Units,Adults and Health,Other Agencies - Third Party P,90181782,Ashfields Residential Care Home,"2,343.09",22/07/2019
Delivery Units,Adults and Health,Other Agencies - Third Party P,90181783,Ashfields Residential Care Home,"2,517.94",22/07/2019
Delivery Units,Adults and Health,Other Agencies - Third Party P,90181792,Ashfields Residential Care Home,214.29,22/07/2019
Delivery Units,Adults and Health,Other Agencies - Third Party P,90181793,Ashfields Residential Care Home,642.86,22/07/2019
Delivery Units,Adults and Health,Other Agencies - Third Party P,90182742,AUTUMN GARDENS,"3,160.00",22/07/2019
Delivery Units,Adults and Health,Other Agencies - Third Party P,90182744,AUTUMN GARDENS,"8,518.57",22/07/2019
Delivery Units,Adults and Health,Other Agencies - Third Party P,90182748,AUTUMN GARDENS,"2,880.00",22/07/2019
Delivery Units,Adults and Health,Other Agencies - Third Party P,90182172,ABBEY RAVENSCROFT PARK NURSING HOME,"3,321.43",22/07/2019
Delivery Units,Adults and Health,Other Agencies - Third Party P,90182173,ABBEY RAVENSCROFT PARK NURSING HOME,"3,321.43",22/07/2019
Delivery Units,Adults and Health,Other Agencies - Third Party P,90183339,CARLTON COURT (TLC GROUP),"2,249.45",23/07/2019
Delivery Units,Adults and Health,Other Agencies - Third Party P,90185292,ASHTON LODGE CARE CENTRE,"3,644.75",30/07/2019
Delivery Units,Adults and Health,Other Agencies - Third Party P,90180874,LIVABILITY,"3,180.00",17/07/2019
Delivery Units,Adults and Health,Other Agencies - Third Party P,90180875,LIVABILITY,"3,424.00",17/07/2019
Delivery Units,Adults and Health,Other Agencies - Third Party P,90181770,LIVABILITY,"3,180.00",22/07/2019
Delivery Units,Adults and Health,Other Agencies - Third Party P,90181772,LIVABILITY,"3,424.00",22/07/2019
Delivery Units,Adults and Health,Other Agencies - Third Party P,90182713,BIRCHWOOD GRANGE CARE HOME,"2,657.14",22/07/2019
Delivery Units,Adults and Health,Other Agencies - Third Party P,90178139,Belmont Lodge Care Centre,"2,327.14",01/07/2019
Delivery Units,Adults and Health,Other Agencies - Third Party P,90179159,Belmont Lodge Care Centre,"2,418.04",08/07/2019
Delivery Units,Adults and Health,Other Agencies - Third Party P,90179160,Belmont Lodge Care Centre,"2,418.04",08/07/2019
Delivery Units,Adults and Health,Other Agencies - Third Party P,90182718,Karuna Manor,"4,114.14",22/07/2019
Delivery Units,Adults and Health,Other Agencies - Third Party P,90182719,Karuna Manor,"4,207.14",22/07/2019
Delivery Units,Adults and Health,Other Agencies - Third Party P,90179970,Alexandra House (Runwood Homes),"2,189.70",11/07/2019
Delivery Units,Adults and Health,Other Agencies - Third Party P,90180377,The Windmill Care Home,"5,617.20",15/07/2019
Delivery Units,Adults and Health,Other Agencies - Third Party P,90183354,Sonnet Care Homes (Essex) Ltd,"4,871.43",25/07/2019
Delivery Units,Adults and Health,Other Agencies - Third Party P,90178686,GCH (Hertfordshire) Ltd T/A,"2,414.68",04/07/2019
Delivery Units,Adults and Health,Other Agencies - Third Party P,90185278,York Homes (Dorset) Ltd,"2,600.00",30/07/2019
Delivery Units,Adults and Health,Other Agencies - Third Party P,90178692,GCH (North London) t/a The Tudors,"2,300.00",04/07/2019
Delivery Units,Adults and Health,Other Agencies - Third Party P,90182798,GCH (North London) t/a The Tudors,"2,300.00",22/07/2019
Delivery Units,Adults and Health,Other Agencies - Third Party P,90182198,Wilton House Ltd,"2,621.01",22/07/2019
Delivery Units,Adults and Health,Other Agencies - Third Party P,90182210,Wilton House Ltd,"2,611.48",22/07/2019
Delivery Units,Adults and Health,Other Agencies - Third Party P,90178144,Royal Masonic Benevolent Institution,"11,075.56",18/07/2019
Delivery Units,Adults and Health,Other Agencies - Third Party P,90172815,South Coast Care Homes Ltd,"2,485.71",04/07/2019
Delivery Units,Adults and Health,Other Agencies - Third Party P,90172816,South Coast Care Homes Ltd,"2,568.57",04/07/2019
Delivery Units,Adults and Health,Other Agencies - Third Party P,90172817,South Coast Care Homes Ltd,"2,485.71",04/07/2019
Delivery Units,Adults and Health,Other Agencies - Third Party P,90185509,Amron Premier Care,"2,508.90",31/07/2019
Delivery Units,Adults and Health,Other Agencies - Third Party P,90185517,Amron Premier Care,"2,592.53",31/07/2019
Delivery Units,Adults and Health,Other Agencies - Third Party P,90185518,Amron Premier Care,"2,592.53",31/07/2019
Delivery Units,Adults and Health,Other Agencies - Third Party P,90182214,Wordsworth House Care Home,"2,657.14",22/07/2019
Delivery Units,Adults and Health,Other Agencies - Third Party P,90182751,Wordsworth House Care Home,"2,657.14",22/07/2019
Delivery Units,Adults and Health,Other Agencies - Third Party P,90182793,Country Court Care Homes t/a Lyle House,"3,764.29",22/07/2019
Delivery Units,Adults and Health,Other Agencies - Third Party P,90183309,Jackson Care Limited,"5,314.29",23/07/2019
Delivery Units,Adults and Health,Other Agencies - Third Party P,90180236,Lyndon Hall Care Home,820.03,15/07/2019
Delivery Units,Adults and Health,Other Agencies - Third Party P,90182204,Lyndon Hall Care Home,"2,542.09",22/07/2019
Delivery Units,Adults and Health,Direct Transfer Payments to So,90183687,REDACTED - PERSONAL DATA,"2,931.20",23/07/2019
Delivery Units,Adults and Health,Direct Transfer Payments to So,90183918,REDACTED - PERSONAL DATA,"3,834.44",23/07/2019
Delivery Units,Adults and Health,Direct Transfer Payments to So,90184356,REDACTED - PERSONAL DATA,240,23/07/2019
Delivery Units,Adults and Health,Direct Transfer Payments to So,90183521,REDACTED - PERSONAL DATA,295.68,23/07/2019
Delivery Units,Adults and Health,Direct Transfer Payments to So,90184121,REDACTED - PERSONAL DATA,445.92,23/07/2019
Delivery Units,Adults and Health,Direct Transfer Payments to So,90184137,REDACTED - PERSONAL DATA,961.6,23/07/2019
Delivery Units,Adults and Health,Direct Transfer Payments to So,90184092,REDACTED - PERSONAL DATA,144.24,23/07/2019
Delivery Units,Adults and Health,Direct Transfer Payments to So,90183924,REDACTED - PERSONAL DATA,"1,766.96",23/07/2019
Delivery Units,Adults and Health,Direct Transfer Payments to So,90183501,REDACTED - PERSONAL DATA,"2,638.76",23/07/2019
Delivery Units,Adults and Health,Direct Transfer Payments to So,90183727,REDACTED - PERSONAL DATA,"1,185.32",23/07/2019
Delivery Units,Adults and Health,Direct Transfer Payments to So,90183750,REDACTED - PERSONAL DATA,568.16,23/07/2019
Delivery Units,Adults and Health,Direct Transfer Payments to So,90183919,REDACTED - PERSONAL DATA,589,23/07/2019
Delivery Units,Adults and Health,Direct Transfer Payments to So,90183711,REDACTED - PERSONAL DATA,889.48,23/07/2019
Delivery Units,Adults and Health,Direct Transfer Payments to So,90183507,REDACTED - PERSONAL DATA,456.76,23/07/2019
Delivery Units,Adults and Health,Direct Transfer Payments to So,90184127,REDACTED - PERSONAL DATA,899.36,23/07/2019
Delivery Units,Adults and Health,Direct Transfer Payments to So,90178113,REDACTED - PERSONAL DATA,"1,257.46",01/07/2019
Delivery Units,Adults and Health,Direct Transfer Payments to So,90183574,REDACTED - PERSONAL DATA,"1,342.48",23/07/2019
Delivery Units,Adults and Health,Direct Transfer Payments to So,90184585,REDACTED - PERSONAL DATA,"8,795.56",25/07/2019
Delivery Units,Adults and Health,Direct Transfer Payments to So,90184430,REDACTED - PERSONAL DATA,349.12,23/07/2019
Delivery Units,Adults and Health,Direct Transfer Payments to So,90184270,REDACTED - PERSONAL DATA,377.88,23/07/2019
Delivery Units,Adults and Health,Direct Transfer Payments to So,90183573,REDACTED - PERSONAL DATA,"2,005.04",23/07/2019
Delivery Units,Adults and Health,Direct Transfer Payments to So,90183649,REDACTED - PERSONAL DATA,913.52,23/07/2019
Delivery Units,Adults and Health,Direct Transfer Payments to So,90184292,REDACTED - PERSONAL DATA,"1,143.16",23/07/2019
Delivery Units,Adults and Health,Direct Transfer Payments to So,90183647,REDACTED - PERSONAL DATA,"1,464.20",23/07/2019
Delivery Units,Adults and Health,Direct Transfer Payments to So,90183855,REDACTED - PERSONAL DATA,"2,933.80",23/07/2019
Delivery Units,Adults and Health,Direct Transfer Payments to So,90183545,REDACTED - PERSONAL DATA,"1,238.92",23/07/2019
Delivery Units,Adults and Health,Direct Transfer Payments to So,90183770,REDACTED - PERSONAL DATA,"1,545.48",23/07/2019
Delivery Units,Adults and Health,Direct Transfer Payments to So,90183772,REDACTED - PERSONAL DATA,"1,525.44",23/07/2019
Delivery Units,Adults and Health,Direct Transfer Payments to So,90184173,REDACTED - PERSONAL DATA,"1,699.72",23/07/2019
Delivery Units,Adults and Health,Direct Transfer Payments to So,90183659,REDACTED - PERSONAL DATA,"1,260.00",23/07/2019
Delivery Units,Adults and Health,Direct Transfer Payments to So,90184077,REDACTED - PERSONAL DATA,640,23/07/2019
Delivery Units,Adults and Health,Direct Transfer Payments to So,90183862,REDACTED - PERSONAL DATA,"1,029.76",23/07/2019
Delivery Units,Adults and Health,Direct Transfer Payments to So,90183982,REDACTED - PERSONAL DATA,351.52,23/07/2019
Delivery Units,Adults and Health,Direct Transfer Payments to So,90184393,REDACTED - PERSONAL DATA,"1,353.04",23/07/2019
Delivery Units,Adults and Health,Direct Transfer Payments to So,90183841,REDACTED - PERSONAL DATA,490.04,23/07/2019
Delivery Units,Adults and Health,Direct Transfer Payments to So,90184299,REDACTED - PERSONAL DATA,975.36,23/07/2019
Delivery Units,Adults and Health,Direct Transfer Payments to So,90179358,REDACTED - PERSONAL DATA,"3,100.68",09/07/2019
Delivery Units,Adults and Health,Direct Transfer Payments to So,90183834,REDACTED - PERSONAL DATA,800,23/07/2019
Delivery Units,Adults and Health,Direct Transfer Payments to So,90184305,REDACTED - PERSONAL DATA,"2,349.16",23/07/2019
Delivery Units,Adults and Health,Direct Transfer Payments to So,90183993,REDACTED - PERSONAL DATA,588.24,23/07/2019
Delivery Units,Adults and Health,Direct Transfer Payments to So,90183850,REDACTED - PERSONAL DATA,480.8,23/07/2019
Delivery Units,Adults and Health,Direct Transfer Payments to So,90183994,REDACTED - PERSONAL DATA,"3,444.00",23/07/2019
Delivery Units,Adults and Health,Direct Transfer Payments to So,90184201,REDACTED - PERSONAL DATA,"1,104.00",23/07/2019
Delivery Units,Adults and Health,Direct Transfer Payments to So,90183853,REDACTED - PERSONAL DATA,451.92,23/07/2019
Delivery Units,Adults and Health,Direct Transfer Payments to So,90183694,REDACTED - PERSONAL DATA,649.08,23/07/2019
Delivery Units,Adults and Health,Direct Transfer Payments to So,90184320,REDACTED - PERSONAL DATA,348,23/07/2019
Delivery Units,Adults and Health,Direct Transfer Payments to So,90183799,REDACTED - PERSONAL DATA,547.08,23/07/2019
Delivery Units,Adults and Health,Direct Transfer Payments to So,90184209,REDACTED - PERSONAL DATA,700,23/07/2019
Delivery Units,Adults and Health,Direct Transfer Payments to So,90184234,REDACTED - PERSONAL DATA,"1,560.72",23/07/2019
Delivery Units,Adults and Health,Direct Transfer Payments to So,90183861,REDACTED - PERSONAL DATA,347.2,23/07/2019
Delivery Units,Adults and Health,Direct Transfer Payments to So,90183804,REDACTED - PERSONAL DATA,560,23/07/2019
Delivery Units,Adults and Health,Direct Transfer Payments to So,90184394,REDACTED - PERSONAL DATA,"2,316.96",23/07/2019
Delivery Units,Adults and Health,Direct Transfer Payments to So,90184326,REDACTED - PERSONAL DATA,"1,431.96",23/07/2019
Delivery Units,Adults and Health,Direct Transfer Payments to So,90184214,REDACTED - PERSONAL DATA,410.96,23/07/2019
Delivery Units,Adults and Health,Direct Transfer Payments to So,90184213,REDACTED - PERSONAL DATA,360.6,23/07/2019
Delivery Units,Adults and Health,Direct Transfer Payments to So,90183894,REDACTED - PERSONAL DATA,"3,260.00",23/07/2019
Delivery Units,Adults and Health,Direct Transfer Payments to So,90184232,REDACTED - PERSONAL DATA,"1,872.00",23/07/2019
Delivery Units,Adults and Health,Direct Transfer Payments to So,90183075,REDACTED - PERSONAL DATA,53.52,23/07/2019
Delivery Units,Adults and Health,Direct Transfer Payments to So,90183869,REDACTED - PERSONAL DATA,825.44,23/07/2019
Delivery Units,Adults and Health,Direct Transfer Payments to So,90184099,REDACTED - PERSONAL DATA,"3,279.20",23/07/2019
Delivery Units,Adults and Health,Direct Transfer Payments to So,90184579,REDACTED - PERSONAL DATA,392,25/07/2019
Delivery Units,Adults and Health,Direct Transfer Payments to So,90184336,REDACTED - PERSONAL DATA,960,23/07/2019
Delivery Units,Adults and Health,Direct Transfer Payments to So,90184223,REDACTED - PERSONAL DATA,"2,066.00",23/07/2019
Delivery Units,Adults and Health,Direct Transfer Payments to So,90183875,REDACTED - PERSONAL DATA,"2,092.96",23/07/2019
Delivery Units,Adults and Health,Direct Transfer Payments to So,90183712,REDACTED - PERSONAL DATA,231.4,23/07/2019
Delivery Units,Adults and Health,Direct Transfer Payments to So,90184115,REDACTED - PERSONAL DATA,904.8,23/07/2019
Delivery Units,Adults and Health,Direct Transfer Payments to So,90184228,REDACTED - PERSONAL DATA,478.48,23/07/2019
Delivery Units,Adults and Health,Direct Transfer Payments to So,90184341,REDACTED - PERSONAL DATA,"2,400.00",23/07/2019
Delivery Units,Adults and Health,Direct Transfer Payments to So,90183820,REDACTED - PERSONAL DATA,772.32,23/07/2019
Delivery Units,Adults and Health,Direct Transfer Payments to So,90183882,REDACTED - PERSONAL DATA,"1,586.48",23/07/2019
Delivery Units,Adults and Health,Direct Transfer Payments to So,90184238,REDACTED - PERSONAL DATA,"2,518.48",23/07/2019
Delivery Units,Adults and Health,Direct Transfer Payments to So,90183881,REDACTED - PERSONAL DATA,"1,351.56",23/07/2019
Delivery Units,Adults and Health,Direct Transfer Payments to So,90183978,REDACTED - PERSONAL DATA,792.88,23/07/2019
Delivery Units,Adults and Health,Direct Transfer Payments to So,90184085,REDACTED - PERSONAL DATA,384.64,23/07/2019
Delivery Units,Adults and Health,Direct Transfer Payments to So,90184043,REDACTED - PERSONAL DATA,966.84,23/07/2019
Delivery Units,Adults and Health,Direct Transfer Payments to So,90184239,REDACTED - PERSONAL DATA,321.8,23/07/2019
Delivery Units,Adults and Health,Direct Transfer Payments to So,90184056,REDACTED - PERSONAL DATA,390,23/07/2019
Delivery Units,Adults and Health,Direct Transfer Payments to So,90184587,REDACTED - PERSONAL DATA,"2,375.78",25/07/2019
Delivery Units,Adults and Health,Direct Transfer Payments to So,90184349,REDACTED - PERSONAL DATA,"1,582.00",23/07/2019
Delivery Units,Adults and Health,Direct Transfer Payments to So,90184245,REDACTED - PERSONAL DATA,136,23/07/2019
Delivery Units,Adults and Health,Direct Transfer Payments to So,90184035,REDACTED - PERSONAL DATA,"1,113.44",23/07/2019
Delivery Units,Adults and Health,Direct Transfer Payments to So,90184350,REDACTED - PERSONAL DATA,"4,608.04",23/07/2019
Delivery Units,Adults and Health,Direct Transfer Payments to So,90184351,REDACTED - PERSONAL DATA,975.28,23/07/2019
Delivery Units,Adults and Health,Direct Transfer Payments to So,90184354,REDACTED - PERSONAL DATA,"2,520.00",23/07/2019
Delivery Units,Adults and Health,Direct Transfer Payments to So,90184093,REDACTED - PERSONAL DATA,"1,351.56",23/07/2019
Delivery Units,Adults and Health,Direct Transfer Payments to So,90184254,REDACTED - PERSONAL DATA,"2,300.00",23/07/2019
Delivery Units,Adults and Health,Direct Transfer Payments to So,90184362,REDACTED - PERSONAL DATA,589.68,23/07/2019
Delivery Units,Adults and Health,Direct Transfer Payments to So,90177499,REDACTED - PERSONAL DATA,"2,027.36",16/07/2019
Delivery Units,Adults and Health,Direct Transfer Payments to So,90184408,REDACTED - PERSONAL DATA,730.92,23/07/2019
Delivery Units,Adults and Health,Direct Transfer Payments to So,90184413,REDACTED - PERSONAL DATA,"1,346.12",23/07/2019
Delivery Units,Adults and Health,Direct Transfer Payments to So,90184070,REDACTED - PERSONAL DATA,140,23/07/2019
Delivery Units,Adults and Health,Direct Transfer Payments to So,90184260,REDACTED - PERSONAL DATA,365.24,23/07/2019
Delivery Units,Adults and Health,Direct Transfer Payments to So,90184577,REDACTED - PERSONAL DATA,111.58,25/07/2019
Delivery Units,Adults and Health,Direct Transfer Payments to So,90184378,REDACTED - PERSONAL DATA,"1,238.92",23/07/2019
Delivery Units,Adults and Health,Direct Transfer Payments to So,90184068,REDACTED - PERSONAL DATA,903.92,23/07/2019
Delivery Units,Adults and Health,Direct Transfer Payments to So,90147480,REDACTED - PERSONAL DATA,"-2,496.82",23/07/2019
Delivery Units,Adults and Health,Direct Transfer Payments to So,90178112,REDACTED - PERSONAL DATA,"1,697.84",23/07/2019
Delivery Units,Adults and Health,Direct Transfer Payments to So,90184276,REDACTED - PERSONAL DATA,"2,796.44",23/07/2019
Delivery Units,Adults and Health,Direct Transfer Payments to So,90184381,REDACTED - PERSONAL DATA,482.72,23/07/2019
Delivery Units,Adults and Health,Direct Transfer Payments to So,90184272,REDACTED - PERSONAL DATA,"1,238.92",23/07/2019
Delivery Units,Adults and Health,Direct Transfer Payments to So,90183974,REDACTED - PERSONAL DATA,"1,194.24",23/07/2019
Delivery Units,Adults and Health,Direct Transfer Payments to So,90184396,REDACTED - PERSONAL DATA,"2,400.00",23/07/2019
Delivery Units,Adults and Health,Direct Transfer Payments to So,90184283,REDACTED - PERSONAL DATA,"3,000.00",23/07/2019
Delivery Units,Adults and Health,Direct Transfer Payments to So,90184287,REDACTED - PERSONAL DATA,"2,843.24",23/07/2019
Delivery Units,Adults and Health,Direct Transfer Payments to So,90184290,REDACTED - PERSONAL DATA,"1,351.56",23/07/2019
Delivery Units,Adults and Health,Direct Transfer Payments to So,90181924,REDACTED - PERSONAL DATA,-98.26,23/07/2019
Delivery Units,Adults and Health,Direct Transfer Payments to So,90184074,REDACTED - PERSONAL DATA,"2,849.58",23/07/2019
Delivery Units,Adults and Health,Direct Transfer Payments to So,90183076,REDACTED - PERSONAL DATA,"1,886.66",23/07/2019
Delivery Units,Adults and Health,Direct Transfer Payments to So,90184397,REDACTED - PERSONAL DATA,675.8,23/07/2019
Delivery Units,Adults and Health,Fees and Charges,90183085,REDACTED - PERSONAL DATA,249.82,23/07/2019
Delivery Units,Adults and Health,Fees and Charges,90183080,REDACTED - PERSONAL DATA,106.08,23/07/2019
Delivery Units,Adults and Health,Fees and Charges,90183088,REDACTED - PERSONAL DATA,-522.66,23/07/2019
Delivery Units,Adults and Health,Fees and Charges,90183074,REDACTED - PERSONAL DATA,-645.03,23/07/2019
Delivery Units,Adults and Health,Fees and Charges,90184242,REDACTED - PERSONAL DATA,-428.72,23/07/2019
Delivery Units,Adults and Health,Fees and Charges,90178056,REDACTED - PERSONAL DATA,-300.44,01/07/2019
Delivery Units,Adults and Health,Fees and Charges,90184580,REDACTED - PERSONAL DATA,-241.6,25/07/2019
Delivery Units,Adults and Health,Fees and Charges,90183083,REDACTED - PERSONAL DATA,55.49,23/07/2019
Delivery Units,Adults and Health,Fees and Charges,90178057,REDACTED - PERSONAL DATA,-154.45,01/07/2019
Delivery Units,Adults and Health,Fees and Charges,90179354,REDACTED - PERSONAL DATA,0.04,09/07/2019
Delivery Units,Adults and Health,Fees and Charges,90178731,REDACTED - PERSONAL DATA,0.09,04/07/2019
Delivery Units,Adults and Health,Fees and Charges,90179950,REDACTED - PERSONAL DATA,0.2,11/07/2019
Delivery Units,Adults and Health,Fees and Charges,90184583,REDACTED - PERSONAL DATA,0.08,25/07/2019
Delivery Units,Adults and Health,Fees and Charges,90180003,REDACTED - PERSONAL DATA,0.08,11/07/2019
Delivery Units,Adults and Health,Fees and Charges,90184953,REDACTED - PERSONAL DATA,-49.52,25/07/2019
Delivery Units,Adults and Health,Other Agencies - Third Party P,90182829,WESTMINSTER HOMECARE LTD,"1,042.16",23/07/2019
Delivery Units,Adults and Health,Other Agencies - Third Party P,90182830,WESTMINSTER HOMECARE LTD,912.18,23/07/2019
Delivery Units,Adults and Health,Other Agencies - Third Party P,90182832,WESTMINSTER HOMECARE LTD,632.51,23/07/2019
Delivery Units,Adults and Health,Other Agencies - Third Party P,90182833,WESTMINSTER HOMECARE LTD,347.48,23/07/2019
Delivery Units,Adults and Health,Other Agencies - Third Party P,90182834,WESTMINSTER HOMECARE LTD,374.91,23/07/2019
Delivery Units,Adults and Health,Other Agencies - Third Party P,90182835,WESTMINSTER HOMECARE LTD,347.48,23/07/2019
Delivery Units,Adults and Health,Other Agencies - Third Party P,90182836,WESTMINSTER HOMECARE LTD,165.4,23/07/2019
Delivery Units,Adults and Health,Other Agencies - Third Party P,90182837,WESTMINSTER HOMECARE LTD,304.08,23/07/2019
Delivery Units,Adults and Health,Other Agencies - Third Party P,90182839,WESTMINSTER HOMECARE LTD,694.4,23/07/2019
Delivery Units,Adults and Health,Other Agencies - Third Party P,90182840,WESTMINSTER HOMECARE LTD,760.99,23/07/2019
Delivery Units,Adults and Health,Other Agencies - Third Party P,90182841,WESTMINSTER HOMECARE LTD,66.16,23/07/2019
Delivery Units,Adults and Health,Other Agencies - Third Party P,90182842,WESTMINSTER HOMECARE LTD,49.62,23/07/2019
Delivery Units,Adults and Health,Other Agencies - Third Party P,90182843,WESTMINSTER HOMECARE LTD,66.16,23/07/2019
Delivery Units,Adults and Health,Other Agencies - Third Party P,90182844,WESTMINSTER HOMECARE LTD,"1,092.07",23/07/2019
Delivery Units,Adults and Health,Other Agencies - Third Party P,90182845,WESTMINSTER HOMECARE LTD,330.8,23/07/2019
Delivery Units,Adults and Health,Other Agencies - Third Party P,90182846,WESTMINSTER HOMECARE LTD,767.44,23/07/2019
Delivery Units,Adults and Health,Other Agencies - Third Party P,90182847,WESTMINSTER HOMECARE LTD,562.49,23/07/2019
Delivery Units,Adults and Health,Other Agencies - Third Party P,90182848,WESTMINSTER HOMECARE LTD,33.08,23/07/2019
Delivery Units,Adults and Health,Other Agencies - Third Party P,90182849,WESTMINSTER HOMECARE LTD,231.56,23/07/2019
Delivery Units,Adults and Health,Other Agencies - Third Party P,90182852,WESTMINSTER HOMECARE LTD,198.48,23/07/2019
Delivery Units,Adults and Health,Other Agencies - Third Party P,90182853,WESTMINSTER HOMECARE LTD,"1,347.72",23/07/2019
Delivery Units,Adults and Health,Other Agencies - Third Party P,90182854,WESTMINSTER HOMECARE LTD,215.06,23/07/2019
Delivery Units,Adults and Health,Other Agencies - Third Party P,90182855,WESTMINSTER HOMECARE LTD,"1,361.26",23/07/2019
Delivery Units,Adults and Health,Other Agencies - Third Party P,90182856,WESTMINSTER HOMECARE LTD,458.99,23/07/2019
Delivery Units,Adults and Health,Other Agencies - Third Party P,90182857,WESTMINSTER HOMECARE LTD,"1,042.16",23/07/2019
Delivery Units,Adults and Health,Other Agencies - Third Party P,90182858,WESTMINSTER HOMECARE LTD,326.11,23/07/2019
Delivery Units,Adults and Health,Other Agencies - Third Party P,90182859,WESTMINSTER HOMECARE LTD,248.2,23/07/2019
Delivery Units,Adults and Health,Other Agencies - Third Party P,90182860,WESTMINSTER HOMECARE LTD,409.48,23/07/2019
Delivery Units,Adults and Health,Other Agencies - Third Party P,90182863,WESTMINSTER HOMECARE LTD,476.34,23/07/2019
Delivery Units,Adults and Health,Other Agencies - Third Party P,90182864,WESTMINSTER HOMECARE LTD,"1,586.46",23/07/2019
Delivery Units,Adults and Health,Other Agencies - Third Party P,90182865,WESTMINSTER HOMECARE LTD,219.24,23/07/2019
Delivery Units,Adults and Health,Other Agencies - Third Party P,90182867,WESTMINSTER HOMECARE LTD,335.07,23/07/2019
Delivery Units,Adults and Health,Other Agencies - Third Party P,90182868,WESTMINSTER HOMECARE LTD,49.62,23/07/2019
Delivery Units,Adults and Health,Other Agencies - Third Party P,90182869,WESTMINSTER HOMECARE LTD,620.33,23/07/2019
Delivery Units,Adults and Health,Other Agencies - Third Party P,90182870,WESTMINSTER HOMECARE LTD,"1,038.02",23/07/2019
Delivery Units,Adults and Health,Other Agencies - Third Party P,90182258,CAREWATCH (BARNET),227.64,22/07/2019
Delivery Units,Adults and Health,Other Agencies - Third Party P,90182259,CAREWATCH (BARNET),90.23,22/07/2019
Delivery Units,Adults and Health,Other Agencies - Third Party P,90182260,CAREWATCH (BARNET),30.07,22/07/2019
Delivery Units,Adults and Health,Other Agencies - Third Party P,90182261,CAREWATCH (BARNET),51.54,22/07/2019
Delivery Units,Adults and Health,Other Agencies - Third Party P,90182262,CAREWATCH (BARNET),55.85,22/07/2019
Delivery Units,Adults and Health,Other Agencies - Third Party P,90182263,CAREWATCH (BARNET),77.34,22/07/2019
Delivery Units,Adults and Health,Other Agencies - Third Party P,90182265,CAREWATCH (BARNET),236.23,22/07/2019
Delivery Units,Adults and Health,Other Agencies - Third Party P,90182266,CAREWATCH (BARNET),365.17,22/07/2019
Delivery Units,Adults and Health,Other Agencies - Third Party P,90182267,CAREWATCH (BARNET),219.04,22/07/2019
Delivery Units,Adults and Health,Other Agencies - Third Party P,90182268,CAREWATCH (BARNET),171.84,22/07/2019
Delivery Units,Adults and Health,Other Agencies - Third Party P,90182269,CAREWATCH (BARNET),146.06,22/07/2019
Delivery Units,Adults and Health,Other Agencies - Third Party P,90182270,CAREWATCH (BARNET),180.39,22/07/2019
Delivery Units,Adults and Health,Other Agencies - Third Party P,90182271,CAREWATCH (BARNET),90.23,22/07/2019
Delivery Units,Adults and Health,Other Agencies - Third Party P,90182274,CAREWATCH (BARNET),128.85,22/07/2019
Delivery Units,Adults and Health,Other Agencies - Third Party P,90182275,CAREWATCH (BARNET),90.23,22/07/2019
Delivery Units,Adults and Health,Other Agencies - Third Party P,90182276,CAREWATCH (BARNET),120.26,22/07/2019
Delivery Units,Adults and Health,Other Agencies - Third Party P,90182277,CAREWATCH (BARNET),34.36,22/07/2019
Delivery Units,Adults and Health,Other Agencies - Third Party P,90182278,CAREWATCH (BARNET),17.18,22/07/2019
Delivery Units,Adults and Health,Other Agencies - Third Party P,90182279,CAREWATCH (BARNET),292.12,22/07/2019
Delivery Units,Adults and Health,Other Agencies - Third Party P,90182280,CAREWATCH (BARNET),90.23,22/07/2019
Delivery Units,Adults and Health,Other Agencies - Third Party P,90182282,CAREWATCH (BARNET),30.07,22/07/2019
Delivery Units,Adults and Health,Other Agencies - Third Party P,90182283,CAREWATCH (BARNET),180.4,22/07/2019
Delivery Units,Adults and Health,Other Agencies - Third Party P,90182284,CAREWATCH (BARNET),296.38,22/07/2019
Delivery Units,Adults and Health,Other Agencies - Third Party P,90182285,CAREWATCH (BARNET),141.76,22/07/2019
Delivery Units,Adults and Health,Other Agencies - Third Party P,90182287,CAREWATCH (BARNET),180.46,22/07/2019
Delivery Units,Adults and Health,Other Agencies - Third Party P,90182288,CAREWATCH (BARNET),111.68,22/07/2019
Delivery Units,Adults and Health,Other Agencies - Third Party P,90182289,CAREWATCH (BARNET),283.48,22/07/2019
Delivery Units,Adults and Health,Other Agencies - Third Party P,90182290,CAREWATCH (BARNET),171.83,22/07/2019
Delivery Units,Adults and Health,Other Agencies - Third Party P,90182291,CAREWATCH (BARNET),231.94,22/07/2019
Delivery Units,Adults and Health,Other Agencies - Third Party P,90182292,CAREWATCH (BARNET),55.84,22/07/2019
Delivery Units,Adults and Health,Other Agencies - Third Party P,90182293,CAREWATCH (BARNET),274.88,22/07/2019
Delivery Units,Adults and Health,Other Agencies - Third Party P,90182294,CAREWATCH (BARNET),60.13,22/07/2019
Delivery Units,Adults and Health,Other Agencies - Third Party P,90182295,CAREWATCH (BARNET),34.36,22/07/2019
Delivery Units,Adults and Health,Other Agencies - Third Party P,90182296,CAREWATCH (BARNET),90.23,22/07/2019
Delivery Units,Adults and Health,Other Agencies - Third Party P,90182297,CAREWATCH (BARNET),128.88,22/07/2019
Delivery Units,Adults and Health,Other Agencies - Third Party P,90182300,CAREWATCH (BARNET),120.26,22/07/2019
Delivery Units,Adults and Health,Other Agencies - Third Party P,90182301,CAREWATCH (BARNET),601.3,22/07/2019
Delivery Units,Adults and Health,Other Agencies - Third Party P,90182302,CAREWATCH (BARNET),712.97,22/07/2019
Delivery Units,Adults and Health,Other Agencies - Third Party P,90182303,CAREWATCH (BARNET),257.73,22/07/2019
Delivery Units,Adults and Health,Other Agencies - Third Party P,90182304,CAREWATCH (BARNET),210.49,22/07/2019
Delivery Units,Adults and Health,Other Agencies - Third Party P,90182305,CAREWATCH (BARNET),180.39,22/07/2019
Delivery Units,Adults and Health,Other Agencies - Third Party P,90182306,CAREWATCH (BARNET),300.65,22/07/2019
Delivery Units,Adults and Health,Other Agencies - Third Party P,90182307,CAREWATCH (BARNET),781.9,22/07/2019
Delivery Units,Adults and Health,Other Agencies - Third Party P,90182308,CAREWATCH (BARNET),150.36,22/07/2019
Delivery Units,Adults and Health,Other Agencies - Third Party P,90182309,CAREWATCH (BARNET),120.26,22/07/2019
Delivery Units,Adults and Health,Other Agencies - Third Party P,90182310,CAREWATCH (BARNET),270.6,22/07/2019
Delivery Units,Adults and Health,Other Agencies - Third Party P,90182311,CAREWATCH (BARNET),210.49,22/07/2019
Delivery Units,Adults and Health,Other Agencies - Third Party P,90182312,CAREWATCH (BARNET),240.52,22/07/2019
Delivery Units,Adults and Health,Other Agencies - Third Party P,90182313,CAREWATCH (BARNET),300.65,22/07/2019
Delivery Units,Adults and Health,Other Agencies - Third Party P,90182314,CAREWATCH (BARNET),180.39,22/07/2019
Delivery Units,Adults and Health,Other Agencies - Third Party P,90182315,CAREWATCH (BARNET),210.49,22/07/2019
Delivery Units,Adults and Health,Other Agencies - Third Party P,90182316,CAREWATCH (BARNET),201.9,22/07/2019
Delivery Units,Adults and Health,Other Agencies - Third Party P,90182317,CAREWATCH (BARNET),141.77,22/07/2019
Delivery Units,Adults and Health,Other Agencies - Third Party P,90182318,CAREWATCH (BARNET),270.62,22/07/2019
Delivery Units,Adults and Health,Other Agencies - Third Party P,90182319,CAREWATCH (BARNET),244.85,22/07/2019
Delivery Units,Adults and Health,Other Agencies - Third Party P,90182320,CAREWATCH (BARNET),300.72,22/07/2019
Delivery Units,Adults and Health,Other Agencies - Third Party P,90182321,CAREWATCH (BARNET),120.26,22/07/2019
Delivery Units,Adults and Health,Other Agencies - Third Party P,90182322,CAREWATCH (BARNET),163.21,22/07/2019
Delivery Units,Adults and Health,Other Agencies - Third Party P,90182323,CAREWATCH (BARNET),210.49,22/07/2019
Delivery Units,Adults and Health,Other Agencies - Third Party P,90182324,CAREWATCH (BARNET),438.09,22/07/2019
Delivery Units,Adults and Health,Other Agencies - Third Party P,90182325,CAREWATCH (BARNET),206.23,22/07/2019
Delivery Units,Adults and Health,Other Agencies - Third Party P,90182326,CAREWATCH (BARNET),240.59,22/07/2019
Delivery Units,Adults and Health,Other Agencies - Third Party P,90182327,CAREWATCH (BARNET),120.26,22/07/2019
Delivery Units,Adults and Health,Other Agencies - Third Party P,90182329,CAREWATCH (BARNET),266.29,22/07/2019
Delivery Units,Adults and Health,Other Agencies - Third Party P,90182330,CAREWATCH (BARNET),240.52,22/07/2019
Delivery Units,Adults and Health,Other Agencies - Third Party P,90182332,CAREWATCH (BARNET),210.46,22/07/2019
Delivery Units,Adults and Health,Other Agencies - Third Party P,90182333,CAREWATCH (BARNET),90.23,22/07/2019
Delivery Units,Adults and Health,Other Agencies - Third Party P,90182334,CAREWATCH (BARNET),34.36,22/07/2019
Delivery Units,Adults and Health,Other Agencies - Third Party P,90182335,CAREWATCH (BARNET),51.54,22/07/2019
Delivery Units,Adults and Health,Other Agencies - Third Party P,90182336,CAREWATCH (BARNET),180.39,22/07/2019
Delivery Units,Adults and Health,Other Agencies - Third Party P,90182337,CAREWATCH (BARNET),103.12,22/07/2019
Delivery Units,Adults and Health,Other Agencies - Third Party P,90182339,CAREWATCH (BARNET),227.64,22/07/2019
Delivery Units,Adults and Health,Other Agencies - Third Party P,90182340,CAREWATCH (BARNET),373.77,22/07/2019
Delivery Units,Adults and Health,Other Agencies - Third Party P,90182341,CAREWATCH (BARNET),141.76,22/07/2019
Delivery Units,Adults and Health,Other Agencies - Third Party P,90182342,CAREWATCH (BARNET),180.39,22/07/2019
Delivery Units,Adults and Health,Other Agencies - Third Party P,90182343,CAREWATCH (BARNET),85.93,22/07/2019
Delivery Units,Adults and Health,Other Agencies - Third Party P,90182346,CAREWATCH (BARNET),128.85,22/07/2019
Delivery Units,Adults and Health,Other Agencies - Third Party P,90182347,CAREWATCH (BARNET),85.93,22/07/2019
Delivery Units,Adults and Health,Other Agencies - Third Party P,90182348,CAREWATCH (BARNET),120.26,22/07/2019
Delivery Units,Adults and Health,Other Agencies - Third Party P,90182349,CAREWATCH (BARNET),180.39,22/07/2019
Delivery Units,Adults and Health,Other Agencies - Third Party P,90182350,CAREWATCH (BARNET),30.07,22/07/2019
Delivery Units,Adults and Health,Other Agencies - Third Party P,90182351,CAREWATCH (BARNET),111.69,22/07/2019
Delivery Units,Adults and Health,Other Agencies - Third Party P,90182353,CAREWATCH (BARNET),180.39,22/07/2019
Delivery Units,Adults and Health,Other Agencies - Third Party P,90182354,CAREWATCH (BARNET),283.48,22/07/2019
Delivery Units,Adults and Health,Other Agencies - Third Party P,90182355,CAREWATCH (BARNET),120.26,22/07/2019
Delivery Units,Adults and Health,Other Agencies - Third Party P,90182357,CAREWATCH (BARNET),180.46,22/07/2019
Delivery Units,Adults and Health,Other Agencies - Third Party P,90182358,CAREWATCH (BARNET),193.3,22/07/2019
Delivery Units,Adults and Health,Other Agencies - Third Party P,90182359,CAREWATCH (BARNET),292.08,22/07/2019
Delivery Units,Adults and Health,Other Agencies - Third Party P,90182360,CAREWATCH (BARNET),210.49,22/07/2019
Delivery Units,Adults and Health,Other Agencies - Third Party P,90182361,CAREWATCH (BARNET),240.52,22/07/2019
Delivery Units,Adults and Health,Other Agencies - Third Party P,90182362,CAREWATCH (BARNET),55.84,22/07/2019
Delivery Units,Adults and Health,Other Agencies - Third Party P,90182363,CAREWATCH (BARNET),266.3,22/07/2019
Delivery Units,Adults and Health,Other Agencies - Third Party P,90182364,CAREWATCH (BARNET),60.13,22/07/2019
Delivery Units,Adults and Health,Other Agencies - Third Party P,90182365,CAREWATCH (BARNET),206.22,22/07/2019
Delivery Units,Adults and Health,Other Agencies - Third Party P,90182366,CAREWATCH (BARNET),34.36,22/07/2019
Delivery Units,Adults and Health,Other Agencies - Third Party P,90182367,CAREWATCH (BARNET),85.93,22/07/2019
Delivery Units,Adults and Health,Other Agencies - Third Party P,90182370,CAREWATCH (BARNET),120.26,22/07/2019
Delivery Units,Adults and Health,Other Agencies - Third Party P,90182371,CAREWATCH (BARNET),601.3,22/07/2019
Delivery Units,Adults and Health,Other Agencies - Third Party P,90182372,CAREWATCH (BARNET),712.97,22/07/2019
Delivery Units,Adults and Health,Other Agencies - Third Party P,90182373,CAREWATCH (BARNET),257.73,22/07/2019
Delivery Units,Adults and Health,Other Agencies - Third Party P,90182374,CAREWATCH (BARNET),210.49,22/07/2019
Delivery Units,Adults and Health,Other Agencies - Third Party P,90182375,CAREWATCH (BARNET),300.65,22/07/2019
Delivery Units,Adults and Health,Other Agencies - Third Party P,90182376,CAREWATCH (BARNET),781.9,22/07/2019
Delivery Units,Adults and Health,Other Agencies - Third Party P,90182377,CAREWATCH (BARNET),150.36,22/07/2019
Delivery Units,Adults and Health,Other Agencies - Third Party P,90182378,CAREWATCH (BARNET),120.26,22/07/2019
Delivery Units,Adults and Health,Other Agencies - Third Party P,90182379,CAREWATCH (BARNET),270.6,22/07/2019
Delivery Units,Adults and Health,Other Agencies - Third Party P,90182380,CAREWATCH (BARNET),240.52,22/07/2019
Delivery Units,Adults and Health,Other Agencies - Third Party P,90182381,CAREWATCH (BARNET),240.52,22/07/2019
Delivery Units,Adults and Health,Other Agencies - Third Party P,90182382,CAREWATCH (BARNET),300.65,22/07/2019
Delivery Units,Adults and Health,Other Agencies - Third Party P,90182383,CAREWATCH (BARNET),150.35,22/07/2019
Delivery Units,Adults and Health,Other Agencies - Third Party P,90182384,CAREWATCH (BARNET),17.18,22/07/2019
Delivery Units,Adults and Health,Other Agencies - Third Party P,90182385,CAREWATCH (BARNET),300.72,22/07/2019
Delivery Units,Adults and Health,Other Agencies - Third Party P,90182386,CAREWATCH (BARNET),90.23,22/07/2019
Delivery Units,Adults and Health,Other Agencies - Third Party P,90182387,CAREWATCH (BARNET),201.9,22/07/2019
Delivery Units,Adults and Health,Other Agencies - Third Party P,90182388,CAREWATCH (BARNET),141.77,22/07/2019
Delivery Units,Adults and Health,Other Agencies - Third Party P,90182389,CAREWATCH (BARNET),257.73,22/07/2019
Delivery Units,Adults and Health,Other Agencies - Third Party P,90182390,CAREWATCH (BARNET),150.36,22/07/2019
Delivery Units,Adults and Health,Other Agencies - Third Party P,90182391,CAREWATCH (BARNET),244.85,22/07/2019
Delivery Units,Adults and Health,Other Agencies - Third Party P,90182392,CAREWATCH (BARNET),300.72,22/07/2019
Delivery Units,Adults and Health,Other Agencies - Third Party P,90182393,CAREWATCH (BARNET),120.26,22/07/2019
Delivery Units,Adults and Health,Other Agencies - Third Party P,90182394,CAREWATCH (BARNET),163.21,22/07/2019
Delivery Units,Adults and Health,Other Agencies - Third Party P,90182395,CAREWATCH (BARNET),210.49,22/07/2019
Delivery Units,Adults and Health,Other Agencies - Third Party P,90182396,CAREWATCH (BARNET),438.09,22/07/2019
Delivery Units,Adults and Health,Other Agencies - Third Party P,90182397,CAREWATCH (BARNET),240.59,22/07/2019
Delivery Units,Adults and Health,Other Agencies - Third Party P,90182398,CAREWATCH (BARNET),120.26,22/07/2019
Delivery Units,Adults and Health,Other Agencies - Third Party P,90182400,CAREWATCH (BARNET),266.29,22/07/2019
Delivery Units,Adults and Health,Other Agencies - Third Party P,90182401,CAREWATCH (BARNET),240.52,22/07/2019
Delivery Units,Adults and Health,Other Agencies - Third Party P,90182402,CAREWATCH (BARNET),150.36,22/07/2019
Delivery Units,Adults and Health,Other Agencies - Third Party P,90182403,CAREWATCH (BARNET),120.26,22/07/2019
Delivery Units,Adults and Health,Other Agencies - Third Party P,90182404,CAREWATCH (BARNET),90.23,22/07/2019
Delivery Units,Adults and Health,Other Agencies - Third Party P,90182405,CAREWATCH (BARNET),34.37,22/07/2019
Delivery Units,Adults and Health,Other Agencies - Third Party P,90182406,CAREWATCH (BARNET),51.54,22/07/2019
Delivery Units,Adults and Health,Other Agencies - Third Party P,90182407,CAREWATCH (BARNET),180.39,22/07/2019
Delivery Units,Adults and Health,Other Agencies - Third Party P,90182408,CAREWATCH (BARNET),244.84,22/07/2019
Delivery Units,Adults and Health,Other Agencies - Third Party P,90182409,CAREWATCH (BARNET),77.34,22/07/2019
Delivery Units,Adults and Health,Other Agencies - Third Party P,90182411,CAREWATCH (BARNET),236.24,22/07/2019
Delivery Units,Adults and Health,Other Agencies - Third Party P,90182412,CAREWATCH (BARNET),236.24,22/07/2019
Delivery Units,Adults and Health,Other Agencies - Third Party P,90182413,CAREWATCH (BARNET),167.54,22/07/2019
Delivery Units,Adults and Health,Other Agencies - Third Party P,90182414,CAREWATCH (BARNET),292.06,22/07/2019
Delivery Units,Adults and Health,Other Agencies - Third Party P,90182415,CAREWATCH (BARNET),141.75,22/07/2019
Delivery Units,Adults and Health,Other Agencies - Third Party P,90182416,CAREWATCH (BARNET),180.39,22/07/2019
Delivery Units,Adults and Health,Other Agencies - Third Party P,90182417,CAREWATCH (BARNET),90.23,22/07/2019
Delivery Units,Adults and Health,Other Agencies - Third Party P,90182419,CAREWATCH (BARNET),115.96,22/07/2019
Delivery Units,Adults and Health,Other Agencies - Third Party P,90182420,CAREWATCH (BARNET),90.23,22/07/2019
Delivery Units,Adults and Health,Other Agencies - Third Party P,90182421,CAREWATCH (BARNET),171.82,22/07/2019
Delivery Units,Adults and Health,Other Agencies - Third Party P,90182422,CAREWATCH (BARNET),30.07,22/07/2019
Delivery Units,Adults and Health,Other Agencies - Third Party P,90182423,CAREWATCH (BARNET),300.72,22/07/2019
Delivery Units,Adults and Health,Other Agencies - Third Party P,90182424,CAREWATCH (BARNET),90.23,22/07/2019
Delivery Units,Adults and Health,Other Agencies - Third Party P,90182426,CAREWATCH (BARNET),188.98,22/07/2019
Delivery Units,Adults and Health,Other Agencies - Third Party P,90182427,CAREWATCH (BARNET),287.79,22/07/2019
Delivery Units,Adults and Health,Other Agencies - Third Party P,90182428,CAREWATCH (BARNET),120.26,22/07/2019
Delivery Units,Adults and Health,Other Agencies - Third Party P,90182430,CAREWATCH (BARNET),116.01,22/07/2019
Delivery Units,Adults and Health,Other Agencies - Third Party P,90182431,CAREWATCH (BARNET),283.49,22/07/2019
Delivery Units,Adults and Health,Other Agencies - Third Party P,90182432,CAREWATCH (BARNET),189.02,22/07/2019
Delivery Units,Adults and Health,Other Agencies - Third Party P,90182433,CAREWATCH (BARNET),240.52,22/07/2019
Delivery Units,Adults and Health,Other Agencies - Third Party P,90182434,CAREWATCH (BARNET),51.54,22/07/2019
Delivery Units,Adults and Health,Other Agencies - Third Party P,90182435,CAREWATCH (BARNET),262,22/07/2019
Delivery Units,Adults and Health,Other Agencies - Third Party P,90182436,CAREWATCH (BARNET),34.36,22/07/2019
Delivery Units,Adults and Health,Other Agencies - Third Party P,90182437,CAREWATCH (BARNET),85.93,22/07/2019
Delivery Units,Adults and Health,Other Agencies - Third Party P,90182440,CAREWATCH (BARNET),240.52,22/07/2019
Delivery Units,Adults and Health,Other Agencies - Third Party P,90182441,CAREWATCH (BARNET),601.3,22/07/2019
Delivery Units,Adults and Health,Other Agencies - Third Party P,90182442,CAREWATCH (BARNET),51.56,22/07/2019
Delivery Units,Adults and Health,Other Agencies - Third Party P,90182443,CAREWATCH (BARNET),712.97,22/07/2019
Delivery Units,Adults and Health,Other Agencies - Third Party P,90182444,CAREWATCH (BARNET),257.73,22/07/2019
Delivery Units,Adults and Health,Other Agencies - Third Party P,90182445,CAREWATCH (BARNET),210.49,22/07/2019
Delivery Units,Adults and Health,Other Agencies - Third Party P,90182446,CAREWATCH (BARNET),300.65,22/07/2019
Delivery Units,Adults and Health,Other Agencies - Third Party P,90182447,CAREWATCH (BARNET),781.9,22/07/2019
Delivery Units,Adults and Health,Other Agencies - Third Party P,90182448,CAREWATCH (BARNET),150.36,22/07/2019
Delivery Units,Adults and Health,Other Agencies - Third Party P,90182449,CAREWATCH (BARNET),120.26,22/07/2019
Delivery Units,Adults and Health,Other Agencies - Third Party P,90182450,CAREWATCH (BARNET),270.6,22/07/2019
Delivery Units,Adults and Health,Other Agencies - Third Party P,90182451,CAREWATCH (BARNET),210.49,22/07/2019
Delivery Units,Adults and Health,Other Agencies - Third Party P,90182452,CAREWATCH (BARNET),390.95,22/07/2019
Delivery Units,Adults and Health,Other Agencies - Third Party P,90182453,CAREWATCH (BARNET),240.52,22/07/2019
Delivery Units,Adults and Health,Other Agencies - Third Party P,90182455,CAREWATCH (BARNET),120.26,22/07/2019
Delivery Units,Adults and Health,Other Agencies - Third Party P,90182456,CAREWATCH (BARNET),210.49,22/07/2019
Delivery Units,Adults and Health,Other Agencies - Third Party P,90182457,CAREWATCH (BARNET),17.18,22/07/2019
Delivery Units,Adults and Health,Other Agencies - Third Party P,90182458,CAREWATCH (BARNET),201.9,22/07/2019
Delivery Units,Adults and Health,Other Agencies - Third Party P,90182459,CAREWATCH (BARNET),210.49,22/07/2019
Delivery Units,Adults and Health,Other Agencies - Third Party P,90182460,CAREWATCH (BARNET),141.77,22/07/2019
Delivery Units,Adults and Health,Other Agencies - Third Party P,90182461,CAREWATCH (BARNET),270.62,22/07/2019
Delivery Units,Adults and Health,Other Agencies - Third Party P,90182462,CAREWATCH (BARNET),150.36,22/07/2019
Delivery Units,Adults and Health,Other Agencies - Third Party P,90182463,CAREWATCH (BARNET),210.49,22/07/2019
Delivery Units,Adults and Health,Other Agencies - Third Party P,90182464,CAREWATCH (BARNET),300.72,22/07/2019
Delivery Units,Adults and Health,Other Agencies - Third Party P,90182465,CAREWATCH (BARNET),154.62,22/07/2019
Delivery Units,Adults and Health,Other Agencies - Third Party P,90182466,CAREWATCH (BARNET),163.21,22/07/2019
Delivery Units,Adults and Health,Other Agencies - Third Party P,90182467,CAREWATCH (BARNET),210.49,22/07/2019
Delivery Units,Adults and Health,Other Agencies - Third Party P,90182468,CAREWATCH (BARNET),60.13,22/07/2019
Delivery Units,Adults and Health,Other Agencies - Third Party P,90182469,CAREWATCH (BARNET),438.09,22/07/2019
Delivery Units,Adults and Health,Other Agencies - Third Party P,90182470,CAREWATCH (BARNET),206.23,22/07/2019
Delivery Units,Adults and Health,Other Agencies - Third Party P,90182471,CAREWATCH (BARNET),240.59,22/07/2019
Delivery Units,Adults and Health,Other Agencies - Third Party P,90182472,CAREWATCH (BARNET),120.26,22/07/2019
Delivery Units,Adults and Health,Other Agencies - Third Party P,90182474,CAREWATCH (BARNET),266.29,22/07/2019
Delivery Units,Adults and Health,Other Agencies - Third Party P,90182475,CAREWATCH (BARNET),240.52,22/07/2019
Delivery Units,Adults and Health,Other Agencies - Third Party P,90182476,CAREWATCH (BARNET),150.36,22/07/2019
Delivery Units,Adults and Health,Other Agencies - Third Party P,90182477,CAREWATCH (BARNET),236.22,22/07/2019
Delivery Units,Adults and Health,Other Agencies - Third Party P,90182478,CAREWATCH (BARNET),592.72,22/07/2019
Delivery Units,Adults and Health,Other Agencies - Third Party P,90182479,CAREWATCH (BARNET),90.23,22/07/2019
Delivery Units,Adults and Health,Other Agencies - Third Party P,90182480,CAREWATCH (BARNET),708.68,22/07/2019
Delivery Units,Adults and Health,Other Agencies - Third Party P,90182481,CAREWATCH (BARNET),34.37,22/07/2019
Delivery Units,Adults and Health,Other Agencies - Third Party P,90182482,CAREWATCH (BARNET),51.54,22/07/2019
Delivery Units,Adults and Health,Other Agencies - Third Party P,90182483,CAREWATCH (BARNET),244.85,22/07/2019
Delivery Units,Adults and Health,Other Agencies - Third Party P,90182484,CAREWATCH (BARNET),77.34,22/07/2019
Delivery Units,Adults and Health,Other Agencies - Third Party P,90182486,CAREWATCH (BARNET),266.3,22/07/2019
Delivery Units,Adults and Health,Other Agencies - Third Party P,90182487,CAREWATCH (BARNET),240.52,22/07/2019
Delivery Units,Adults and Health,Other Agencies - Third Party P,90182488,CAREWATCH (BARNET),390.92,22/07/2019
Delivery Units,Adults and Health,Other Agencies - Third Party P,90182489,CAREWATCH (BARNET),111.68,22/07/2019
Delivery Units,Adults and Health,Other Agencies - Third Party P,90182490,CAREWATCH (BARNET),133.15,22/07/2019
Delivery Units,Adults and Health,Other Agencies - Third Party P,90182491,CAREWATCH (BARNET),150.35,22/07/2019
Delivery Units,Adults and Health,Other Agencies - Third Party P,90182492,CAREWATCH (BARNET),180.39,22/07/2019
Delivery Units,Adults and Health,Other Agencies - Third Party P,90182493,CAREWATCH (BARNET),90.23,22/07/2019
Delivery Units,Adults and Health,Other Agencies - Third Party P,90182495,CAREWATCH (BARNET),85.93,22/07/2019
Delivery Units,Adults and Health,Other Agencies - Third Party P,90182496,CAREWATCH (BARNET),115.97,22/07/2019
Delivery Units,Adults and Health,Other Agencies - Third Party P,90182497,CAREWATCH (BARNET),176.1,22/07/2019
Delivery Units,Adults and Health,Other Agencies - Third Party P,90182498,CAREWATCH (BARNET),25.78,22/07/2019
Delivery Units,Adults and Health,Other Agencies - Third Party P,90182499,CAREWATCH (BARNET),17.18,22/07/2019
Delivery Units,Adults and Health,Other Agencies - Third Party P,90182500,CAREWATCH (BARNET),300.72,22/07/2019
Delivery Units,Adults and Health,Other Agencies - Third Party P,90182501,CAREWATCH (BARNET),77.34,22/07/2019
Delivery Units,Adults and Health,Other Agencies - Third Party P,90182503,CAREWATCH (BARNET),176.11,22/07/2019
Delivery Units,Adults and Health,Other Agencies - Third Party P,90182504,CAREWATCH (BARNET),304.98,22/07/2019
Delivery Units,Adults and Health,Other Agencies - Third Party P,90182505,CAREWATCH (BARNET),150.36,22/07/2019
Delivery Units,Adults and Health,Other Agencies - Third Party P,90182506,CAREWATCH (BARNET),120.26,22/07/2019
Delivery Units,Adults and Health,Other Agencies - Third Party P,90182508,CAREWATCH (BARNET),287.79,22/07/2019
Delivery Units,Adults and Health,Other Agencies - Third Party P,90182509,CAREWATCH (BARNET),206.19,22/07/2019
Delivery Units,Adults and Health,Other Agencies - Third Party P,90182510,CAREWATCH (BARNET),240.52,22/07/2019
Delivery Units,Adults and Health,Other Agencies - Third Party P,90182511,CAREWATCH (BARNET),42.95,22/07/2019
Delivery Units,Adults and Health,Other Agencies - Third Party P,90182512,CAREWATCH (BARNET),257.7,22/07/2019
Delivery Units,Adults and Health,Other Agencies - Third Party P,90182513,CAREWATCH (BARNET),206.22,22/07/2019
Delivery Units,Adults and Health,Other Agencies - Third Party P,90182514,CAREWATCH (BARNET),38.66,22/07/2019
Delivery Units,Adults and Health,Other Agencies - Third Party P,90182515,CAREWATCH (BARNET),85.93,22/07/2019
Delivery Units,Adults and Health,Other Agencies - Third Party P,90182516,CAREWATCH (BARNET),133.17,22/07/2019
Delivery Units,Adults and Health,Other Agencies - Third Party P,90182519,CAREWATCH (BARNET),120.26,22/07/2019
Delivery Units,Adults and Health,Other Agencies - Third Party P,90182520,CAREWATCH (BARNET),257.73,22/07/2019
Delivery Units,Adults and Health,Other Agencies - Third Party P,90182521,CAREWATCH (BARNET),210.49,22/07/2019
Delivery Units,Adults and Health,Other Agencies - Third Party P,90182522,CAREWATCH (BARNET),180.39,22/07/2019
Delivery Units,Adults and Health,Other Agencies - Third Party P,90182523,CAREWATCH (BARNET),300.65,22/07/2019
Delivery Units,Adults and Health,Other Agencies - Third Party P,90182524,CAREWATCH (BARNET),781.9,22/07/2019
Delivery Units,Adults and Health,Other Agencies - Third Party P,90182525,CAREWATCH (BARNET),150.36,22/07/2019
Delivery Units,Adults and Health,Other Agencies - Third Party P,90182526,CAREWATCH (BARNET),120.26,22/07/2019
Delivery Units,Adults and Health,Other Agencies - Third Party P,90182527,CAREWATCH (BARNET),210.49,22/07/2019
Delivery Units,Adults and Health,Other Agencies - Third Party P,90182528,CAREWATCH (BARNET),240.52,22/07/2019
Delivery Units,Adults and Health,Other Agencies - Third Party P,90182529,CAREWATCH (BARNET),240.52,22/07/2019
Delivery Units,Adults and Health,Other Agencies - Third Party P,90182531,CAREWATCH (BARNET),137.44,22/07/2019
Delivery Units,Adults and Health,Other Agencies - Third Party P,90182532,CAREWATCH (BARNET),210.49,22/07/2019
Delivery Units,Adults and Health,Other Agencies - Third Party P,90182533,CAREWATCH (BARNET),201.9,22/07/2019
Delivery Units,Adults and Health,Other Agencies - Third Party P,90182534,CAREWATCH (BARNET),141.77,22/07/2019
Delivery Units,Adults and Health,Other Agencies - Third Party P,90182535,CAREWATCH (BARNET),270.62,22/07/2019
Delivery Units,Adults and Health,Other Agencies - Third Party P,90182536,CAREWATCH (BARNET),227.67,22/07/2019
Delivery Units,Adults and Health,Other Agencies - Third Party P,90182537,CAREWATCH (BARNET),300.72,22/07/2019
Delivery Units,Adults and Health,Other Agencies - Third Party P,90182538,CAREWATCH (BARNET),180.46,22/07/2019
Delivery Units,Adults and Health,Other Agencies - Third Party P,90182539,CAREWATCH (BARNET),42.96,22/07/2019
Delivery Units,Adults and Health,Other Agencies - Third Party P,90182540,CAREWATCH (BARNET),120.26,22/07/2019
Delivery Units,Adults and Health,Other Agencies - Third Party P,90182541,CAREWATCH (BARNET),163.21,22/07/2019
Delivery Units,Adults and Health,Other Agencies - Third Party P,90182542,CAREWATCH (BARNET),210.49,22/07/2019
Delivery Units,Adults and Health,Other Agencies - Third Party P,90182543,CAREWATCH (BARNET),60.13,22/07/2019
Delivery Units,Adults and Health,Other Agencies - Third Party P,90182544,CAREWATCH (BARNET),438.09,22/07/2019
Delivery Units,Adults and Health,Other Agencies - Third Party P,90182545,CAREWATCH (BARNET),240.59,22/07/2019
Delivery Units,Adults and Health,Other Agencies - Third Party P,90182546,CAREWATCH (BARNET),120.26,22/07/2019
Delivery Units,Adults and Health,Other Agencies - Third Party P,90182548,CAREWATCH (BARNET),266.29,22/07/2019
Delivery Units,Adults and Health,Other Agencies - Third Party P,90182549,CAREWATCH (BARNET),240.52,22/07/2019
Delivery Units,Adults and Health,Other Agencies - Third Party P,90182991,CAREWATCH (BARNET),128.85,23/07/2019
Delivery Units,Adults and Health,Other Agencies - Third Party P,90182992,CAREWATCH (BARNET),96.67,23/07/2019
Delivery Units,Adults and Health,Other Agencies - Third Party P,90182993,CAREWATCH (BARNET),745.19,23/07/2019
Delivery Units,Adults and Health,Other Agencies - Third Party P,90182994,CAREWATCH (BARNET),12.89,23/07/2019
Delivery Units,Adults and Health,Other Agencies - Third Party P,90182995,CAREWATCH (BARNET),60.13,23/07/2019
Delivery Units,Adults and Health,Other Agencies - Third Party P,90182996,CAREWATCH (BARNET),193.28,23/07/2019
Delivery Units,Adults and Health,Other Agencies - Third Party P,90182997,CAREWATCH (BARNET),206.19,23/07/2019
Delivery Units,Adults and Health,Other Agencies - Third Party P,90182998,CAREWATCH (BARNET),141.78,23/07/2019
Delivery Units,Adults and Health,Other Agencies - Third Party P,90183000,CAREWATCH (BARNET),298.52,23/07/2019
Delivery Units,Adults and Health,Other Agencies - Third Party P,90183001,CAREWATCH (BARNET),236.24,23/07/2019
Delivery Units,Adults and Health,Other Agencies - Third Party P,90183002,CAREWATCH (BARNET),405.96,23/07/2019
Delivery Units,Adults and Health,Other Agencies - Third Party P,90183003,CAREWATCH (BARNET),253.44,23/07/2019
Delivery Units,Adults and Health,Other Agencies - Third Party P,90183004,CAREWATCH (BARNET),249.12,23/07/2019
Delivery Units,Adults and Health,Other Agencies - Third Party P,90183005,CAREWATCH (BARNET),143.92,23/07/2019
Delivery Units,Adults and Health,Other Agencies - Third Party P,90183006,CAREWATCH (BARNET),277.04,23/07/2019
Delivery Units,Adults and Health,Other Agencies - Third Party P,90183007,CAREWATCH (BARNET),103.1,23/07/2019
Delivery Units,Adults and Health,Other Agencies - Third Party P,90183008,CAREWATCH (BARNET),193.28,23/07/2019
Delivery Units,Adults and Health,Other Agencies - Third Party P,90183009,CAREWATCH (BARNET),96.67,23/07/2019
Delivery Units,Adults and Health,Other Agencies - Third Party P,90183012,CAREWATCH (BARNET),131,23/07/2019
Delivery Units,Adults and Health,Other Agencies - Third Party P,90183013,CAREWATCH (BARNET),96.67,23/07/2019
Delivery Units,Adults and Health,Other Agencies - Third Party P,90183014,CAREWATCH (BARNET),120.27,23/07/2019
Delivery Units,Adults and Health,Other Agencies - Third Party P,90183015,CAREWATCH (BARNET),107.38,23/07/2019
Delivery Units,Adults and Health,Other Agencies - Third Party P,90183016,CAREWATCH (BARNET),42.95,23/07/2019
Delivery Units,Adults and Health,Other Agencies - Third Party P,90183017,CAREWATCH (BARNET),307.16,23/07/2019
Delivery Units,Adults and Health,Other Agencies - Third Party P,90183018,CAREWATCH (BARNET),96.67,23/07/2019
Delivery Units,Adults and Health,Other Agencies - Third Party P,90183020,CAREWATCH (BARNET),165.36,23/07/2019
Delivery Units,Adults and Health,Other Agencies - Third Party P,90183021,CAREWATCH (BARNET),313.56,23/07/2019
Delivery Units,Adults and Health,Other Agencies - Third Party P,90183022,CAREWATCH (BARNET),128.85,23/07/2019
Delivery Units,Adults and Health,Other Agencies - Third Party P,90183024,CAREWATCH (BARNET),193.34,23/07/2019
Delivery Units,Adults and Health,Other Agencies - Third Party P,90183025,CAREWATCH (BARNET),49.4,23/07/2019
Delivery Units,Adults and Health,Other Agencies - Third Party P,90183026,CAREWATCH (BARNET),219.06,23/07/2019
Delivery Units,Adults and Health,Other Agencies - Third Party P,90183027,CAREWATCH (BARNET),313.56,23/07/2019
Delivery Units,Adults and Health,Other Agencies - Third Party P,90183028,CAREWATCH (BARNET),234.08,23/07/2019
Delivery Units,Adults and Health,Other Agencies - Third Party P,90183029,CAREWATCH (BARNET),60.14,23/07/2019
Delivery Units,Adults and Health,Other Agencies - Third Party P,90183030,CAREWATCH (BARNET),287.78,23/07/2019
Delivery Units,Adults and Health,Other Agencies - Third Party P,90183031,CAREWATCH (BARNET),287.79,23/07/2019
Delivery Units,Adults and Health,Other Agencies - Third Party P,90183032,CAREWATCH (BARNET),38.66,23/07/2019
Delivery Units,Adults and Health,Other Agencies - Third Party P,90183033,CAREWATCH (BARNET),83.77,23/07/2019
Delivery Units,Adults and Health,Other Agencies - Third Party P,90183036,CAREWATCH (BARNET),257.7,23/07/2019
Delivery Units,Adults and Health,Other Agencies - Third Party P,90183037,CAREWATCH (BARNET),644.28,23/07/2019
Delivery Units,Adults and Health,Other Agencies - Third Party P,90183038,CAREWATCH (BARNET),58,23/07/2019
Delivery Units,Adults and Health,Other Agencies - Third Party P,90183039,CAREWATCH (BARNET),277.06,23/07/2019
Delivery Units,Adults and Health,Other Agencies - Third Party P,90183040,CAREWATCH (BARNET),225.53,23/07/2019
Delivery Units,Adults and Health,Other Agencies - Third Party P,90183041,CAREWATCH (BARNET),322.14,23/07/2019
Delivery Units,Adults and Health,Other Agencies - Third Party P,90183042,CAREWATCH (BARNET),837.72,23/07/2019
Delivery Units,Adults and Health,Other Agencies - Third Party P,90183043,CAREWATCH (BARNET),161.1,23/07/2019
Delivery Units,Adults and Health,Other Agencies - Third Party P,90183044,CAREWATCH (BARNET),128.86,23/07/2019
Delivery Units,Adults and Health,Other Agencies - Third Party P,90183045,CAREWATCH (BARNET),225.53,23/07/2019
Delivery Units,Adults and Health,Other Agencies - Third Party P,90183046,CAREWATCH (BARNET),21.48,23/07/2019
Delivery Units,Adults and Health,Other Agencies - Third Party P,90183047,CAREWATCH (BARNET),216.94,23/07/2019
Delivery Units,Adults and Health,Other Agencies - Third Party P,90183048,CAREWATCH (BARNET),152.51,23/07/2019
Delivery Units,Adults and Health,Other Agencies - Third Party P,90183049,CAREWATCH (BARNET),289.95,23/07/2019
Delivery Units,Adults and Health,Other Agencies - Third Party P,90183050,CAREWATCH (BARNET),259.89,23/07/2019
Delivery Units,Adults and Health,Other Agencies - Third Party P,90183051,CAREWATCH (BARNET),322.2,23/07/2019
Delivery Units,Adults and Health,Other Agencies - Third Party P,90183052,CAREWATCH (BARNET),128.86,23/07/2019
Delivery Units,Adults and Health,Other Agencies - Third Party P,90183053,CAREWATCH (BARNET),176.11,23/07/2019
Delivery Units,Adults and Health,Other Agencies - Third Party P,90183054,CAREWATCH (BARNET),225.53,23/07/2019
Delivery Units,Adults and Health,Other Agencies - Third Party P,90183055,CAREWATCH (BARNET),225.53,23/07/2019
Delivery Units,Adults and Health,Other Agencies - Third Party P,90183056,CAREWATCH (BARNET),64.43,23/07/2019
Delivery Units,Adults and Health,Other Agencies - Third Party P,90183057,CAREWATCH (BARNET),463.86,23/07/2019
Delivery Units,Adults and Health,Other Agencies - Third Party P,90183058,CAREWATCH (BARNET),219.11,23/07/2019
Delivery Units,Adults and Health,Other Agencies - Third Party P,90183059,CAREWATCH (BARNET),257.77,23/07/2019
Delivery Units,Adults and Health,Other Agencies - Third Party P,90183061,CAREWATCH (BARNET),257.71,23/07/2019
Delivery Units,Adults and Health,Other Agencies - Third Party P,90183062,CAREWATCH (BARNET),161.1,23/07/2019
Delivery Units,Adults and Health,Other Agencies - Third Party P,90179400,DYNAMIC PEOPLE LTD,138.04,09/07/2019
Delivery Units,Adults and Health,Other Agencies - Third Party P,90179401,DYNAMIC PEOPLE LTD,248.43,09/07/2019
Delivery Units,Adults and Health,Other Agencies - Third Party P,90179402,DYNAMIC PEOPLE LTD,70.96,09/07/2019
Delivery Units,Adults and Health,Other Agencies - Third Party P,90179403,DYNAMIC PEOPLE LTD,59.15,09/07/2019
Delivery Units,Adults and Health,Other Agencies - Third Party P,90179405,DYNAMIC PEOPLE LTD,193.27,09/07/2019
Delivery Units,Adults and Health,Other Agencies - Third Party P,90179406,DYNAMIC PEOPLE LTD,193.2,09/07/2019
Delivery Units,Adults and Health,Other Agencies - Third Party P,90179407,DYNAMIC PEOPLE LTD,354.89,09/07/2019
Delivery Units,Adults and Health,Other Agencies - Third Party P,90179408,DYNAMIC PEOPLE LTD,31.54,09/07/2019
Delivery Units,Adults and Health,Other Agencies - Third Party P,90179409,DYNAMIC PEOPLE LTD,82.81,09/07/2019
Delivery Units,Adults and Health,Other Agencies - Third Party P,90179410,DYNAMIC PEOPLE LTD,153.81,09/07/2019
Delivery Units,Adults and Health,Other Agencies - Third Party P,90179411,DYNAMIC PEOPLE LTD,94.65,09/07/2019
Delivery Units,Adults and Health,Other Agencies - Third Party P,90179412,DYNAMIC PEOPLE LTD,51.25,09/07/2019
Delivery Units,Adults and Health,Other Agencies - Third Party P,90179413,DYNAMIC PEOPLE LTD,331.24,09/07/2019
Delivery Units,Adults and Health,Other Agencies - Third Party P,90179414,DYNAMIC PEOPLE LTD,193.27,09/07/2019
Delivery Units,Adults and Health,Other Agencies - Third Party P,90179415,DYNAMIC PEOPLE LTD,82.79,09/07/2019
Delivery Units,Adults and Health,Other Agencies - Third Party P,90179416,DYNAMIC PEOPLE LTD,82.81,09/07/2019
Delivery Units,Adults and Health,Other Agencies - Third Party P,90179417,DYNAMIC PEOPLE LTD,276.08,09/07/2019
Delivery Units,Adults and Health,Other Agencies - Third Party P,90179418,DYNAMIC PEOPLE LTD,208.97,09/07/2019
Delivery Units,Adults and Health,Other Agencies - Third Party P,90179420,DYNAMIC PEOPLE LTD,82.81,09/07/2019
Delivery Units,Adults and Health,Other Agencies - Third Party P,90179422,DYNAMIC PEOPLE LTD,82.81,09/07/2019
Delivery Units,Adults and Health,Other Agencies - Third Party P,90179424,DYNAMIC PEOPLE LTD,110.39,09/07/2019
Delivery Units,Adults and Health,Other Agencies - Third Party P,90179426,DYNAMIC PEOPLE LTD,59.16,09/07/2019
Delivery Units,Adults and Health,Other Agencies - Third Party P,90179427,DYNAMIC PEOPLE LTD,141.93,09/07/2019
Delivery Units,Adults and Health,Other Agencies - Third Party P,90179429,DYNAMIC PEOPLE LTD,303.59,09/07/2019
Delivery Units,Adults and Health,Other Agencies - Third Party P,90179430,DYNAMIC PEOPLE LTD,138.04,09/07/2019
Delivery Units,Adults and Health,Other Agencies - Third Party P,90179431,DYNAMIC PEOPLE LTD,165.62,09/07/2019
Delivery Units,Adults and Health,Other Agencies - Third Party P,90179433,DYNAMIC PEOPLE LTD,134.1,09/07/2019
Delivery Units,Adults and Health,Other Agencies - Third Party P,90179434,DYNAMIC PEOPLE LTD,82.81,09/07/2019
Delivery Units,Adults and Health,Other Agencies - Third Party P,90179435,DYNAMIC PEOPLE LTD,"1,411.45",09/07/2019
Delivery Units,Adults and Health,Other Agencies - Third Party P,90179436,DYNAMIC PEOPLE LTD,63.08,09/07/2019
Delivery Units,Adults and Health,Other Agencies - Third Party P,90179437,DYNAMIC PEOPLE LTD,287.8,09/07/2019
Delivery Units,Adults and Health,Other Agencies - Third Party P,90179438,DYNAMIC PEOPLE LTD,138.04,09/07/2019
Delivery Units,Adults and Health,Other Agencies - Third Party P,90179440,DYNAMIC PEOPLE LTD,51.26,09/07/2019
Delivery Units,Adults and Health,Other Agencies - Third Party P,90179441,DYNAMIC PEOPLE LTD,55.23,09/07/2019
Delivery Units,Adults and Health,Other Agencies - Third Party P,90179442,DYNAMIC PEOPLE LTD,248.5,09/07/2019
Delivery Units,Adults and Health,Other Agencies - Third Party P,90179444,DYNAMIC PEOPLE LTD,772.83,09/07/2019
Delivery Units,Adults and Health,Other Agencies - Third Party P,90179446,DYNAMIC PEOPLE LTD,78.88,09/07/2019
Delivery Units,Adults and Health,Other Agencies - Third Party P,90179447,DYNAMIC PEOPLE LTD,260.29,09/07/2019
Delivery Units,Adults and Health,Other Agencies - Third Party P,90179448,DYNAMIC PEOPLE LTD,110.46,09/07/2019
Delivery Units,Adults and Health,Other Agencies - Third Party P,90179449,DYNAMIC PEOPLE LTD,161.68,09/07/2019
Delivery Units,Adults and Health,Other Agencies - Third Party P,90179450,DYNAMIC PEOPLE LTD,118.35,09/07/2019
Delivery Units,Adults and Health,Other Agencies - Third Party P,90179451,DYNAMIC PEOPLE LTD,82.81,09/07/2019
Delivery Units,Adults and Health,Other Agencies - Third Party P,90179453,DYNAMIC PEOPLE LTD,31.54,09/07/2019
Delivery Units,Adults and Health,Other Agencies - Third Party P,90179454,DYNAMIC PEOPLE LTD,220.85,09/07/2019
Delivery Units,Adults and Health,Other Agencies - Third Party P,90179455,DYNAMIC PEOPLE LTD,161.67,09/07/2019
Delivery Units,Adults and Health,Other Agencies - Third Party P,90179456,DYNAMIC PEOPLE LTD,299.71,09/07/2019
Delivery Units,Adults and Health,Other Agencies - Third Party P,90179457,DYNAMIC PEOPLE LTD,31.54,09/07/2019
Delivery Units,Adults and Health,Other Agencies - Third Party P,90179459,DYNAMIC PEOPLE LTD,98.56,09/07/2019
Delivery Units,Adults and Health,Other Agencies - Third Party P,90179460,DYNAMIC PEOPLE LTD,138.03,09/07/2019
Delivery Units,Adults and Health,Other Agencies - Third Party P,90179461,DYNAMIC PEOPLE LTD,224.76,09/07/2019
Delivery Units,Adults and Health,Other Agencies - Third Party P,90179462,DYNAMIC PEOPLE LTD,122.26,09/07/2019
Delivery Units,Adults and Health,Other Agencies - Third Party P,90179463,DYNAMIC PEOPLE LTD,173.47,09/07/2019
Delivery Units,Adults and Health,Other Agencies - Third Party P,90179465,DYNAMIC PEOPLE LTD,70.97,09/07/2019
Delivery Units,Adults and Health,Other Agencies - Third Party P,90179466,DYNAMIC PEOPLE LTD,260.25,09/07/2019
Delivery Units,Adults and Health,Other Agencies - Third Party P,90179467,DYNAMIC PEOPLE LTD,55.21,09/07/2019
Delivery Units,Adults and Health,Other Agencies - Third Party P,90179468,DYNAMIC PEOPLE LTD,126.17,09/07/2019
Delivery Units,Adults and Health,Other Agencies - Third Party P,90179469,DYNAMIC PEOPLE LTD,23.66,09/07/2019
Delivery Units,Adults and Health,Other Agencies - Third Party P,90179470,DYNAMIC PEOPLE LTD,82.81,09/07/2019
Delivery Units,Adults and Health,Other Agencies - Third Party P,90179471,DYNAMIC PEOPLE LTD,35.49,09/07/2019
Delivery Units,Adults and Health,Other Agencies - Third Party P,90179473,DYNAMIC PEOPLE LTD,94.62,09/07/2019
Delivery Units,Adults and Health,Other Agencies - Third Party P,90179474,DYNAMIC PEOPLE LTD,717.54,09/07/2019
Delivery Units,Adults and Health,Other Agencies - Third Party P,90179475,DYNAMIC PEOPLE LTD,358.82,09/07/2019
Delivery Units,Adults and Health,Other Agencies - Third Party P,90179477,DYNAMIC PEOPLE LTD,39.44,09/07/2019
Delivery Units,Adults and Health,Other Agencies - Third Party P,90179478,DYNAMIC PEOPLE LTD,165.62,09/07/2019
Delivery Units,Adults and Health,Other Agencies - Third Party P,90179479,DYNAMIC PEOPLE LTD,220.85,09/07/2019
Delivery Units,Adults and Health,Other Agencies - Third Party P,90179482,DYNAMIC PEOPLE LTD,78.9,09/07/2019
Delivery Units,Adults and Health,Other Agencies - Third Party P,90179483,DYNAMIC PEOPLE LTD,205.01,09/07/2019
Delivery Units,Adults and Health,Other Agencies - Third Party P,90179484,DYNAMIC PEOPLE LTD,276.08,09/07/2019
Delivery Units,Adults and Health,Other Agencies - Third Party P,90179485,DYNAMIC PEOPLE LTD,169.56,09/07/2019
Delivery Units,Adults and Health,Other Agencies - Third Party P,90179486,DYNAMIC PEOPLE LTD,177.51,09/07/2019
Delivery Units,Adults and Health,Other Agencies - Third Party P,90179487,DYNAMIC PEOPLE LTD,47.31,09/07/2019
Delivery Units,Adults and Health,Other Agencies - Third Party P,90179488,DYNAMIC PEOPLE LTD,299.74,09/07/2019
Delivery Units,Adults and Health,Other Agencies - Third Party P,90179489,DYNAMIC PEOPLE LTD,165.62,09/07/2019
Delivery Units,Adults and Health,Other Agencies - Third Party P,90179490,DYNAMIC PEOPLE LTD,268.12,09/07/2019
Delivery Units,Adults and Health,Other Agencies - Third Party P,90179491,DYNAMIC PEOPLE LTD,15.78,09/07/2019
Delivery Units,Adults and Health,Other Agencies - Third Party P,90179492,DYNAMIC PEOPLE LTD,717.64,09/07/2019
Delivery Units,Adults and Health,Other Agencies - Third Party P,90179493,DYNAMIC PEOPLE LTD,82.81,09/07/2019
Delivery Units,Adults and Health,Other Agencies - Third Party P,90179494,DYNAMIC PEOPLE LTD,63.11,09/07/2019
Delivery Units,Adults and Health,Other Agencies - Third Party P,90179495,DYNAMIC PEOPLE LTD,110.39,09/07/2019
Delivery Units,Adults and Health,Other Agencies - Third Party P,90179497,DYNAMIC PEOPLE LTD,497,09/07/2019
Delivery Units,Adults and Health,Other Agencies - Third Party P,90179498,DYNAMIC PEOPLE LTD,185.38,09/07/2019
Delivery Units,Adults and Health,Other Agencies - Third Party P,90179499,DYNAMIC PEOPLE LTD,295.71,09/07/2019
Delivery Units,Adults and Health,Other Agencies - Third Party P,90179500,DYNAMIC PEOPLE LTD,138.04,09/07/2019
Delivery Units,Adults and Health,Other Agencies - Third Party P,90179501,DYNAMIC PEOPLE LTD,15.78,09/07/2019
Delivery Units,Adults and Health,Other Agencies - Third Party P,90179503,DYNAMIC PEOPLE LTD,71,09/07/2019
Delivery Units,Adults and Health,Other Agencies - Third Party P,90179504,DYNAMIC PEOPLE LTD,193.2,09/07/2019
Delivery Units,Adults and Health,Other Agencies - Third Party P,90179506,DYNAMIC PEOPLE LTD,47.32,09/07/2019
Delivery Units,Adults and Health,Other Agencies - Third Party P,90179507,DYNAMIC PEOPLE LTD,82.81,09/07/2019
Delivery Units,Adults and Health,Other Agencies - Third Party P,90179509,DYNAMIC PEOPLE LTD,276.01,09/07/2019
Delivery Units,Adults and Health,Other Agencies - Third Party P,90179510,DYNAMIC PEOPLE LTD,220.85,09/07/2019
Delivery Units,Adults and Health,Other Agencies - Third Party P,90179511,DYNAMIC PEOPLE LTD,173.47,09/07/2019
Delivery Units,Adults and Health,Other Agencies - Third Party P,90179512,DYNAMIC PEOPLE LTD,86.79,09/07/2019
Delivery Units,Adults and Health,Other Agencies - Third Party P,90179513,DYNAMIC PEOPLE LTD,82.81,09/07/2019
Delivery Units,Adults and Health,Other Agencies - Third Party P,90179514,DYNAMIC PEOPLE LTD,35.49,09/07/2019
Delivery Units,Adults and Health,Other Agencies - Third Party P,90179515,DYNAMIC PEOPLE LTD,82.79,09/07/2019
Delivery Units,Adults and Health,Other Agencies - Third Party P,90179517,DYNAMIC PEOPLE LTD,31.54,09/07/2019
Delivery Units,Adults and Health,Other Agencies - Third Party P,90179520,DYNAMIC PEOPLE LTD,138.04,09/07/2019
Delivery Units,Adults and Health,Other Agencies - Third Party P,90179640,DYNAMIC PEOPLE LTD,138.04,09/07/2019
Delivery Units,Adults and Health,Other Agencies - Third Party P,90179641,DYNAMIC PEOPLE LTD,248.43,09/07/2019
Delivery Units,Adults and Health,Other Agencies - Third Party P,90179642,DYNAMIC PEOPLE LTD,70.96,09/07/2019
Delivery Units,Adults and Health,Other Agencies - Third Party P,90179643,DYNAMIC PEOPLE LTD,59.15,09/07/2019
Delivery Units,Adults and Health,Other Agencies - Third Party P,90179645,DYNAMIC PEOPLE LTD,197.21,09/07/2019
Delivery Units,Adults and Health,Other Agencies - Third Party P,90179646,DYNAMIC PEOPLE LTD,193.2,09/07/2019
Delivery Units,Adults and Health,Other Agencies - Third Party P,90179647,DYNAMIC PEOPLE LTD,370.66,09/07/2019
Delivery Units,Adults and Health,Other Agencies - Third Party P,90179648,DYNAMIC PEOPLE LTD,31.54,09/07/2019
Delivery Units,Adults and Health,Other Agencies - Third Party P,90179649,DYNAMIC PEOPLE LTD,82.81,09/07/2019
Delivery Units,Adults and Health,Other Agencies - Third Party P,90179650,DYNAMIC PEOPLE LTD,153.81,09/07/2019
Delivery Units,Adults and Health,Other Agencies - Third Party P,90179651,DYNAMIC PEOPLE LTD,86.77,09/07/2019
Delivery Units,Adults and Health,Other Agencies - Third Party P,90179652,DYNAMIC PEOPLE LTD,102.5,09/07/2019
Delivery Units,Adults and Health,Other Agencies - Third Party P,90179654,DYNAMIC PEOPLE LTD,331.24,09/07/2019
Delivery Units,Adults and Health,Other Agencies - Third Party P,90179655,DYNAMIC PEOPLE LTD,193.27,09/07/2019
Delivery Units,Adults and Health,Other Agencies - Third Party P,90179656,DYNAMIC PEOPLE LTD,74.91,09/07/2019
Delivery Units,Adults and Health,Other Agencies - Third Party P,90179657,DYNAMIC PEOPLE LTD,82.81,09/07/2019
Delivery Units,Adults and Health,Other Agencies - Third Party P,90179658,DYNAMIC PEOPLE LTD,276.08,09/07/2019
Delivery Units,Adults and Health,Other Agencies - Third Party P,90179659,DYNAMIC PEOPLE LTD,252.35,09/07/2019
Delivery Units,Adults and Health,Other Agencies - Third Party P,90179661,DYNAMIC PEOPLE LTD,82.81,09/07/2019
Delivery Units,Adults and Health,Other Agencies - Third Party P,90179663,DYNAMIC PEOPLE LTD,59.15,09/07/2019
Delivery Units,Adults and Health,Other Agencies - Third Party P,90179665,DYNAMIC PEOPLE LTD,110.39,09/07/2019
Delivery Units,Adults and Health,Other Agencies - Third Party P,90179667,DYNAMIC PEOPLE LTD,59.16,09/07/2019
Delivery Units,Adults and Health,Other Agencies - Third Party P,90179668,DYNAMIC PEOPLE LTD,94.62,09/07/2019
Delivery Units,Adults and Health,Other Agencies - Third Party P,90179670,DYNAMIC PEOPLE LTD,303.59,09/07/2019
Delivery Units,Adults and Health,Other Agencies - Third Party P,90179671,DYNAMIC PEOPLE LTD,138.04,09/07/2019
Delivery Units,Adults and Health,Other Agencies - Third Party P,90179672,DYNAMIC PEOPLE LTD,165.62,09/07/2019
Delivery Units,Adults and Health,Other Agencies - Third Party P,90179674,DYNAMIC PEOPLE LTD,138.04,09/07/2019
Delivery Units,Adults and Health,Other Agencies - Third Party P,90179675,DYNAMIC PEOPLE LTD,82.81,09/07/2019
Delivery Units,Adults and Health,Other Agencies - Third Party P,90179676,DYNAMIC PEOPLE LTD,"1,411.45",09/07/2019
Delivery Units,Adults and Health,Other Agencies - Third Party P,90179678,DYNAMIC PEOPLE LTD,63.08,09/07/2019
Delivery Units,Adults and Health,Other Agencies - Third Party P,90179679,DYNAMIC PEOPLE LTD,327.23,09/07/2019
Delivery Units,Adults and Health,Other Agencies - Third Party P,90179680,DYNAMIC PEOPLE LTD,138.04,09/07/2019
Delivery Units,Adults and Health,Other Agencies - Third Party P,90179682,DYNAMIC PEOPLE LTD,51.26,09/07/2019
Delivery Units,Adults and Health,Other Agencies - Third Party P,90179683,DYNAMIC PEOPLE LTD,110.39,09/07/2019
Delivery Units,Adults and Health,Other Agencies - Third Party P,90179684,DYNAMIC PEOPLE LTD,55.23,09/07/2019
Delivery Units,Adults and Health,Other Agencies - Third Party P,90179685,DYNAMIC PEOPLE LTD,244.55,09/07/2019
Delivery Units,Adults and Health,Other Agencies - Third Party P,90179687,DYNAMIC PEOPLE LTD,741.28,09/07/2019
Delivery Units,Adults and Health,Other Agencies - Third Party P,90179689,DYNAMIC PEOPLE LTD,276.08,09/07/2019
Delivery Units,Adults and Health,Other Agencies - Third Party P,90179690,DYNAMIC PEOPLE LTD,110.46,09/07/2019
Delivery Units,Adults and Health,Other Agencies - Third Party P,90179691,DYNAMIC PEOPLE LTD,141.98,09/07/2019
Delivery Units,Adults and Health,Other Agencies - Third Party P,90179692,DYNAMIC PEOPLE LTD,110.46,09/07/2019
Delivery Units,Adults and Health,Other Agencies - Third Party P,90179693,DYNAMIC PEOPLE LTD,82.81,09/07/2019
Delivery Units,Adults and Health,Other Agencies - Third Party P,90179695,DYNAMIC PEOPLE LTD,31.54,09/07/2019
Delivery Units,Adults and Health,Other Agencies - Third Party P,90179696,DYNAMIC PEOPLE LTD,220.85,09/07/2019
Delivery Units,Adults and Health,Other Agencies - Third Party P,90179697,DYNAMIC PEOPLE LTD,149.86,09/07/2019
Delivery Units,Adults and Health,Other Agencies - Third Party P,90179698,DYNAMIC PEOPLE LTD,299.74,09/07/2019
Delivery Units,Adults and Health,Other Agencies - Third Party P,90179699,DYNAMIC PEOPLE LTD,31.54,09/07/2019
Delivery Units,Adults and Health,Other Agencies - Third Party P,90179701,DYNAMIC PEOPLE LTD,134.1,09/07/2019
Delivery Units,Adults and Health,Other Agencies - Third Party P,90179702,DYNAMIC PEOPLE LTD,138.04,09/07/2019
Delivery Units,Adults and Health,Other Agencies - Third Party P,90179703,DYNAMIC PEOPLE LTD,228.7,09/07/2019
Delivery Units,Adults and Health,Other Agencies - Third Party P,90179704,DYNAMIC PEOPLE LTD,118.31,09/07/2019
Delivery Units,Adults and Health,Other Agencies - Third Party P,90179705,DYNAMIC PEOPLE LTD,173.47,09/07/2019
Delivery Units,Adults and Health,Other Agencies - Third Party P,90179707,DYNAMIC PEOPLE LTD,78.85,09/07/2019
Delivery Units,Adults and Health,Other Agencies - Third Party P,90179708,DYNAMIC PEOPLE LTD,236.6,09/07/2019
Delivery Units,Adults and Health,Other Agencies - Third Party P,90179709,DYNAMIC PEOPLE LTD,47.32,09/07/2019
Delivery Units,Adults and Health,Other Agencies - Third Party P,90179710,DYNAMIC PEOPLE LTD,126.17,09/07/2019
Delivery Units,Adults and Health,Other Agencies - Third Party P,90179711,DYNAMIC PEOPLE LTD,39.43,09/07/2019
Delivery Units,Adults and Health,Other Agencies - Third Party P,90179712,DYNAMIC PEOPLE LTD,82.81,09/07/2019
Delivery Units,Adults and Health,Other Agencies - Third Party P,90179713,DYNAMIC PEOPLE LTD,35.49,09/07/2019
Delivery Units,Adults and Health,Other Agencies - Third Party P,90179715,DYNAMIC PEOPLE LTD,98.56,09/07/2019
Delivery Units,Adults and Health,Other Agencies - Third Party P,90179716,DYNAMIC PEOPLE LTD,717.54,09/07/2019
Delivery Units,Adults and Health,Other Agencies - Third Party P,90179717,DYNAMIC PEOPLE LTD,358.82,09/07/2019
Delivery Units,Adults and Health,Other Agencies - Third Party P,90179719,DYNAMIC PEOPLE LTD,138.04,09/07/2019
Delivery Units,Adults and Health,Other Agencies - Third Party P,90179720,DYNAMIC PEOPLE LTD,161.68,09/07/2019
Delivery Units,Adults and Health,Other Agencies - Third Party P,90179721,DYNAMIC PEOPLE LTD,220.85,09/07/2019
Delivery Units,Adults and Health,Other Agencies - Third Party P,90179724,DYNAMIC PEOPLE LTD,205.01,09/07/2019
Delivery Units,Adults and Health,Other Agencies - Third Party P,90179725,DYNAMIC PEOPLE LTD,276.08,09/07/2019
Delivery Units,Adults and Health,Other Agencies - Third Party P,90179726,DYNAMIC PEOPLE LTD,169.56,09/07/2019
Delivery Units,Adults and Health,Other Agencies - Third Party P,90179727,DYNAMIC PEOPLE LTD,177.51,09/07/2019
Delivery Units,Adults and Health,Other Agencies - Third Party P,90179728,DYNAMIC PEOPLE LTD,94.64,09/07/2019
Delivery Units,Adults and Health,Other Agencies - Third Party P,90179729,DYNAMIC PEOPLE LTD,47.31,09/07/2019
Delivery Units,Adults and Health,Other Agencies - Third Party P,90179730,DYNAMIC PEOPLE LTD,295.79,09/07/2019
Delivery Units,Adults and Health,Other Agencies - Third Party P,90179731,DYNAMIC PEOPLE LTD,165.62,09/07/2019
Delivery Units,Adults and Health,Other Agencies - Third Party P,90179732,DYNAMIC PEOPLE LTD,272.06,09/07/2019
Delivery Units,Adults and Health,Other Agencies - Third Party P,90179733,DYNAMIC PEOPLE LTD,165.69,09/07/2019
Delivery Units,Adults and Health,Other Agencies - Third Party P,90179734,DYNAMIC PEOPLE LTD,717.64,09/07/2019
Delivery Units,Adults and Health,Other Agencies - Third Party P,90179735,DYNAMIC PEOPLE LTD,82.81,09/07/2019
Delivery Units,Adults and Health,Other Agencies - Third Party P,90179736,DYNAMIC PEOPLE LTD,110.39,09/07/2019
Delivery Units,Adults and Health,Other Agencies - Third Party P,90179738,DYNAMIC PEOPLE LTD,497,09/07/2019
Delivery Units,Adults and Health,Other Agencies - Third Party P,90179739,DYNAMIC PEOPLE LTD,193.27,09/07/2019
Delivery Units,Adults and Health,Other Agencies - Third Party P,90179740,DYNAMIC PEOPLE LTD,303.59,09/07/2019
Delivery Units,Adults and Health,Other Agencies - Third Party P,90179741,DYNAMIC PEOPLE LTD,138.04,09/07/2019
Delivery Units,Adults and Health,Other Agencies - Third Party P,90179742,DYNAMIC PEOPLE LTD,15.78,09/07/2019
Delivery Units,Adults and Health,Other Agencies - Third Party P,90179744,DYNAMIC PEOPLE LTD,78.9,09/07/2019
Delivery Units,Adults and Health,Other Agencies - Third Party P,90179745,DYNAMIC PEOPLE LTD,193.2,09/07/2019
Delivery Units,Adults and Health,Other Agencies - Third Party P,90179747,DYNAMIC PEOPLE LTD,35.49,09/07/2019
Delivery Units,Adults and Health,Other Agencies - Third Party P,90179748,DYNAMIC PEOPLE LTD,82.81,09/07/2019
Delivery Units,Adults and Health,Other Agencies - Third Party P,90179750,DYNAMIC PEOPLE LTD,276.01,09/07/2019
Delivery Units,Adults and Health,Other Agencies - Third Party P,90179751,DYNAMIC PEOPLE LTD,220.85,09/07/2019
Delivery Units,Adults and Health,Other Agencies - Third Party P,90179752,DYNAMIC PEOPLE LTD,141.93,09/07/2019
Delivery Units,Adults and Health,Other Agencies - Third Party P,90179753,DYNAMIC PEOPLE LTD,86.78,09/07/2019
Delivery Units,Adults and Health,Other Agencies - Third Party P,90179754,DYNAMIC PEOPLE LTD,70.98,09/07/2019
Delivery Units,Adults and Health,Other Agencies - Third Party P,90179755,DYNAMIC PEOPLE LTD,35.49,09/07/2019
Delivery Units,Adults and Health,Other Agencies - Third Party P,90179756,DYNAMIC PEOPLE LTD,110.39,09/07/2019
Delivery Units,Adults and Health,Other Agencies - Third Party P,90179758,DYNAMIC PEOPLE LTD,31.54,09/07/2019
Delivery Units,Adults and Health,Other Agencies - Third Party P,90179761,DYNAMIC PEOPLE LTD,138.04,09/07/2019
Delivery Units,Adults and Health,Other Agencies - Third Party P,90179762,DYNAMIC PEOPLE LTD,63.11,09/07/2019
Delivery Units,Adults and Health,Other Agencies - Third Party P,90181520,DYNAMIC PEOPLE LTD,138.04,22/07/2019
Delivery Units,Adults and Health,Other Agencies - Third Party P,90181521,DYNAMIC PEOPLE LTD,248.43,22/07/2019
Delivery Units,Adults and Health,Other Agencies - Third Party P,90181522,DYNAMIC PEOPLE LTD,70.96,22/07/2019
Delivery Units,Adults and Health,Other Agencies - Third Party P,90181523,DYNAMIC PEOPLE LTD,82.81,22/07/2019
Delivery Units,Adults and Health,Other Agencies - Third Party P,90181524,DYNAMIC PEOPLE LTD,153.81,22/07/2019
Delivery Units,Adults and Health,Other Agencies - Third Party P,90181525,DYNAMIC PEOPLE LTD,193.27,22/07/2019
Delivery Units,Adults and Health,Other Agencies - Third Party P,90181527,DYNAMIC PEOPLE LTD,59.16,22/07/2019
Delivery Units,Adults and Health,Other Agencies - Third Party P,90181529,DYNAMIC PEOPLE LTD,153.81,22/07/2019
Delivery Units,Adults and Health,Other Agencies - Third Party P,90181530,DYNAMIC PEOPLE LTD,303.59,22/07/2019
Delivery Units,Adults and Health,Other Agencies - Third Party P,90181531,DYNAMIC PEOPLE LTD,138.04,22/07/2019
Delivery Units,Adults and Health,Other Agencies - Third Party P,90181532,DYNAMIC PEOPLE LTD,138.04,22/07/2019
Delivery Units,Adults and Health,Other Agencies - Third Party P,90181533,DYNAMIC PEOPLE LTD,82.81,22/07/2019
Delivery Units,Adults and Health,Other Agencies - Third Party P,90181534,DYNAMIC PEOPLE LTD,"1,411.45",22/07/2019
Delivery Units,Adults and Health,Other Agencies - Third Party P,90181535,DYNAMIC PEOPLE LTD,276.08,22/07/2019
Delivery Units,Adults and Health,Other Agencies - Third Party P,90181536,DYNAMIC PEOPLE LTD,82.81,22/07/2019
Delivery Units,Adults and Health,Other Agencies - Third Party P,90181537,DYNAMIC PEOPLE LTD,220.85,22/07/2019
Delivery Units,Adults and Health,Other Agencies - Third Party P,90181538,DYNAMIC PEOPLE LTD,299.74,22/07/2019
Delivery Units,Adults and Health,Other Agencies - Third Party P,90181539,DYNAMIC PEOPLE LTD,138.04,22/07/2019
Delivery Units,Adults and Health,Other Agencies - Third Party P,90181541,DYNAMIC PEOPLE LTD,358.82,22/07/2019
Delivery Units,Adults and Health,Other Agencies - Third Party P,90181542,DYNAMIC PEOPLE LTD,220.85,22/07/2019
Delivery Units,Adults and Health,Other Agencies - Third Party P,90181543,DYNAMIC PEOPLE LTD,276.08,22/07/2019
Delivery Units,Adults and Health,Other Agencies - Third Party P,90181544,DYNAMIC PEOPLE LTD,169.56,22/07/2019
Delivery Units,Adults and Health,Other Agencies - Third Party P,90181545,DYNAMIC PEOPLE LTD,177.51,22/07/2019
Delivery Units,Adults and Health,Other Agencies - Third Party P,90181546,DYNAMIC PEOPLE LTD,165.62,22/07/2019
Delivery Units,Adults and Health,Other Agencies - Third Party P,90181547,DYNAMIC PEOPLE LTD,165.69,22/07/2019
Delivery Units,Adults and Health,Other Agencies - Third Party P,90181548,DYNAMIC PEOPLE LTD,717.64,22/07/2019
Delivery Units,Adults and Health,Other Agencies - Third Party P,90181549,DYNAMIC PEOPLE LTD,82.81,22/07/2019
Delivery Units,Adults and Health,Other Agencies - Third Party P,90181550,DYNAMIC PEOPLE LTD,497,22/07/2019
Delivery Units,Adults and Health,Other Agencies - Third Party P,90181551,DYNAMIC PEOPLE LTD,193.27,22/07/2019
Delivery Units,Adults and Health,Other Agencies - Third Party P,90181552,DYNAMIC PEOPLE LTD,303.59,22/07/2019
Delivery Units,Adults and Health,Other Agencies - Third Party P,90181553,DYNAMIC PEOPLE LTD,193.2,22/07/2019
Delivery Units,Adults and Health,Other Agencies - Third Party P,90181554,DYNAMIC PEOPLE LTD,276.01,22/07/2019
Delivery Units,Adults and Health,Other Agencies - Third Party P,90181555,DYNAMIC PEOPLE LTD,220.85,22/07/2019
Delivery Units,Adults and Health,Other Agencies - Third Party P,90181556,DYNAMIC PEOPLE LTD,173.47,22/07/2019
Delivery Units,Adults and Health,Other Agencies - Third Party P,90181557,DYNAMIC PEOPLE LTD,35.49,22/07/2019
Delivery Units,Adults and Health,Other Agencies - Third Party P,90181561,DYNAMIC PEOPLE LTD,59.15,22/07/2019
Delivery Units,Adults and Health,Other Agencies - Third Party P,90181563,DYNAMIC PEOPLE LTD,193.27,22/07/2019
Delivery Units,Adults and Health,Other Agencies - Third Party P,90181564,DYNAMIC PEOPLE LTD,149.83,22/07/2019
Delivery Units,Adults and Health,Other Agencies - Third Party P,90181565,DYNAMIC PEOPLE LTD,362.78,22/07/2019
Delivery Units,Adults and Health,Other Agencies - Third Party P,90181566,DYNAMIC PEOPLE LTD,31.54,22/07/2019
Delivery Units,Adults and Health,Other Agencies - Third Party P,90181567,DYNAMIC PEOPLE LTD,86.77,22/07/2019
Delivery Units,Adults and Health,Other Agencies - Third Party P,90181568,DYNAMIC PEOPLE LTD,102.5,22/07/2019
Delivery Units,Adults and Health,Other Agencies - Third Party P,90181570,DYNAMIC PEOPLE LTD,327.3,22/07/2019
Delivery Units,Adults and Health,Other Agencies - Third Party P,90181571,DYNAMIC PEOPLE LTD,47.31,22/07/2019
Delivery Units,Adults and Health,Other Agencies - Third Party P,90181572,DYNAMIC PEOPLE LTD,82.81,22/07/2019
Delivery Units,Adults and Health,Other Agencies - Third Party P,90181573,DYNAMIC PEOPLE LTD,276.08,22/07/2019
Delivery Units,Adults and Health,Other Agencies - Third Party P,90181575,DYNAMIC PEOPLE LTD,82.81,22/07/2019
Delivery Units,Adults and Health,Other Agencies - Third Party P,90181576,DYNAMIC PEOPLE LTD,82.81,22/07/2019
Delivery Units,Adults and Health,Other Agencies - Third Party P,90181579,DYNAMIC PEOPLE LTD,110.39,22/07/2019
Delivery Units,Adults and Health,Other Agencies - Third Party P,90181581,DYNAMIC PEOPLE LTD,141.93,22/07/2019
Delivery Units,Adults and Health,Other Agencies - Third Party P,90181582,DYNAMIC PEOPLE LTD,161.68,22/07/2019
Delivery Units,Adults and Health,Other Agencies - Third Party P,90181584,DYNAMIC PEOPLE LTD,35.49,22/07/2019
Delivery Units,Adults and Health,Other Agencies - Third Party P,90181586,DYNAMIC PEOPLE LTD,63.08,22/07/2019
Delivery Units,Adults and Health,Other Agencies - Third Party P,90181587,DYNAMIC PEOPLE LTD,287.8,22/07/2019
Delivery Units,Adults and Health,Other Agencies - Third Party P,90181588,DYNAMIC PEOPLE LTD,90.7,22/07/2019
Delivery Units,Adults and Health,Other Agencies - Third Party P,90181590,DYNAMIC PEOPLE LTD,51.26,22/07/2019
Delivery Units,Adults and Health,Other Agencies - Third Party P,90181591,DYNAMIC PEOPLE LTD,106.45,22/07/2019
Delivery Units,Adults and Health,Other Agencies - Third Party P,90181592,DYNAMIC PEOPLE LTD,55.23,22/07/2019
Delivery Units,Adults and Health,Other Agencies - Third Party P,90181593,DYNAMIC PEOPLE LTD,749.17,22/07/2019
Delivery Units,Adults and Health,Other Agencies - Third Party P,90181595,DYNAMIC PEOPLE LTD,138.04,22/07/2019
Delivery Units,Adults and Health,Other Agencies - Third Party P,90181596,DYNAMIC PEOPLE LTD,110.46,22/07/2019
Delivery Units,Adults and Health,Other Agencies - Third Party P,90181597,DYNAMIC PEOPLE LTD,157.74,22/07/2019
Delivery Units,Adults and Health,Other Agencies - Third Party P,90181598,DYNAMIC PEOPLE LTD,110.46,22/07/2019
Delivery Units,Adults and Health,Other Agencies - Third Party P,90181600,DYNAMIC PEOPLE LTD,31.54,22/07/2019
Delivery Units,Adults and Health,Other Agencies - Third Party P,90181601,DYNAMIC PEOPLE LTD,153.8,22/07/2019
Delivery Units,Adults and Health,Other Agencies - Third Party P,90181602,DYNAMIC PEOPLE LTD,31.54,22/07/2019
Delivery Units,Adults and Health,Other Agencies - Third Party P,90181604,DYNAMIC PEOPLE LTD,118.28,22/07/2019
Delivery Units,Adults and Health,Other Agencies - Third Party P,90181605,DYNAMIC PEOPLE LTD,232.64,22/07/2019
Delivery Units,Adults and Health,Other Agencies - Third Party P,90181606,DYNAMIC PEOPLE LTD,114.38,22/07/2019
Delivery Units,Adults and Health,Other Agencies - Third Party P,90181607,DYNAMIC PEOPLE LTD,173.47,22/07/2019
Delivery Units,Adults and Health,Other Agencies - Third Party P,90181609,DYNAMIC PEOPLE LTD,67.02,22/07/2019
Delivery Units,Adults and Health,Other Agencies - Third Party P,90181610,DYNAMIC PEOPLE LTD,228.72,22/07/2019
Delivery Units,Adults and Health,Other Agencies - Third Party P,90181611,DYNAMIC PEOPLE LTD,59.15,22/07/2019
Delivery Units,Adults and Health,Other Agencies - Third Party P,90181612,DYNAMIC PEOPLE LTD,114.34,22/07/2019
Delivery Units,Adults and Health,Other Agencies - Third Party P,90181613,DYNAMIC PEOPLE LTD,31.55,22/07/2019
Delivery Units,Adults and Health,Other Agencies - Third Party P,90181614,DYNAMIC PEOPLE LTD,78.87,22/07/2019
Delivery Units,Adults and Health,Other Agencies - Third Party P,90181615,DYNAMIC PEOPLE LTD,23.66,22/07/2019
Delivery Units,Adults and Health,Other Agencies - Third Party P,90181616,DYNAMIC PEOPLE LTD,110.39,22/07/2019
Delivery Units,Adults and Health,Other Agencies - Third Party P,90181618,DYNAMIC PEOPLE LTD,47.32,22/07/2019
Delivery Units,Adults and Health,Other Agencies - Third Party P,90181619,DYNAMIC PEOPLE LTD,106.49,22/07/2019
Delivery Units,Adults and Health,Other Agencies - Third Party P,90181621,DYNAMIC PEOPLE LTD,118.29,22/07/2019
Delivery Units,Adults and Health,Other Agencies - Third Party P,90181622,DYNAMIC PEOPLE LTD,398.24,22/07/2019
Delivery Units,Adults and Health,Other Agencies - Third Party P,90181623,DYNAMIC PEOPLE LTD,47.31,22/07/2019
Delivery Units,Adults and Health,Other Agencies - Third Party P,90181624,DYNAMIC PEOPLE LTD,291.85,22/07/2019
Delivery Units,Adults and Health,Other Agencies - Third Party P,90181625,DYNAMIC PEOPLE LTD,268.12,22/07/2019
Delivery Units,Adults and Health,Other Agencies - Third Party P,90181626,DYNAMIC PEOPLE LTD,110.39,22/07/2019
Delivery Units,Adults and Health,Other Agencies - Third Party P,90181628,DYNAMIC PEOPLE LTD,126.2,22/07/2019
Delivery Units,Adults and Health,Other Agencies - Third Party P,90181629,DYNAMIC PEOPLE LTD,15.78,22/07/2019
Delivery Units,Adults and Health,Other Agencies - Third Party P,90181631,DYNAMIC PEOPLE LTD,63.12,22/07/2019
Delivery Units,Adults and Health,Other Agencies - Third Party P,90181633,DYNAMIC PEOPLE LTD,47.32,22/07/2019
Delivery Units,Adults and Health,Other Agencies - Third Party P,90181634,DYNAMIC PEOPLE LTD,70.98,22/07/2019
Delivery Units,Adults and Health,Other Agencies - Third Party P,90181636,DYNAMIC PEOPLE LTD,86.79,22/07/2019
Delivery Units,Adults and Health,Other Agencies - Third Party P,90181637,DYNAMIC PEOPLE LTD,82.81,22/07/2019
Delivery Units,Adults and Health,Other Agencies - Third Party P,90181638,DYNAMIC PEOPLE LTD,110.39,22/07/2019
Delivery Units,Adults and Health,Other Agencies - Third Party P,90181640,DYNAMIC PEOPLE LTD,31.54,22/07/2019
Delivery Units,Adults and Health,Other Agencies - Third Party P,90181641,DYNAMIC PEOPLE LTD,31.55,22/07/2019
Delivery Units,Adults and Health,Other Agencies - Third Party P,90181642,DYNAMIC PEOPLE LTD,276.08,25/07/2019
Delivery Units,Adults and Health,Other Agencies - Third Party P,90181645,DYNAMIC PEOPLE LTD,138.04,22/07/2019
Delivery Units,Adults and Health,Other Agencies - Third Party P,90181646,DYNAMIC PEOPLE LTD,248.43,22/07/2019
Delivery Units,Adults and Health,Other Agencies - Third Party P,90181647,DYNAMIC PEOPLE LTD,193.2,22/07/2019
Delivery Units,Adults and Health,Other Agencies - Third Party P,90181648,DYNAMIC PEOPLE LTD,82.81,22/07/2019
Delivery Units,Adults and Health,Other Agencies - Third Party P,90181649,DYNAMIC PEOPLE LTD,153.81,22/07/2019
Delivery Units,Adults and Health,Other Agencies - Third Party P,90181651,DYNAMIC PEOPLE LTD,331.24,22/07/2019
Delivery Units,Adults and Health,Other Agencies - Third Party P,90181652,DYNAMIC PEOPLE LTD,193.27,22/07/2019
Delivery Units,Adults and Health,Other Agencies - Third Party P,90181653,DYNAMIC PEOPLE LTD,82.81,22/07/2019
Delivery Units,Adults and Health,Other Agencies - Third Party P,90181655,DYNAMIC PEOPLE LTD,82.81,22/07/2019
Delivery Units,Adults and Health,Other Agencies - Third Party P,90181658,DYNAMIC PEOPLE LTD,138.04,22/07/2019
Delivery Units,Adults and Health,Other Agencies - Third Party P,90181660,DYNAMIC PEOPLE LTD,82.81,22/07/2019
Delivery Units,Adults and Health,Other Agencies - Third Party P,90181661,DYNAMIC PEOPLE LTD,"1,525.78",22/07/2019
Delivery Units,Adults and Health,Other Agencies - Third Party P,90181664,DYNAMIC PEOPLE LTD,55.23,22/07/2019
Delivery Units,Adults and Health,Other Agencies - Third Party P,90181665,DYNAMIC PEOPLE LTD,248.5,22/07/2019
Delivery Units,Adults and Health,Other Agencies - Third Party P,90181666,DYNAMIC PEOPLE LTD,276.08,22/07/2019
Delivery Units,Adults and Health,Other Agencies - Third Party P,90181667,DYNAMIC PEOPLE LTD,220.85,22/07/2019
Delivery Units,Adults and Health,Other Agencies - Third Party P,90181668,DYNAMIC PEOPLE LTD,299.74,22/07/2019
Delivery Units,Adults and Health,Other Agencies - Third Party P,90181669,DYNAMIC PEOPLE LTD,134.1,22/07/2019
Delivery Units,Adults and Health,Other Agencies - Third Party P,90181670,DYNAMIC PEOPLE LTD,78.85,22/07/2019
Delivery Units,Adults and Health,Other Agencies - Third Party P,90181671,DYNAMIC PEOPLE LTD,358.82,22/07/2019
Delivery Units,Adults and Health,Other Agencies - Third Party P,90181672,DYNAMIC PEOPLE LTD,165.62,22/07/2019
Delivery Units,Adults and Health,Other Agencies - Third Party P,90181673,DYNAMIC PEOPLE LTD,220.85,22/07/2019
Delivery Units,Adults and Health,Other Agencies - Third Party P,90181674,DYNAMIC PEOPLE LTD,276.08,22/07/2019
Delivery Units,Adults and Health,Other Agencies - Third Party P,90181675,DYNAMIC PEOPLE LTD,177.51,22/07/2019
Delivery Units,Adults and Health,Other Agencies - Third Party P,90181676,DYNAMIC PEOPLE LTD,299.74,22/07/2019
Delivery Units,Adults and Health,Other Agencies - Third Party P,90181677,DYNAMIC PEOPLE LTD,276.01,22/07/2019
Delivery Units,Adults and Health,Other Agencies - Third Party P,90181678,DYNAMIC PEOPLE LTD,165.69,22/07/2019
Delivery Units,Adults and Health,Other Agencies - Third Party P,90181679,DYNAMIC PEOPLE LTD,717.64,22/07/2019
Delivery Units,Adults and Health,Other Agencies - Third Party P,90181680,DYNAMIC PEOPLE LTD,82.81,22/07/2019
Delivery Units,Adults and Health,Other Agencies - Third Party P,90181681,DYNAMIC PEOPLE LTD,497,22/07/2019
Delivery Units,Adults and Health,Other Agencies - Third Party P,90181682,DYNAMIC PEOPLE LTD,303.59,22/07/2019
Delivery Units,Adults and Health,Other Agencies - Third Party P,90181684,DYNAMIC PEOPLE LTD,193.2,22/07/2019
Delivery Units,Adults and Health,Other Agencies - Third Party P,90181685,DYNAMIC PEOPLE LTD,283.9,22/07/2019
Delivery Units,Adults and Health,Other Agencies - Third Party P,90181686,DYNAMIC PEOPLE LTD,220.85,22/07/2019
Delivery Units,Adults and Health,Other Agencies - Third Party P,90181687,DYNAMIC PEOPLE LTD,173.47,22/07/2019
Delivery Units,Adults and Health,Other Agencies - Third Party P,90181688,DYNAMIC PEOPLE LTD,82.81,22/07/2019
Delivery Units,Adults and Health,Other Agencies - Third Party P,90181690,DYNAMIC PEOPLE LTD,31.54,22/07/2019
Delivery Units,Adults and Health,Other Agencies - Third Party P,90181692,DYNAMIC PEOPLE LTD,138.04,22/07/2019
Delivery Units,Adults and Health,Other Agencies - Third Party P,90181694,DYNAMIC PEOPLE LTD,70.96,22/07/2019
Delivery Units,Adults and Health,Other Agencies - Third Party P,90181695,DYNAMIC PEOPLE LTD,59.15,22/07/2019
